{"text_format":"1","workbook":"xlsx","n_sheets":18,"sheets":["Introduction","Listed Activities","Other Activities","Complexities","Air","Water","Land","Sewer","Waste","Emissions Summary","Location","Op Perf","EP Summary","Calculation","Compliance Rating","XML Data","Amendment record","Lookup"],"not_rendered":{"charts":4,"images":5,"macros":1,"external_links":0,"defined_names":117,"comments":5,"pivot_tables":0},"unopened":[],"bounds":{"document_bytes":16777216,"sheet_cells":100000,"rows_first":2000,"rows_last":500,"rows_between":2000,"halvings":0,"cell_chars":16384,"cell_head_chars":4096},"cells_cut":0,"cells_raw":0,"read":"whole","date_system":"1900"}

{"sheet":"Introduction","index":0,"n_rows":41,"n_cols":9,"rows_kept":41,"cut":false,"hidden":false,"merged":[[2,3,5,7],[11,2,16,12],[7,8,7,9],[7,2,7,3],[9,7,9,12],[6,11,7,13],[7,4,7,5],[6,3,6,8],[31,8,35,12],[22,2,25,6],[26,2,26,5],[36,8,39,12],[28,2,28,6],[29,2,29,5],[27,2,27,6],[18,8,19,12],[22,8,22,12],[30,2,30,6],[28,8,29,12],[18,2,18,5],[19,2,19,7]]}
[]
[]
[null,null,null,"Operational Risk Appraisal (Opra) for Installations under EPR"]
[]
[]
[]
[]
[null,null,"Organisation Name",null,"Horizon Nuclear Power Wylfa Ltd",null,null,"Case Number"]
[]
[null,null,"Version","NRW V1",null,null,null,"Opra Scheme NRW V1"]
[]
[null,null,"Full instructions for the use of this spreadsheet are contained in the accompanying documentation.\nIt is recommended that the user fills in the spreadsheet following the order of worksheets listed below (click on the appropriate tab at the bottom of the screen).\nNot all worksheets require input, for those that do, the fields that may require input have no background colour.\nThe sequence of worksheets is divided into two sections Sheets 1 to 11 are concerned with the input of data. Sheet 12 is the summary for the Opra Scores and Sheet 13 displays the charges. \nIf you cannot see the whole of this box or it is very small, please click 'View' and adjust 'Zoom' level."]
[]
[]
[]
[]
[]
[]
[]
[]
[]
[null,1,"Listed Activities",null,null,null,null,9,"Emissions Summary"]
[null,null,"Please refer to the Opra Scheme for Installations for the look-up tables and guidance.\nUse abbreviated descriptions, select the Schedule 1 references and bands from the pick lists provided.\n",null,null,null,null,null,"No input is required.  Output screen only. Summary of emissions."]
[null,null,null,null,null,null,null,10,"Location"]
[]
[null,null,null,null,null,null,null,11,"Operational Management"]
[null,2,"Other Activities"]
[null,null,"Please enter Part A(2), Part B and aggregated activities onto this sheet.",null,null,null,null,12,"Opra Summary"]
[null,3,"Complexities",null,null,null,null,null,"No input is required.  Output screen only.  The emissions are shown separately."]
[null,null,"Summary of complexities and rules applied"]
[null,4,"Emissions to Air",null,null,null,null,13,"Calculation"]
[null,null,null,null,null,null,null,null,"No input is required. Charges with separate emissions totals.  It is possible to clear the scores and recalculate the charges to include any amendments."]
[null,5,"Emissions to Water"]
[]
[null,6,"Emissions to Land"]
[]
[null,7,"Emissions to Sewer"]
[]
[null,8,"Emissions to Waste"]
[]
[null,null,null,null,null,null,null,null,"Consolidated Permit"]

{"sheet":"Listed Activities","index":1,"n_rows":319,"n_cols":11,"rows_kept":319,"cut":false,"hidden":false,"merged":[[47,8,47,9],[1,1,1,10],[15,9,19,10],[6,9,6,10],[24,9,26,10],[36,2,36,4],[37,2,37,4],[42,8,42,9],[43,8,43,9],[44,8,44,9],[45,8,45,9],[46,8,46,9],[59,8,59,9],[48,8,48,9],[49,8,49,9],[50,8,50,9],[51,8,51,9],[52,8,52,9],[53,8,53,9],[54,8,54,9],[55,8,55,9],[56,8,56,9],[57,8,57,9],[58,8,58,9],[60,8,60,9],[61,8,61,9],[68,8,68,9],[68,4,68,5],[62,8,62,9],[67,4,67,5],[64,5,65,9],[67,8,67,9],[71,4,71,5],[72,4,72,5],[69,4,69,5],[70,4,70,5],[75,7,75,10],[69,8,69,9],[70,8,70,9],[71,8,71,9],[72,8,72,9]]}
[]
[null,"Listed Activities - Complexity Attribute"]
[]
[null,null,"Organisation:",{"$f":"Introduction!E8","v":"Horizon Nuclear Power Wylfa Ltd"}]
[null,null,"Case Number:",{"$f":"Introduction!I8","v":0}]
[]
[null,null,"Former Permit Ref   (If applicable)","Description of Activity","Schedule 1 Reference","Regulatory Complexity ",null,null,null,"Totals before any rules are applied"]
[null,null,1,"4 x 25tph Boilers","1.1 Part A (1) a) (i)","C",232,1,null,"A",{"$f":"SUMIF($F$8:$F$32,\"A\",$H$8:$H$32)","v":0}]
[null,null,2,"2 x 3tph Boilers","1.1 Part A (1) a) (i)","C",232,1,null,"B",{"$f":"SUMIF($F$8:$F$32,\"B\",$H$8:$H$32)","v":0}]
[null,null,3,"ASGs x2 ","1.1 Part A (1) a) (i)","C",232,1,null,"C",{"$f":"SUMIF($F$8:$F$32,\"C\",$H$8:$H$32)","v":7}]
[null,null,4,"BBGs x4 (Units 1 & 2)","1.1 Part A (1) a) (i)","C",232,1,null,"D",{"$f":"SUMIF($F$8:$F$32,\"D\",$H$8:$H$32)","v":0}]
[null,null,5,"EDGs x3 (Unit 1)","1.1 Part A (1) a) (i)","C",232,1,null,"E",{"$f":"SUMIF($F$8:$F$32,\"E\",$H$8:$H$32)","v":0}]
[null,null,6,"EDGs x3 (Unit 2)","1.1 Part A (1) a) (i)","C",232,1]
[null,null,7,"Firewater Pumps x2","1.1 Part A (1) a) (i)","C",232,1]
[null,null,8,null,null,null,null,1]
[null,null,9,null,null,null,null,1]
[null,null,10,null,null,null,null,1]
[null,null,11,null,null,null,null,1]
[null,null,12,null,null,null,null,1]
[null,null,13,null,null,null,null,1]
[null,null,14,null,null,null,null,1]
[null,null,15,null,null,null,null,1]
[null,null,16,null,null,null,null,1]
[null,null,17,null,null,null,null,1]
[null,null,18,null,null,null,null,1,null,"If there is insufficient space please attach a paper record"]
[null,null,19,null,null,null,null,1]
[null,null,20,null,null,null,null,1]
[null,null,21,null,null,null,null,1]
[null,null,22,null,null,null,null,1]
[null,null,23,null,null,null,null,1]
[null,null,24,null,null,null,null,1]
[null,null,25,null,null,null,null,1]
[]
[]
[]
[]
[null,null,"If Rule 4 applies - please complete Other Activities sheet"]
[]
[]
[]
[]
[]
[]
[]
[]
[]
[]
[]
[]
[]
[]
[]
[]
[]
[]
[]
[]
[]
[]
[]
[]
[]
[]
[]
[]
[]
[]
[]
[]
[]
[]
[]
[null,null,null,"Schedule 1 Part A Activities"]
[]
[]
[null,null,null,null,null,null,null,"Permitted complexities"]
[null,null,"Complexity\nLook up table","Enumerated list index","Schedule 1 Ref","Number of\nComplexities",null,"1st","2nd","3rd","4th"]
[]
[null,null,"A",232,"1.1 Part A (1) a) (i)",1,null,"C"]
[null,null,"B",233,"1.1 Part A (1) a) (ii)",1,null,"D"]
[null,null,"C",7,"1.2 Part A (1) a)",1,null,"D"]
[null,null,"D",9,"1.2 Part A (1) c) (A)",1,null,"E"]
[null,null,"E",178,"1.2 Part A (1) c) (B)",1,null,"B"]
[null,null,null,10,"1.2 Part A (1) d)",1,null,"E"]
[null,null,null,150,"1.2 Part A (1) g)",1,null,"C"]
[null,null,null,11,"1.2 Part A (1) h) (i)",1,null,"C"]
[null,null,null,12,"1.2 Part A (1) h) (ii)",1,null,"C"]
[null,null,null,242,"1.2 Part A (1) h) (A)",1,null,"B"]
[null,null,null,14,"1.2 Part A (1) j)",1,null,"E"]
[null,null,null,263,"1.2 Part A (1) j) (A)",1,null,"C"]
[null,null,null,16,"2.1 Part A (1) a)",1,null,"C"]
[null,null,null,155,"2.1 Part A (1) b) (i)",1,null,"E"]
[null,null,null,156,"2.1 Part A (1) b) (ii)",1,null,"E"]
[null,null,null,157,"2.1 Part A (1) b) (A)",1,null,"D"]
[null,null,null,18,"2.1 Part A (1) c)",1,null,"C"]
[null,null,null,19,"2.1 Part A (1) d)",1,null,"A"]
[null,null,null,30,"2.2 Part A (1) a)",1,null,"C"]
[null,null,null,243,"2.2 Part A (1) b)",1,null,"B"]
[null,null,null,36,"2.2 Part A (1) f)",1,null,"A"]
[null,null,null,42,"2.3 Part A (1) a)",1,null,"A"," "," "]
[null,null,null,44,"3.1 Part A (1) a)",1,null,"C"]
[null,null,null,45,"3.1 Part A (1) b)",1,null,"C"]
[null,null,null,50,"3.2 Part A (1) a)",1,null,"A"]
[null,null,null,51,"3.2 Part A (1) b)",1,null,"A"]
[null,null,null,52,"3.3 Part A (1) a)",1,null,"A"]
[null,null,null,54,"3.4 Part A (1) a)",1,null,"A"]
[null,null,null,161,"3.6 Part A (1) a) (i)",1,null,"A"]
[null,null,null,162,"3.6 Part A (1) a) (ii)",1,null,"A"]
[null,null,null,60,"4.1 Part A (1) a) (i)",2,null,"B","C"]
[null,null,null,61,"4.1 Part A (1) a) (ii)",2,null,"B","C"]
[null,null,null,62,"4.1 Part A (1) a) (iii)",2,null,"B","C"]
[null,null,null,63,"4.1 Part A (1) a) (iv)",2,null,"B","C"]
[null,null,null,65,"4.1 Part A (1) a) (v)",2,null,"B","C"]
[null,null,null,66,"4.1 Part A (1) a) (vi)",2,null,"B","C"]
[null,null,null,67,"4.1 Part A (1) a) (vii)",2,null,"B","C"]
[null,null,null,68,"4.1 Part A (1) a) (viii)",2,null,"B","C"]
[null,null,null,64,"4.1 Part A (1) a) (ix)",2,null,"B","C"]
[null,null,null,69,"4.1 Part A (1) a) (x)",2,null,"B","C"]
[null,null,null,70,"4.1 Part A (1) a) (xi)",2,null,"B","C"]
[null,null,null,250,"4.1 Part A (1) a) (A)",1,null,"A"]
[null,null,null,300,"4.1 Part A (1) a) (B)",1,null,"A"]
[null,null,null,301,"4.1 Part A (1) a) (C)",1,null,"A"]
[null,null,null,78,"4.2 Part A (1) a) (i)",1,null,"C"]
[null,null,null,79,"4.2 Part A (1) a) (ii)",1,null,"C"]
[null,null,null,80,"4.2 Part A (1) a) (iii)",1,null,"C"]
[null,null,null,81,"4.2 Part A (1) a) (iv)",1,null,"C"]
[null,null,null,82,"4.2 Part A (1) a) (v)",1,null,"C"]
[null,null,null,83,"4.2 Part A (1) a) (vi)",1,null,"C"]
[null,null,null,252,"4.2 Part A (1) a) (A)",1,null,"A"]
[null,null,null,265,"4.2 Part A (1) a) (B)",1,null,"C"]
[null,null,null,84,"4.2 Part A (1) b)",1,null,"A"]
[null,null,null,86,"4.2 Part A (1) d)",1,null,"A"]
[null,null,null,163,"4.2 Part A (1) e)",1,null,"A"]
[null,null,null,87,"4.2 Part A (1) f)",1,null,"A"]
[null,null,null,89,"4.2 Part A (1) h)",1,null,"A"]
[null,null,null,90,"4.3 Part A (1) a)",1,null,"C"]
[null,null,null,254,"4.3 Part A (1) a) (A)",1,null,"A"]
[null,null,null,340,"4.3 Part A (1) a) (B)",1,null,"A"]
[null,null,null,91,"4.4 Part A (1) a)",2,null,"C","D"]
[null,null,null,93,"4.5 Part A (1) a)",2,null,"C","D"]
[null,null,null,94,"4.6 Part A (1) a)",2,null,"C","D"]
[null,null,null,96,"4.7 Part A (1) b)",1,null,"A"]
[null,null,null,98,"5.1 Part A (1) a)",1,null,"E"]
[null,null,null,267,"5.1 Part A (1) a) (A)",1,null,"C"]
[null,null,null,302,"5.1 Part A (1) a) (B)",1,null,"C"]
[null,null,null,341,"5.1 Part A (1) a) (C)",1,null,"B"]
[null,null,null,303,"5.1 Part A (1) b)",1,null,"E"]
[null,null,null,304,"5.1 Part A (1) b) (A)",1,null,"C"]
[null,null,null,305,"5.1 Part A (1) b) (B)",1,null,"C"]
[null,null,null,306,"5.1 Part A (1) b) (C)",1,null,"C"]
[null,null,null,307,"5.1 Part A (1) b) (D)",1,null,"B"]
[null,null,null,308,"5.1 Part A (1) c)",1,null,"C"]
[null,null,null,106,"5.2 Part A (1) a)",2,null,"C","D"]
[null,null,null,309,"5.3 Part A (1) a) (i)",1,null,"B"]
[null,null,null,310,"5.3 Part A (1) a) (ii)",1,null,"B"]
[null,null,null,108,"5.3 Part A (1) a) (ii) (A)",1,null,"C"]
[null,null,null,108,"5.3 Part A (1) a) (ii) (B)",1,null,"B"]
[null,null,null,345,"5.3 Part A (1) a) (ii) (C)",1,null,"A"]
[null,null,null,313,"5.3 Part A (1) a) (iii)",1,null,"B"]
[null,null,null,342,"5.3 Part A (1) a) (iii) (A)",1,null,"A"]
[null,null,null,314,"5.3 Part A (1) a) (iv)",1,null,"B"]
[null,null,null,343,"5.3 Part A (1) a) (iv) (A)",1,null,"A"]
[null,null,null,315,"5.3 Part A (1) a) (v)",1,null,"A"]
[null,null,null,317,"5.3 Part A (1) a) (vi)",1,null,"A"]
[null,null,null,318,"5.3 Part A (1) a) (vii)",1,null,"A"]
[null,null,null,344,"5.3 Part A (1) a) (viii)",1,null,"A"]
[null,null,null,319,"5.3 Part A (1) a) (ix)",1,null,"A"]
[null,null,null,320,"5.3 Part A (1) a) (x)",1,null,"A"]
[null,null,null,321,"5.3 Part A (1) a) (xi)",1,null,"C"]
[null,null,null,322,"5.4 Part A (1) a) (i)",1,null,"A"]
[null,null,null,323,"5.4 Part A (1) a) (ii)",1,null,"A"]
[null,null,null,324,"5.4 Part A (1) a) (iii)",1,null,"A"]
[null,null,null,325,"5.4 Part A (1) a) (iv)",1,null,"A"]
[null,null,null,326,"5.4 Part A (1) a) (v)",1,null,"A"]
[null,null,null,327,"5.4 Part A (1) b) (i)",1,null,"A"]
[null,null,null,328,"5.4 Part A (1) b) (ii)",1,null,"A"]
[null,null,null,329,"5.4 Part A (1) b) (iii)",1,null,"A"]
[null,null,null,330,"5.4 Part A (1) b) (iv)",1,null,"A"]
[null,null,null,121,"5.5 Part A (1) a)",1,null,"B"]
[null,null,null,331,"5.6 Part A (1) a)",1,null,"B"]
[null,null,null,332,"5.6 Part A (1) b)",1,null,"D"]
[null,null,null,333,"5.7 Part A (1) a)",1,null,"A"]
[null,null,null,259,"6.1 Part A (1) a) (A)",1,null,"B"," "]
[null,null,null,260,"6.1 Part A (1) a) (B)",1,null,"A"]
[null,null,null,261,"6.1 Part A (1) b) (A)",1,null,"C"]
[null,null,null,262,"6.1 Part A (1) b) (B)",1,null,"A"]
[null,null,null,125,"6.2 Part A (1) a)",1,null,"A"]
[null,null,null,126,"6.3 Part A (1) a) (i)",1,null,"A"]
[null,null,null,127,"6.3 Part A (1) a) (ii)",1,null,"A"]
[null,null,null,130,"6.4 Part A (1) b)",1,null,"A"]
[null,null,null,137,"6.8 Part A (1) a)",1,null,"B"]
[null,null,null,138,"6.8 Part A (1) b)",1,null,"B"]
[null,null,null,139,"6.8 Part A (1) c)",1,null,"C"]
[null,null,null,268,"6.8 Part A (1) c) (A)",1,null,"A"]
[null,null,null,140,"6.8 Part A (1) d) (i)",1,null,"B"]
[null,null,null,141,"6.8 Part A (1) d) (ii)",1,null,"B"]
[null,null,null,141,"6.8 Part A (1) d) (iii)",1,null,"B"]
[null,null,null,142,"6.8 Part A (1) e)",1,null,"B"]
[null,null,null,144,"6.10 Part A (1) a)",1,null,"E"]
[null,null,null,null,null,null,null," "]
[null,null,null,null,null,null,null," "]
[]
[null,null,null,"Yes"]
[null,null,null,"No"]
[]
[]
[]
[]
[]
[]
[]
[]
[]
[]
[]
[]
[]
[null,null,null,null,null,null,null,null,null," "]
[]
[]
[]
[]
[]
[]
[null,null,null,"Schedule 1 Part A(2) and (B) Activities"]
[]
[]
[null,null,null,5,"1.1 Part B a) "]
[null,null,null,177,"1.1 Part B b)"]
[null,null,null,6,"1.1 Part B c)  (i)"]
[null,null,null,264,"1.1 Part B c) (ii)"]
[null,null,null,180,"1.2 Part A (2) (a)"]
[null,null,null,181,"1.2 Part B a)"]
[null,null,null,15,"1.2 Part B b)"]
[null,null,null,182,"1.2 Part B c)"]
[null,null,null,183,"1.2 Part B d)"]
[null,null,null,20,"2.1 Part A (2) a)"]
[null,null,null,185,"2.1 Part A (2) b)"]
[null,null,null,21,"2.1 Part A (2) c)"]
[null,null,null,22,"2.1 Part A (2) d)"]
[null,null,null,23,"2.1 Part B a)"]
[null,null,null,24,"2.1 Part B b) (i)"]
[null,null,null,25,"2.1 Part B b) (ii)"]
[null,null,null,26,"2.1 Part B c)"]
[null,null,null,27,"2.1 Part B d) (i)"]
[null,null,null,28,"2.1 Part B d) (ii)"]
[null,null,null,29,"2.1 Part B d) (iii)"]
[null,null,null,176,"2.1 Part B e)"]
[null,null,null,39,"2.2 Part A (2) a)"]
[null,null,null,40,"2.2 Part B a) "]
[null,null,null,186,"2.2 Part B b)"]
[null,null,null,41,"2.2 Part B c)"]
[null,null,null,187,"2.2 Part B d)"]
[null,null,null,188,"2.2 Part B e)"]
[null,null,null,189,"2.3 Part A (2) a)"]
[null,null,null,43,"2.3 Part B a)"]
[null,null,null,190,"3.1 Part A (2) a)"]
[null,null,null,191,"3.1 Part A (2) b)"]
[null,null,null,47,"3.1 Part B a)"]
[null,null,null,48,"3.1 Part B b)"]
[null,null,null,49,"3.1 Part B c)"]
[null,null,null,192,"3.1 Part B d)"]
[null,null,null,105,"3.2 Part B a)"]
[null,null,null,193,"3.3 Part A (2) a)"]
[null,null,null,194,"3.3 Part B a)"]
[null,null,null,195,"3.3 Part B b)"]
[null,null,null,196,"3.3 Part B c)"]
[null,null,null,248,"3.3 Part B d) (i)"]
[null,null,null,249,"3.3 Part B d) (ii)"]
[null,null,null,198,"3.3 Part B e)"]
[null,null,null,266,"3.5 Part A (2) a)"]
[null,null,null,56,"3.5 Part B a)"]
[null,null,null,57,"3.5 Part B b) (i)"]
[null,null,null,58,"3.5 Part B b) (ii)"]
[null,null,null,59,"3.5 Part B b) (iii)"]
[null,null,null,231,"3.5 Part B c)"]
[null,null,null,200,"3.5 Part B d)"]
[null,null,null,201,"3.5 Part B e)"]
[null,null,null,202,"3.5 Part B f)"]
[null,null,null,203,"3.5 Part B g)"]
[null,null,null,204,"3.6 Part A (2) a) (i)"]
[null,null,null,205,"3.6 Part A (2) a) (ii)"]
[null,null,null,206,"3.6 Part B a)"]
[null,null,null,207,"3.6 Part B b)"]
[null,null,null,208,"4.1 Part B a)"]
[null,null,null,210,"4.1 Part B b)"]
[null,null,null,211,"4.1 Part B c)"]
[null,null,null,267,"4.1 Part B d)"]
[null,null,null,212,"4.8 Part B a)"]
[null,null,null,213,"5.1 Part A (2) a)"]
[null,null,null,214,"5.1 Part A (2) b)"]
[null,null,null,268,"5.1 Part A (2) c)"]
[null,null,null,103,"5.1 Part B a)"]
[null,null,null,104,"5.1 Part B b)"]
[null,null,null,215,"6.1 A (2) a)"]
[null,null,null,128,"6.3 Part B a) (i)"]
[null,null,null,216,"6.3 Part B a) (ii)"]
[null,null,null,132,"6.4 Part A (2) a)"]
[null,null,null,133,"6.4 Part B a) (i)"]
[null,null,null,134,"6.4 Part B a) (ii)"]
[null,null,null,217,"6.4 Part B a) (iii)"]
[null,null,null,135,"6.4 Part B a) (iv)"]
[null,null,null,218,"6.4 Part B b)"]
[null,null,null,219,"6.4 Part B c) (i)"]
[null,null,null,220,"6.4 Part B c) (ii)"]
[null,null,null,221,"6.4 Part B c) (iii)"]
[null,null,null,222,"6.5 Part B a) (i)"]
[null,null,null,223,"6.5 Part B a) (ii)"]
[null,null,null,224,"6.6 Part B a) (i)"]
[null,null,null,225,"6.6 Part B a) (ii)"]
[null,null,null,226,"6.7 Part A (2) a)"]
[null,null,null,227,"6.7 Part B a) (i)"]
[null,null,null,228,"6.7 Part B a) (ii)"]
[null,null,null,263,"6.7 Part B b)"]
[null,null,null,143,"6.8 Part A (2) a)"]
[null,null,null,229,"6.8 Part B a)"]
[null,null,null,230,"6.8 Part B b)"]
[null,null,null,265,"7 Part B"]
[null,null,null,147,"Associated Process"]

{"sheet":"Other Activities","index":2,"n_rows":101,"n_cols":13,"rows_kept":101,"cut":false,"hidden":false,"merged":[[65,3,65,4],[1,1,1,7],[3,6,5,6],[42,2,42,5],[43,3,43,4],[3,2,3,3],[4,2,4,3],[3,4,3,5],[4,4,4,5],[36,2,36,4],[35,2,35,4],[2,4,2,5],[7,2,7,6]]}
[null,null,null,null,null,null,null,null,null,null,null,null,"This col is used to hold the enumerated list of sched activities"]
[null,"Aggregation and Schedule1 Part A(2) and Part B Activities"]
[]
[null,null,"Organisation Name:",null,{"$f":"Introduction!E8","v":"Horizon Nuclear Power Wylfa Ltd"},null,"If there is insufficient space please attach a paper record"]
[null,null,"Case Number:",null,{"$f":"Introduction!I8","v":0}]
[]
[]
[null,null,"Schedule 1 Part A(1) - Rule 4 Aggregation Details"]
[null,null,"Former Permit Ref (If applicable)","Aggregation\nGroup","Description","Schedule 1 Ref","Complexity"]
[null,null,1]
[null,null,2]
[null,null,3]
[null,null,4]
[null,null,5]
[null,null,6]
[null,null,7]
[null,null,8]
[null,null,9]
[null,null,10]
[null,null,11]
[null,null,12]
[null,null,13]
[null,null,14]
[null,null,15]
[null,null,16]
[null,null,17]
[null,null,18]
[null,null,19]
[null,null,20]
[null,null,21]
[null,null,22]
[null,null,23]
[null,null,24]
[null,null,25]
[]
[]
[null,null,"Rule 4 ",null,null,"Not Applied"]
[]
[]
[]
[]
[]
[null,null,"List of Schedule 1 Part (A) 2 and Part B Activities included in the Installation"]
[null,null,null,"Enter description of Activity",null,"Schedule 1 Reference"]
[null,null,1]
[null,null,2]
[null,null,3]
[null,null,4]
[null,null,5]
[null,null,6]
[null,null,7]
[null,null,8]
[null,null,9]
[null,null,10]
[null,null,11]
[null,null,12]
[null,null,13]
[null,null,14]
[null,null,15]
[null,null,16]
[null,null,17]
[null,null,18]
[null,null,19]
[null,null,20]
[]
[null,null,null,null,null,null,null,null,null,null,null,"Number of entries",0]
[]
[]
[]
[]
[]
[]
[]
[]
[]
[]
[]
[]
[]
[]
[]
[]
[]
[]
[]
[]
[]
[]
[]
[]
[]
[]
[]
[]
[]
[]
[]
[]
[]
[null,10,null,"*"]
[null,13]

{"sheet":"Complexities","index":3,"n_rows":56,"n_cols":10,"rows_kept":56,"cut":false,"hidden":false,"merged":[[50,7,50,8],[48,3,48,5],[3,7,3,9],[41,3,41,4],[54,7,54,8],[51,7,51,8],[52,7,52,8],[53,7,53,8],[41,6,44,9],[48,7,49,8],[1,1,1,10],[3,2,3,3],[4,2,4,3],[3,4,3,5],[4,4,4,5]]}
[]
[null,"EPR- Installations Charging Scheme Complexity - Application of Rules"]
[]
[null,null,"Company",null,{"$f":"Introduction!E8","v":"Horizon Nuclear Power Wylfa Ltd"}]
[null,null,"Permit",null,{"$f":"Introduction!I8","v":0}]
[]
[null,null,"Former Permit Ref     (if applicable)","Description / \nAggregation\nGroup","Schedule 1\nRef","Complexity","Rule 3\nCapping","Rule 5 not applied","Rule 6 not applied","Rule 7 Not Applied"]
[null,null,1,"4 x 25tph Boilers","1.1 Part A (1) a) (i)","C","","","",""]
[null,null,2,"2 x 3tph Boilers","1.1 Part A (1) a) (i)","C","","","",""]
[null,null,3,"ASGs x2 ","1.1 Part A (1) a) (i)","C","","","",""]
[null,null,4,"BBGs x4 (Units 1 & 2)","1.1 Part A (1) a) (i)","C","","","",""]
[null,null,5,"EDGs x3 (Unit 1)","1.1 Part A (1) a) (i)","C","","","",""]
[null,null,6,"EDGs x3 (Unit 2)","1.1 Part A (1) a) (i)","C","","","",""]
[null,null,7,"Firewater Pumps x2","1.1 Part A (1) a) (i)","C","","","",""]
[null,null,8,null,null,null,"","","",""]
[null,null,9,null,null,null,"","","",""]
[null,null,10,null,null,null,"","","",""]
[null,null,11,null,null,null,"","","",""]
[null,null,12,null,null,null,"","","",""]
[null,null,13,null,null,null,"","","",""]
[null,null,14,null,null,null,"","","",""]
[null,null,15,null,null,null,"","","",""]
[null,null,16,null,null,null,"","","",""]
[null,null,17,null,null,null,"","","",""]
[null,null,18,null,null,null,"","","",""]
[null,null,19,null,null,null,"","","",""]
[null,null,20,null,null,null,"","","",""]
[null,null,21,null,null,null,"","","",""]
[null,null,22,null,null,null,null,"","",""]
[null,null,23,null,null,null,null,"","",""]
[null,null,24,null,null,null,null,"","",""]
[null,null,25,null,null,null,null,"","",""]
[null,null,26,null,null,null,null,"","",""]
[null,null,27,null,null,null,null,"","",""]
[null,null,28,null,null,null,null,"","",""]
[null,null,29,null,null,null,null,"","",""]
[null,null,30,null,null,null,null,"","",""]
[]
[]
[]
[]
[null,null,null,"Summary of Rules Applied",null,null,"These totals will be carried forward and used to calculate the Opra Risk Summary and Calculation of Charges"]
[null,null,null,"Rule 3","Yes"]
[null,null,null,"Rule 4","No"]
[null,null,null,"Rule 5","No"]
[null,null,null,"Rule 6","No"]
[null,null,null,"Rule 7","No"]
[]
[null,null,null,"Scores after Rules applied (Used for calculation of Charges)",null,null,null,"Scores before rules applied (Used for summary of Risk)"]
[null,null,"Complexity","First 6 Complexities","Remaining\n complexities","Total"]
[null,null,"A",{"$f":"COUNTIF(J$7:J$13,\"A\")","v":0},{"$f":"COUNTIF(J$14:J$37,\"A\")","v":0},{"$f":"D51+E51","v":0},null,{"$f":"COUNTIF(F$7:F$37,\"A\")","v":0}]
[null,null,"B",{"$f":"COUNTIF(J$7:J$13,\"B\")","v":0},{"$f":"COUNTIF(J$14:J$37,\"B\")","v":0},0,null,{"$f":"COUNTIF(F$7:F$37,\"B\")","v":0}]
[null,null,"C",{"$f":"COUNTIF(J$7:J$13,\"C\")","v":0},{"$f":"COUNTIF(J$14:J$37,\"C\")","v":0},0,null,{"$f":"COUNTIF(F$7:F$37,\"C\")","v":7}]
[null,null,"D",{"$f":"COUNTIF(J$7:J$13,\"D\")","v":0},{"$f":"COUNTIF(J$14:J$37,\"D\")","v":0},0,null,{"$f":"COUNTIF(F$7:F$37,\"D\")","v":0}]
[null,null,"E",{"$f":"COUNTIF(J$7:J$13,\"E\")","v":0},{"$f":"COUNTIF(J$14:J$37,\"E\")","v":0},0,null,{"$f":"COUNTIF(F$7:F$37,\"E\")","v":0}]
[null,null,"Capped",{"$f":"COUNTIF(J$7:J$13,\"*CAPPED\")","v":0},{"$f":"COUNTIF(J$14:J$37,\"*CAPPED\")","v":0},0]

{"sheet":"Air","index":4,"n_rows":130,"n_cols":8,"rows_kept":130,"cut":false,"hidden":false,"merged":[[131,2,131,7],[2,2,2,7],[4,7,5,7],[4,3,4,5],[5,3,5,5],[124,2,124,7]]}
[]
[]
[null,null,"Emissions Attribute - Releases to Air"]
[]
[null,null,"Organisation Name:",{"$f":"Introduction!E8","v":"Horizon Nuclear Power Wylfa Ltd"},null,null,null,"Please check that the data is entered in the correct units.\nThe Emission Index will only show if the data entered exceeds the threshold."]
[null,null,"Case Number:",{"$f":"Introduction!I8","v":0}]
[null,null,"Please tick box if this sheet is applicable"]
[null,null,"Substance","Units","Emission Threshold","Maximum Quantity","Emission Index","Notes"]
[null,null,"Oxides of Sulphur","Tonnes Year",10,null,{"$f":"IF(F9/E9<1,0,(F9/E9))","v":0}]
[null,null,"Oxides of Nitrogen","Tonnes Year",10,92.5,{"$f":"IF(F10/E10<1,0,(F10/E10))","v":9.25},"Estimated from average annual operting hours (Tables 5.9 (boilers) and 5.10 (generators) in the supporting document) and the g/s emission rates given in the Air dispersion modelling report (appendix A of Appendix A)"]
[null,null,"Carbon Monoxide","Tonnes Year",1000,null,0]
[]
[]
[null,null,"Beryllium","Kg year",1,null,0]
[null,null,"Cadmium","Kg year",1,null,0]
[null,null,"Lead","Kg year",1,null,0]
[null,null,"Mercury","Kg year",1,null,0]
[]
[null,null,"Antimony","Kg year",10,null,0]
[null,null,"Arsenic","Kg year",10,null,0]
[null,null,"Chromium","Kg year",10,null,0]
[null,null,"Nickel","Kg year",10,null,0]
[null,null,"Selenium","Kg year",10,null,0]
[]
[null,null,"Other Metals Specify"]
[null,null,null,"Kg year",100,null,0]
[null,null,null,"Kg year",100,null,{"$f":"IF(F27/E27<1,0,(F27/E27))","v":0}]
[null,null,null,"Kg year",100,null,0]
[null,null,null,"Kg year",100,null,0]
[null,null,null,"Kg year",100,null,0]
[]
[null,null,"Organic Compounds"]
[null,null,"Dioxins and Furans","mg TEQ year",0.1,null,0]
[null,null,"PCBs","mg TEF year",0.1,null,0]
[]
[null,null,"PAHs as benzo(a)pyrene","Kg year",1,null,0]
[null,null,"Phosgene","Kg year",1,null,0]
[null,null,"Isocyanates ","Kg year",1,null,0]
[null,null,"Di-ethyl sulphate","Kg year",1,null,0]
[null,null,"Di-methyl sulphate","Kg year",1,null,0]
[]
[null,null,"Acrylonitrile","Kg year",10,null,0]
[null,null,"Aniline","Kg year",10,null,{"$f":"IF(F43/E43<1,0,(F43/E43))","v":0}]
[null,null,"Benzene","Kg year",10,null,{"$f":"IF(F44/E44<1,0,(F44/E44))","v":0}]
[null,null,"Benzyl Chloride","Kg year",10,null,{"$f":"IF(F45/E45<1,0,(F45/E45))","v":0}]
[null,null,"1-chloro-2,3-epoxypropane","Kg year",10,null,0]
[null,null,"Chloroform","Kg year",10,null,0]
[null,null,"Cyanamide","Kg year",10,null,0]
[null,null,"Ethylene oxide","Kg year",10,null,0]
[null,null,"Formaldehyde","Kg year",10,null,0]
[null,null,"Maleic anhydride","Kg year",10,null,0]
[null,null,"Nitrobenzene","Kg year",10,null,0]
[null,null,"Allyl alcohol","Kg year",10,null,0]
[]
[]
[null,null,"Acetaldehyde","Kg year",100,null,{"$f":"IF(F56/E56<1,0,(F56/E56))","v":0}]
[null,null,"Acetonitrile","Kg year",100,null,{"$f":"IF(F57/E57<1,0,(F57/E57))","v":0}]
[null,null,"Benzene-1,2,4-tricarboxylic acid,1,2-anhydride","Kg year",100,null,0]
[null,null,"1,3-butadiene","Kg year",100,null,0]
[null,null,"Chloroethene","Kg year",100,null,0]
[null,null,"1,2-dichloroethane","Kg year",100,null,0]
[null,null,"Dimethylformamide","Kg year",100,null,0]
[null,null,"1,4-dioxane","Kg year",100,null,0]
[null,null,"2-ethyoxyethanol","Kg year",100,null,0]
[null,null,"2-ethyoxyethylecetate","Kg year",100,null,0]
[null,null,"Ethyl acrylate","Kg year",100,null,0]
[null,null,"Iodomethane","Kg year",100,null,0]
[null,null,"Methylamine","Kg year",100,null,0]
[null,null,"2-nitropropane","Kg year",100,null,0]
[null,null,"Phenol","Kg year",100,null,0]
[null,null,"Propylene oxide","Kg year",100,null,0]
[null,null,"HFC's","Kg year",100,null,0]
[null,null,"HCFC's","Kg year",100,null,0]
[null,null,"PFC's","Kg year",100,null,0]
[null,null,null,"Kg year"]
[null,null,"Benzaldehyde","Kg year",500,null,{"$f":"IF(F76/E76<1,0,(F76/E76))","v":0}]
[null,null,"Benzo(a)pyrene","Kg year",500,null,0]
[null,null,"Butene","Kg year",500,null,0]
[null,null,"Chloromethane","Kg year",500,null,0]
[null,null,"1,4-dichlorobenzene","Kg year",500,null,0]
[null,null,"Dichloromethane","Kg year",500,null,0]
[null,null,"Ethyl toluene","Kg year",500,null,0]
[null,null,"Ethylene","Kg year",500,null,0]
[null,null,"i-butyraldehyde","Kg year",500,null,0]
[null,null,"Methyl bromide","Kg year",500,null,0]
[null,null,"Pentene","Kg year",500,null,0]
[null,null,"Propene","Kg year",500,null,0]
[null,null,"Styrene","Kg year",500,null,0]
[null,null,"Tetrachloroethane","Kg year",500,null,0]
[null,null,"Tetrachloroethene","Kg year",500,null,0]
[null,null,"Toluene diamine","Kg year",500,null,0]
[null,null,"1,1,1-trichloroethane","Kg year",500,null,0]
[null,null,"Trichloroethylene","Kg year",500,null,0]
[null,null,"Trichlorotoluene","Kg year",500,null,{"$f":"IF(F94/E94<1,0,(F94/E94))","v":0}]
[null,null,"Trimethylbenzene","Kg year",500,null,{"$f":"IF(F95/E95<1,0,(F95/E95))","v":0}]
[null,null,"Xylene","Kg year",500,null,{"$f":"IF(F96/E96<1,0,(F96/E96))","v":0}]
[]
[]
[null,null,"Other VOCs specify"]
[null,null,null,"Kg year",1000,null,{"$f":"IF(F100/E100<1,0,(F100/E100))","v":0}]
[null,null,null,"Kg year",1000,null,0]
[null,null,null,"Kg year",1000,null,0]
[null,null,null,"Kg year",1000,null,0]
[null,null,null,"Kg year",1000,null,0]
[null,null,"Inorganics"]
[null,null,"Fluorine","Kg year",10,null,0]
[null,null,"Chlorine","Kg year",10,null,0]
[null,null,"Bromine","Kg year",10,null,0]
[null,null,"Iodine","Kg year",10,null,0]
[null,null,"Hydrogen Fluoride","Kg year",10,null,0]
[null,null,"Hydrogen Bromide","Kg year",10,null,0]
[null,null,"Hydrogen Iodide","Kg year",10,null,0]
[null,null,"Hydrogen Chloride","Kg year",1000,null,0]
[null,null,"Hydrogen Sulphide","Kg year",10,null,0]
[null,null,"Ammonia","Kg year",100,null,0]
[null,null,"Carbon Disulphide","Kg year",100,null,{"$f":"IF(F116/E116<1,0,(F116/E116))","v":0}]
[null,null,"Particulates","Kg year",100,3584,{"$f":"IF(F117/E117<1,0,(F117/E117))","v":35.840000000000003}]
[]
[null,null,"Other inorganic compounds specify"]
[null,null,"Table A1 Substances","Kg year",0.1,null,{"$f":"IF(E120>0,IF(F120/E120<1,0,(F120/E120)),)","v":0}]
[null,null,"Table A2 Substances","Kg year",1,null,{"$f":"IF(E121>0,IF(F121/E121<1,0,(F121/E121)),)","v":0}]
[null,null,"Table A3 Substances","Kg year",10,null,{"$f":"IF(E122>0,IF(F122/E122<1,0,(F122/E122)),)","v":0}]
[null,null,"Table A4 Substances","Kg year",100,null,{"$f":"IF(E123>0,IF(F123/E123<1,0,(F123/E123)),)","v":0}]
[null,null,"Table A5 Substances","Kg year",1000,null,{"$f":"IF(E124>0,IF(F124/E124<1,0,(F124/E124)),)","v":0}]
[null,null,"Commercial in Confidence\n If you need to use these entries please contact your local EA office"]
[null,null,"","","",null,0,"Note: annual emissions of Oxides of Sulphur and Carbon Monoxide are not entered as they are below the OPRA reporting threshold"]
[null,null,"","","",null,0]
[null,null,"","","",null,0]
[null,null,"","","",null,0]
[null,null,null,null,null,"Total",{"$f":"SUM(G9:G129)","v":45.09}]

{"sheet":"Water","index":5,"n_rows":91,"n_cols":8,"rows_kept":91,"cut":false,"hidden":false,"merged":[[85,2,85,7],[76,2,76,3],[2,2,2,7],[4,5,5,7],[4,3,4,4],[5,3,5,4]]}
[]
[]
[null,null,"Emissions Attribute - Releases to  Water"]
[]
[null,null,"Orgnisation Name:",{"$f":"Introduction!E8","v":"Horizon Nuclear Power Wylfa Ltd"},null,"Please check that the data is entered in the correct units.\nThe Emission Index will only show if the data entered exceeds the threshold."]
[null,null,"Case Number:",{"$f":"Introduction!I8","v":0}]
[null,null,"Please tick box if this sheet is applicable"]
[null,null,"Substance","Units","Emission Threshold","Maximum Quantity","Emission Index","Notes"]
[null,null,"Aldrin","Kg year",1E-3,null,{"$f":"IF(F9/E9<1,0,(F9/E9))","v":0}]
[null,null,"Azinphos-ethyl","Kg year",1E-3,null,{"$f":"IF(F10/E10<1,0,(F10/E10))","v":0}]
[null,null,"DDT all isomers","Kg year",1E-3,null,{"$f":"IF(F11/E11<1,0,(F11/E11))","v":0}]
[null,null,"Endosulfan","Kg year",1E-3,null,0]
[null,null,"Endrin","Kg year",1E-3,null,0]
[null,null,"Fenitrothion","Kg year",1E-3,null,0]
[null,null,"Fenthion","Kg year",1E-3,null,0]
[null,null,"Isodrin","Kg year",1E-3,null,0]
[null,null,"Malathion","Kg year",1E-3,null,0]
[null,null,"Parathion","Kg year",1E-3,null,0]
[]
[null,null,"Azinphos-methyl","Kg year",0.01,null,0]
[null,null,"Chlorfenvinphos","Kg year",0.01,null,0]
[null,null,"Diazinon","Kg year",0.01,null,0]
[null,null,"Dieldrin","Kg year",0.01,null,0]
[null,null,"Hexachlorobenzene","Kg year",0.01,null,0]
[null,null,"Hexachlorocyclohexanes","Kg year",0.01,null,0]
[null,null,"Hexachlorobutadiene","Kg year",0.01,null,0]
[null,null,"Mevinphos","Kg year",0.01,null,0]
[null,null,"Omethoate","Kg year",0.01,null,0]
[null,null,"Parathion methyl","Kg year",0.01,null,0]
[null,null,"Permethrin","Kg year",0.01,null,0]
[null,null,"Polychlorinated biphenyls","Kg year",0.01,null,0]
[null,null,"Triazophos","Kg year",0.01,null,0]
[null,null,"Tributyltin compounds","Kg year",0.01,null,0]
[null,null,"Trifluralin","Kg year",0.01,null,0]
[null,null,"Triphenyltin compounds","Kg year",0.01,null,0]
[]
[null,null,"Atrazin","Kg year",0.1,null,0]
[null,null,"Pentachlorophenol and its compound","Kg year",0.1,null,0]
[null,null,"Simazine","Kg year",0.1,null,0]
[null,null,"Trichlorobenzene all isomers","Kg year",0.1,null,0]
[null,null,null,"Kg year"]
[null,null,"Benzene","Kg year",1,null,0]
[null,null,"Bentazone","Kg year",1,null,0]
[null,null,"Biphenyl","Kg year",1,null,0]
[null,null,"Carbon Tetrachloride","Kg year",1,null,0]
[null,null,"Chloroform","Kg year",1,null,0]
[null,null,"Chloronitrotoluenes","Kg year",1,null,0]
[null,null,"4-Chloro-3-Methylphenol","Kg year",1,null,0]
[null,null,"2-Chlorophenol","Kg year",1,null,0]
[null,null,"2,4 D non-ester","Kg year",1,null,0]
[null,null,"2,4 D ester","Kg year",1,null,0]
[null,null,"Demeton","Kg year",1,null,0]
[null,null,"1,2-Dichloroethane","Kg year",1,null,0]
[null,null,"Dimethoate","Kg year",1,null,0]
[null,null,"Linuron","Kg year",1,null,0]
[null,null,"Mecoprop","Kg year",1,null,0]
[null,null,"Napthalene","Kg year",1,null,0]
[null,null,"Tetrachloroethylene","Kg year",1,null,0]
[null,null,"1,1,1-Trichloroethane","Kg year",1,null,0]
[null,null,"1,1,2-Trichloroethane","Kg year",1,null,0]
[null,null,"Cadmium","Kg year",1,null,0]
[null,null,"Mercury","Kg year",1,null,0]
[]
[null,null,"Nonylphenol Ethoxylate","Kg year",20,null,0]
[null,null,"Nonylphenols","Kg year",20,null,0]
[null,null,"Octylphenols","Kg year",20,null,0]
[null,null,"Toluene","Kg year",20,null,0]
[null,null,"Trichloroethylene","Kg year",20,null,0]
[null,null,"Xylenes","Kg year",20,null,0]
[null,null,"Arsenic","Kg year",20,null,0]
[null,null,"Chromium","Kg year",20,null,0]
[null,null,"Copper","Kg year",20,null,0]
[null,null,"Lead","Kg year",20,null,0]
[null,null,"Nickel","Kg year",20,null,0]
[null,null,"Zinc","Kg year",20,null,{"$f":"IF(F75/E75<1,0,(F75/E75))","v":0}]
[]
[null,null,"All consented substances not listed above specify"]
[null,null,"Table W1 Substances","Kg year",0.01,null,{"$f":"IF(E78>0,IF(F78/E78<1,0,(F78/E78)),)","v":0}]
[null,null,"Table W2 Substances","Kg year",0.1,null,{"$f":"IF(E79>0,IF(F79/E79<1,0,(F79/E79)),)","v":0}]
[null,null,"Table W3 Substances","Kg year",1,null,0]
[null,null,"Table W4 Substances","Kg year",20,null,0]
[null,null,"Table W5 Substances","Kg year",100,null,0]
[null,null,null,"Kg year",null,null,0]
[null,null,null,"Kg year",null,null,0]
[null,null,null,"Kg year",null,null,0]
[null,null,"Commercial in Confidence\nIf you need to use these entries please contact your local EA office"]
[null,null,"","","",null,0]
[null,null,"","","",null,0]
[null,null,"","","",null,0]
[null,null,"","","",null,0]
[null,null,null,null,null,"Total",{"$f":"SUM(G9:G90)","v":0}]

{"sheet":"Land","index":6,"n_rows":14,"n_cols":8,"rows_kept":14,"cut":false,"hidden":false,"merged":[[2,1,2,8],[4,5,5,7]]}
[]
[]
[null,"Emissions Attribute Releases to Land"]
[]
[null,null,"Organisation Name:",{"$f":"Introduction!E8","v":"Horizon Nuclear Power Wylfa Ltd"},null,"Please check that the data is entered in the correct units.\nThe Emission Index will only show if the data entered exceeds the threshold."]
[null,null,"Case Number:",{"$f":"Introduction!I8","v":0}]
[null,null,"Please tick box if this sheet is applicable"]
[null,null,"Substance/Landfill Type","Units","Emission Threshold","Maximum Quantity","Emission Index","Notes"]
[null,null,"Inert waste","Tonnes year",1000,null,{"$f":"IF(F9/E9<1,0,(F9/E9))","v":0}]
[null,null,"Non hazardous waste (non biodegradable)","Tonnes year",350,null,{"$f":"IF(F10/E10<1,0,(F10/E10))","v":0}]
[null,null,"Hazardous waste","Tonnes year",100,null,{"$f":"IF(F11/E11<1,0,(F11/E11))","v":0}]
[null,null,"Non hazardous waste (biodegradable)","Tonnes year",100,null,{"$f":"IF(F12/E12<1,0,(F12/E12))","v":0}]
[]
[null,null,null,null,null,"Total",{"$f":"SUM(G9:G12)","v":0}]

{"sheet":"Sewer","index":7,"n_rows":93,"n_cols":8,"rows_kept":93,"cut":false,"hidden":false,"merged":[[2,1,2,8],[90,4,90,5],[92,4,92,5],[4,5,5,7],[4,3,4,4],[5,3,5,4],[85,2,85,7],[76,2,76,5]]}
[]
[]
[null,"Emissions Attribute - Off-site Disposals to Sewer"]
[]
[null,null,"Orgasination Name:",{"$f":"Introduction!E8","v":"Horizon Nuclear Power Wylfa Ltd"},null,"Please check that the data is entered in the correct units.\nThe Emission Index will only show if the data entered exceeds the threshold."]
[null,null,"Case number:",{"$f":"Introduction!I8","v":0}]
[null,null,"Please tick box if this sheet is applicable"]
[null,null,"Substance","Units","Emission Threshold","Maximum \nQuantity","Emission Index","Notes"]
[null,null,"Aldrin","Kg year",1E-3,null,{"$f":"IF(F9/E9<1,0,(F9/E9))","v":0}]
[null,null,"Azinphos-ethyl","Kg year",1E-3,null,0]
[null,null,"DDT all isomers","Kg year",1E-3,null,0]
[null,null,"Endosulfan","Kg year",1E-3,null,0]
[null,null,"Endrin","Kg year",1E-3,null,0]
[null,null,"Fenitrothion","Kg year",1E-3,null,0]
[null,null,"Fenthion","Kg year",1E-3,null,0]
[null,null,"Isodrin","Kg year",1E-3,null,0]
[null,null,"Malathion","Kg year",1E-3,null,0]
[null,null,"Parathion","Kg year",1E-3,null,0]
[null,null,null,"Kg year"]
[null,null,"Azinphos-methyl","Kg year",0.01,null,{"$f":"IF(F20/E20<1,0,(F20/E20))","v":0}]
[null,null,"chlorfenvinphos","Kg year",0.01,null,0]
[null,null,"Diazinon","Kg year",0.01,null,0]
[null,null,"Dieldrin","Kg year",0.01,null,0]
[null,null,"Hexachlorobenzene","Kg year",0.01,null,0]
[null,null,"Hexachlorocyclohexanes","Kg year",0.01,null,0]
[null,null,"Hexachlorobutadiene","Kg year",0.01,null,0]
[null,null,"Mevinphos","Kg year",0.01,null,0]
[null,null,"Omethoate","Kg year",0.01,null,0]
[null,null,"Parathion methyl","Kg year",0.01,null,0]
[null,null,"Permethrin","Kg year",0.01,null,0]
[null,null,"Polychlorinated biphenyls","Kg year",0.01,null,0]
[null,null,"Triazophos","Kg year",0.01,null,0]
[null,null,"Tributyltin compounds","Kg year",0.01,null,0]
[null,null,"Trifluralin","Kg year",0.01,null,0]
[null,null,"Triphenyltin compounds","Kg year",0.01,null,0]
[]
[null,null,"Atrazin","Kg year",0.1,null,{"$f":"IF(F37/E37<1,0,(F37/E37))","v":0}]
[null,null,"Pentachlorophenol and its compound","Kg year",0.1,null,{"$f":"IF(F38/E38<1,0,(F38/E38))","v":0}]
[null,null,"Simazine","Kg year",0.1,null,{"$f":"IF(F39/E39<1,0,(F39/E39))","v":0}]
[null,null,"Trichlorobenzene all isomers","Kg year",0.1,null,{"$f":"IF(F40/E40<1,0,(F40/E40))","v":0}]
[]
[null,null,"Benzene","Kg year",1,null,{"$f":"IF(F42/E42<1,0,(F42/E42))","v":0}]
[null,null,"Bentazone","Kg year",1,null,0]
[null,null,"Biphenyl","Kg year",1,null,0]
[null,null,"Carbon Tetrachloride","Kg year",1,null,0]
[null,null,"Chloroform","Kg year",1,null,0]
[null,null,"Chloronitrotoluenes","Kg year",1,null,0]
[null,null,"4-Chloro-3-Methylphenol","Kg year",1,null,0]
[null,null,"2-Chlorophenol","Kg year",1,null,0]
[null,null,"2,4 D non-ester","Kg year",1,null,0]
[null,null,"2,4 D ester","Kg year",1,null,0]
[null,null,"Demeton","Kg year",1,null,0]
[null,null,"1,2-Dichloroethane","Kg year",1,null,0]
[null,null,"Dimethoate","Kg year",1,null,0]
[null,null,"Linuron","Kg year",1,null,0]
[null,null,"Mecoprop","Kg year",1,null,0]
[null,null,"Napthalene","Kg year",1,null,0]
[null,null,"Tetrachloroethylene","Kg year",1,null,0]
[null,null,"1,1,1-Trichloroethane","Kg year",1,null,0]
[null,null,"1,1,2-Trichloroethane","Kg year",1,null,0]
[null,null,"Cadmium","Kg year",1,null,0]
[null,null,"Mercury","Kg year",1,null,0]
[]
[null,null,"Nonylphenol Ethoxylate","Kg year",20,null,{"$f":"IF(F64/E64<1,0,(F64/E64))","v":0}]
[null,null,"Nonylphenols","Kg year",20,null,0]
[null,null,"Octylphenols","Kg year",20,null,0]
[null,null,"Toluene","Kg year",20,null,0]
[null,null,"Trichloroethylene","Kg year",20,null,0]
[null,null,"Xylenes","Kg year",20,null,0]
[null,null,"Arsenic","Kg year",20,null,0]
[null,null,"Chromium","Kg year",20,null,0]
[null,null,"Copper","Kg year",20,null,0]
[null,null,"Lead","Kg year",20,null,0]
[null,null,"Nickel","Kg year",20,null,0]
[null,null,"Zinc","Kg year",20,null,0]
[]
[null,null,"All consented substances not listed above specify"]
[null,null,"Chemical Oxygen Demand","Kg year",10000,null,{"$f":"IF(F78/E78<1,0,(F78/E78))","v":0}]
[null,null,"Suspended Solids","Kg year",10000,null,{"$f":"IF(F79/E79<1,0,(F79/E79))","v":0}]
[null,null,"Table S1 Substances","Kg year",0.01,null,{"$f":"IF(E80>0,IF(F80/E80<1,0,(F80/E80)),)","v":0}]
[null,null,"Table S2 Substances","Kg year",0.1,null,0]
[null,null,"Table S3 Substances","Kg year",1,null,0]
[null,null,"Table S4 Substances","Kg year",20,null,0]
[null,null,"Table S5 Substances","Kg year",100,null,0]
[null,null,null,"Kg year",null,null,0]
[null,null,"Commercial in Confidence\n If you need to use these entries please contact your local EA office"]
[null,null,"","","",null,0]
[null,null,"","","",null,0]
[null,null,"","","",null,0]
[null,null,"","","",null,0]
[null,null,null,null,"Total",null,{"$f":"SUM(G9:G90)","v":0}]
[null,null,null,null,"Weighting Factor",null,0.33,"(Weighting factor =  0.33)"]
[null,null,null,null,"Weighted Total",null,{"$f":"G91*G92","v":0}]

{"sheet":"Waste","index":8,"n_rows":51,"n_cols":8,"rows_kept":51,"cut":false,"hidden":false,"merged":[[0,1,0,8],[37,1,37,8],[39,2,39,7],[41,5,42,7],[1,2,1,7],[20,2,20,7],[32,4,32,5],[3,5,4,7],[33,4,33,5],[11,4,11,5],[12,4,12,5],[13,4,13,5],[31,4,31,5],[22,5,23,7],[18,1,18,8]]}
[]
[null,null,"Emissions Attribute - Off-site Disposals of Waste"]
[]
[null,null,"Organisation Name:",{"$f":"'Emissions Summary'!D4","v":"Horizon Nuclear Power Wylfa Ltd"},null,"Please check that the data is entered in the correct units.\nThe Emission Index will only show if the data entered exceeds the threshold."]
[null,null,"Case Number:",{"$f":"'Emissions Summary'!D5","v":0}]
[]
[null,null,"Substance","Units","Emission Threshold","Maximum Quantity","Emission Index","Notes"]
[null,null,"Inert waste","Tonnes year",1000,null,{"$f":"IF(F8/E8<1,0,(F8/E8))","v":0}]
[null,null,"Non hazardous waste (non biodegradable)","Tonnes year",350,null,{"$f":"IF(F9/E9<1,0,(F9/E9))","v":0}]
[null,null,"Hazardous waste","Tonnes year",100,null,{"$f":"IF(F10/E10<1,0,(F10/E10))","v":0}]
[null,null,"Non hazardous waste (biodegradable)","Tonnes year",100,null,{"$f":"IF(F11/E11<1,0,(F11/E11))","v":0}]
[null,null,null,null,"Total",null,{"$f":"SUM(G8:G11)","v":0}]
[null,null,null,null,"Weighting Factor",null,0.33,"(Weighting factor =  0.33)"]
[null,null,null,null,"Weighted Total",null,{"$f":"G12*G13","v":0}]
[]
[]
[]
[]
[]
[]
[null,null,"Emissions Attribute - Off-site Recovery, Recycling, Re-use of Waste"]
[]
[null,null,"Company",{"$f":"D4","v":"Horizon Nuclear Power Wylfa Ltd"},null,"Please check that the data is entered in the correct units.\nThe Emission Index will only show if the data entered exceeds the threshold."]
[null,null,"Permit",{"$f":"D5","v":0}]
[]
[null,null,"Substance","Units","Emission Threshold","Maximum Quantity","Emission Index","Notes"]
[null,null,"Inert waste","Tonnes year",1000,null,{"$f":"IF(F27/E27<1,0,(F27/E27))","v":0}]
[null,null,"Non hazardous waste (non biodegradable)","Tonnes year",350,null,{"$f":"IF(F28/E28<1,0,(F28/E28))","v":0}]
[null,null,"Hazardous waste","Tonnes year",100,null,{"$f":"IF(F29/E29<1,0,(F29/E29))","v":0}]
[null,null,"Non hazardous waste (biodegradable)","Tonnes year",100,null,{"$f":"IF(F30/E30<1,0,(F30/E30))","v":0}]
[]
[null,null,null,null,"Total",null,{"$f":"SUM(G27:G30)","v":0}]
[null,null,null,null,"Weighting Factor",null,0.1,"(Weighting factor =  0.1)"]
[null,null,null,null,"Weighted Total",null,{"$f":"G32*G33","v":0}]
[null,null,null,null,"Off-Site Total",null,{"$f":"G14+G34","v":0}]
[]
[]
[null,"The table below should only be completed for S5.3 or 5.4 activities.  For these activities the Off-Site Waste tables above should be left blank"]
[]
[null,null,"Emissions Attribute - Waste Input"]
[]
[null,null,"Company",{"$f":"D23","v":"Horizon Nuclear Power Wylfa Ltd"},null,"Please check that the data is entered in the correct units.\nThe Emission Index will only show if the data entered exceeds the threshold."]
[null,null,"Permit",{"$f":"D24","v":0}]
[]
[null,null,"Substance","Units","Emission Threshold","Maximum Quantity","Emission Index","Notes"]
[null,null,"Inert waste","Tonnes year",1000,null,{"$f":"IF(F46/E46<1,0,(F46/E46))","v":0}]
[null,null,"Non hazardous waste (non biodegradable)","Tonnes year",750,null,{"$f":"IF(F47/E47<1,0,(F47/E47))","v":0}]
[null,null,"Hazardous waste","Tonnes year",250,null,{"$f":"IF(F48/E48<1,0,(F48/E48))","v":0}]
[null,null,"Non hazardous waste (biodegradable)","Tonnes year",500,null,{"$f":"IF(F49/E49<1,0,(F49/E49))","v":0}]
[]
[null,null,null,null,"Waste Input Total",null,{"$f":"SUM(G46:G49)","v":0}]

{"sheet":"Emissions Summary","index":9,"n_rows":27,"n_cols":5,"rows_kept":27,"cut":false,"hidden":false,"merged":[[20,3,20,4],[1,1,1,12]]}
[]
[null,"Emissions Attribute Summary Sheet"]
[]
[null,null,"Organisation:",{"$f":"Introduction!E8","v":"Horizon Nuclear Power Wylfa Ltd"}]
[null,null,"Case Number:",{"$f":"Introduction!I8","v":0}]
[]
[null,null,"Pathway","Overall Emission Index"]
[null,null,"Air",{"$f":"ROUND(Air!G130,0)","v":45}]
[null,null,"Water",{"$f":"ROUND(Water!G91,0)","v":0}]
[null,null,"Land",{"$f":"ROUND(Land!G14,0)","v":0}]
[null,null,"Sewer",{"$f":"ROUND(Sewer!G93,0)","v":0}]
[null,null,"Waste Off Site",{"$f":"ROUND(Waste!G35,0)","v":0}]
[null,null,"Waste Input",{"$f":"ROUND(Waste!G51,0)","v":0}]
[]
[]
[]
[]
[]
[]
[]
[null,null,"Pathway ","Band"]
[null,null,"Air",{"$f":"IF(D8>0,IF(D8>=10,IF(D8>=100,IF(D8>=1000,IF(D8>=10000,5,4),3),2),1),0)","v":2},{"$f":"IF(D22=0,\"-\",IF(D22=1,\"A\",IF(D22=2,\"B\",IF(D22=3,\"C\",IF(D22=4,\"D\",\"E\")))))","v":"B"}]
[null,null,"Water",0,"-"]
[null,null,"Land",0,"-"]
[null,null,"Sewer",0,"-"]
[null,null,"Waste Off Site",0,"-"]
[null,null,"Waste Input",0,"-"]

{"sheet":"Location","index":10,"n_rows":55,"n_cols":6,"rows_kept":55,"cut":false,"hidden":false,"merged":[[41,3,41,4],[42,3,42,4],[41,2,42,2],[6,3,6,5],[28,2,29,2],[32,5,39,5],[4,1,4,6],[10,5,15,5],[16,5,19,5],[28,5,31,5],[20,5,22,5],[7,3,7,5],[24,5,27,5],[24,3,24,4]]}
[null,"Yes"]
[null,"No"]
[]
[]
[null,"Location Attribute"]
[]
[null,null,"Organisation Name:",{"$f":"Introduction!E8","v":"Horizon Nuclear Power Wylfa Ltd"}]
[null,null,"Case Number:",{"$f":"'Emissions Summary'!$D$5","v":0}]
[]
[null,null,"Parameter","Yes/No","Available","Score"]
[null,null,"Human Occupation/Presence:     ",null,null,{"$f":"IF(D12=\"Yes\",E12, IF(D14=\"Yes\",E14,IF(D16=\"Yes\",E16,0)))","v":1}]
[null,null,"a) if within 50m of the boundary",null,5]
[null,null," or:"]
[null,null,"b) if greater than 50m but less than 250m of boundary",null,3]
[null,null,"or:"]
[null,null,"c) if greater than 250m but less than 1km of boundary","Yes",1]
[null,null,"Statutory sites designated under Habitats Directive or CROW Act 2000:",null,null,{"$f":"IF(D18=\"Yes\",E18, IF(D20=\"Yes\",E20,0))","v":3}]
[null,null,"a) if \"relevant\" under Habitats Directive","Yes",3]
[null,null,"or"]
[null,null,"b) if CROW Act 2000 assessment required","Yes",2]
[null,null,"a) if on an aquifer and within a Groundwater Protection Zone","No",2,{"$f":"IF(D21=\"Yes\",E21, IF(D23=\"Yes\",E23,0))","v":0}]
[null,null,"or"]
[null,null,"b) if on an aquifer and not within a Groundwater Protection Zone ","No",1]
[]
[null,null,"Sensitivity of receiving waters (information available from Agency's \"What's in your backyard\" webpages), if:",null,null,{"$f":"IF(D28=\"Yes\",E28,IF(D27=\"Yes\",E27,IF(D26=\"Yes\",E26,0)))","v":3}]
[null,null,"a) grade 5 ","No",1]
[null,null,"b) river category grade 4 or 3 ","No",2]
[null,null,"c) river category grade 2 or 1 or estuarine","Yes",3]
[null,null,"a) If there is direct runoff from the site without interceptors or other active control measures",null,null,{"$f":"IF(D30=\"Yes\",E30, IF(D32=\"Yes\",E32,0))","v":1}]
[null,null,null,"No",2]
[null,null,"or"]
[null,null,"b) If as above but there are interceptors or active control measures","Yes",1]
[null,null,"a) If within an Air Quality Management Zone (AQMZ) and emit",null,null,{"$f":"IF(D34=\"Yes\",E34,IF(D37=\"Yes\",E37,IF(D39=\"Yes\",E39,0)))","v":0}]
[null,null,"    pollutant that has been declared for that AQMZ ","No",3]
[null,null,"or"]
[null,null,"b) If within 2km of an Air Quality Management Zone (AQMZ) and emit"]
[null,null,"    pollutant that has been declared for that AQMZ ","No",2,{"$f":"IF(D40=\"Y\",E40,IF(D39=\"Y\",E39,IF(D38=\"Y\",E38,0)))","v":0}]
[null,null,"or"]
[null,null,"c) as a) except do not emit pollutants that have be declared for the ","No",1]
[null,null,"    AQMZ"]
[null,null,"If within a flood plain ","Yes",2,{"$f":"IF(D41=\"Yes\",E41,0)","v":2}]
[null,null,"Maximum Score = 20\nBand A = 0 - 4, B = 5 - 8, C = 9 - 12, D = 13 - 17 and E = 18 - 20","Total",null,{"$f":"SUM(F11:F41)","v":10}]
[null,null,null,"Band",null,{"$f":"IF(F42<=4,\"A\",IF(F42<=8,\"B\",IF(F42<=12,\"C\",IF(F42<=17,\"D\",\"E\"))))","v":"C"}]
[]
[]
[]
[]
[null,null,"Location Attribute Totals","Score"]
[null,null,"Occupation ",{"$f":"F11","v":1}]
[null,null,"Habitats",{"$f":"F17","v":3}]
[null,null,"Aquifers",{"$f":"F21","v":0}]
[null,null,"Receiving Waters",{"$f":"F25","v":3}]
[null,null,"Run Off",{"$f":"F29","v":1}]
[null,null,"Air Quality",{"$f":"F33","v":0}]
[null,null,"Flood Plain",{"$f":"F41","v":2}]

{"sheet":"Op Perf","index":11,"n_rows":999,"n_cols":19,"rows_kept":999,"cut":false,"hidden":false,"merged":[[223,11,229,11],[207,11,208,12],[207,34,207,40],[216,11,222,11],[207,20,207,26],[207,27,207,33],[207,13,207,19],[209,11,215,11],[37,7,37,8],[62,3,62,8],[66,7,66,8],[63,7,63,8],[64,7,64,8],[47,3,47,8],[48,3,48,8],[49,3,49,8],[61,3,61,8],[60,2,60,8],[57,7,57,8],[56,7,56,8],[50,7,50,8],[51,7,51,8],[52,7,52,8],[53,7,53,8],[46,3,46,8],[36,7,36,8],[41,2,41,8],[42,3,42,8],[44,3,44,8],[38,7,38,8],[39,7,39,8],[33,7,33,8],[45,3,45,8],[43,3,43,8],[80,7,80,8],[92,3,97,3],[92,4,97,4],[92,5,97,5],[86,4,91,4],[65,7,65,8],[67,3,67,9],[69,7,69,8],[70,7,70,8],[71,7,71,8],[68,3,68,9],[72,3,72,8],[86,3,91,3],[86,5,91,5],[84,2,84,4],[73,7,73,8],[74,7,74,8],[75,7,75,8],[76,7,76,8],[81,7,81,8],[92,2,97,2],[77,7,77,8],[78,7,78,8],[79,7,79,8],[110,2,115,2],[110,4,114,4],[110,5,115,5],[104,3,109,3],[104,2,109,2],[104,4,109,4],[104,5,109,5],[110,3,115,3],[98,2,103,2],[98,4,103,4],[98,5,103,5],[98,3,103,3],[25,9,26,9],[34,7,34,8],[35,7,35,8],[30,7,30,8],[31,7,31,8],[32,7,32,8],[25,7,26,8],[27,7,27,8],[28,7,28,8],[29,7,29,8],[54,7,54,8],[55,7,55,8],[3,2,3,8],[23,3,23,8],[24,3,24,8],[7,2,7,8],[8,3,8,8],[21,3,21,8],[22,3,22,8],[20,2,20,8],[9,7,9,8],[10,7,10,8],[11,7,11,8],[12,7,12,8],[13,7,13,8],[14,7,14,8],[18,7,18,8],[5,7,5,8],[25,4,26,4],[15,7,15,8],[16,7,16,8],[17,7,17,8],[25,5,26,5],[25,6,26,6],[119,8,120,9],[119,7,123,7],[189,4,189,9],[155,3,155,8],[162,3,162,7],[130,2,131,3],[151,3,152,3],[151,4,152,6],[151,7,152,7],[151,8,152,8],[149,3,149,6]]}
["Yes"]
["No"]
[]
[null,null,"Operator Performance"]
[]
[null,null,null,null,"Yes/No","Points available","Points scored","Post or group responsible for each requirement",null,"Document reference (*) or date by which systems will be in place (*see para 4.4.2)"]
[]
[null,null,"Operations and Maintenance section - 20% "]
[null,null,null,"Effective operational and prev maintenance systems shall be employed on all aspects of the process where any failure could impact on the environment.  "]
[null,null,1,"Are there documented operating procedures for operations that may have an adverse impact on the environment?","Yes",2,{"$f":"IF(E10=\"yes\",F10,0)","v":2},null,null,"Prior to 01/04/2025"]
[null,null,2,"Is there a defined procedure for identifying, reviewing and prioritising items of plant for which a preventative maintenance regime is appropriate?","Yes",2,2,null,null,"Prior to 01/04/2025"]
[null,null,3,"Are there documented procedures for monitoring emissions or impacts?","Yes",2,2,null,null,"Prior to 01/04/2025"]
[null,null,4,"Is there a preventative maintenance programme for those items of plant whose failure could lead to impact on the environment? ","Yes",1,1,null,null,"Prior to 01/04/2025"]
[null,null,5,"Does the preventative maintenance programme include regular checks and formal inspections of 'static'  items such as tanks, pipework, retaining walls, bunds and ducts?","Yes",1,1,null,null,"Prior to 01/04/2025"]
[null,null,6,"Do the operations and maintenance systems include auditing environmental performance?","Yes",2,2,null,null,"Prior to 01/04/2025"]
[null,null,7,"Are the reports, results and recommendations arising from audits made available to senior management on a regular basis? ","Yes",2,2,null,null,"Prior to 01/04/2025"]
[null,null,8,"In the last two years, has there been any notifiable incident or release for which lack of maintenance was a contributory cause ?","Yes",-2,-2,"Horizon contractor carrying out off-shore ground investigations-  leak of 50 ml oil to sea.",null,"N/A"]
[null,null,9,"In the last two years, has there been any notifiable incident or release for which the root cause could not be identified?","No",-3,0,null,null,"N/A"]
[null,null,null,"Operations and Maintenance Total",null,12,{"$f":"SUM(G10:G18)","v":10},{"$f":"G19/F19","v":0.83333333333333337},null,{"$f":"H19*H158/10","v":1.6666666666666667}]
[]
[null,null,"Competence and  Training - 20% "]
[null,null,null,"The Operator shall ensure that all relevant management and operational staff (including contractors and those responsible for purchasing equipment and materials) receive adequate training with regard to their responsibilities under the Permit. Particular attention should be given to the following:"]
[null,null,null,"   Minimisation of all potential environmental effects from operation under normal, abnormal, start up and shut down circumstances;"]
[null,null,null,"   Prevention of accidental emissions and action to be taken when accidental emissions occur; and"]
[null,null,null,"   The need to report deviation from the permit."]
[null,null,1,"Has a training needs assessment  been carried out which: ","Yes",3,{"$f":"IF(E26=\"yes\",F26,0)","v":3},null,null,"Prior to 01/04/2025"]
[null,null,null,"   Identifies all posts for which   specific environmental awareness training is required; and                                               Identifies the scope and level to which such training is to be given?"]
[null,null,2,"Are training systems in place for all relevant staff that cover the following factors:"]
[null,null,null,"    the regulatory requirements associated with the Permit as they affect their work activities and responsibilities; ","Yes",2,{"$f":"IF(E29=\"yes\",F29,0)","v":2},null,null,"Prior to 01/04/2025"]
[null,null,null,"    likely potential environmental impacts which may be caused by plant under their control. This should cover both normal and abnormal circumstances; ","Yes",2,2,null,null,"Prior to 01/04/2025"]
[null,null,null,"    reporting procedures to inform supervisors or managers of deviations from  permit conditions;","Yes",1,1,null,null,"Prior to 01/04/2025"]
[null,null,null,"    procedures to be used by supervisors or managers and  for the reporting of deviations from permit conditions to the Agency; and","Yes",2,2,null,null,"Prior to 01/04/2025"]
[null,null,null,"    prevention of accidental emissions and action to be taken when accidental emissions occur?","Yes",2,2,null,null,"Prior to 01/04/2025"]
[null,null,3,"Are the skills and competencies necessary for key posts documented and are records of training needs and training received maintained?","Yes",1,1,null,null,"Prior to 01/04/2025"]
[null,null,4,"Do the key posts include contractors, those responsible for liaising with contractors and those purchasing equipment and materials?","Yes",1,1,null,null,"Prior to 01/04/2025"]
[null,null,5,"Do you assess the potential environmental risks posed by the work of contractors and provide instructions to contractors about protecting the environment while working on site?","Yes",1,1,null,null,{"$f":"$J$34","v":"Prior to 01/04/2025"}]
[null,null,6,"In the last 2 years, have there been any notifiable incidents or releases, which it has been identified that lack of training was a contributory cause ?","No",-2,0,null,null,"N/A"]
[null,null,7,"Are there industry standards for training in this sector (e.g. WAMITAB) and if so do you apply them?\n(If no industry standards please leave blank)",null,-2,{"$f":"IF(E38=\"no\",F38,0)","v":0},null,null,"N/A"]
[null,null,8,"Are individual and organisational training needs reviewed on a regular (e.g. annual) basis? ","Yes",2,{"$f":"IF(E39=\"yes\",F39,0)","v":2},null,null,{"$f":"$J$34","v":"Prior to 01/04/2025"}]
[null,null,null,"Competance Training Total",null,17,{"$f":"SUM(G26:G39)","v":17}]
[]
[null,null,"Emergency planning - 20% "]
[null,null,null,"The Operator shall maintain an accident management plan which identifies potential events or failures which might lead to an environmental impact. The plan shall identify: "]
[null,null,null,"   the likelihood of, and the actions to be taken to minimise, these potential occurrences;"]
[null,null,null,"   the environmental consequences and an action plan to deal with such occurrences;"]
[null,null,null,"   The Operator shall have a written procedure for handling, investigating, communicating and reporting of incidents and actual or potential non-compliance with permit conditions including taking action to mitigate any impacts caused and for initiating and completing corrective action.\n   In the case of abnormal emissions the operator shall;"]
[]
[null,null,null,"   investigate and undertake remedial action immediately;"]
[null,null,null,"   promptly record the events and actions taken; and"]
[null,null,null,"   ensure the Regulator is made aware, as soon as practicable."]
[null,null,1,"Is there an accident plan that complies with guidance covering the following aspects of foreseeable scenarios: likelihood, consequences,actions to prevent, action to take in the event it occurs?","Yes",4,{"$f":"IF(E51=\"yes\",F51,0)","v":4},null,null,{"$f":"$J$34","v":"Prior to 01/04/2025"}]
[null,null,2,"Has the plan identified areas where improvement is needed? ","No",1,{"$f":"IF(E52=\"yes\",F52,0)","v":0},null,null,"N/A"]
[null,null,3,"Where improvement has been identified, does the plan include an implementation programme with acceptable timescales to the Agency? If not, 2 points will be deducted. ",null,-2,{"$f":"IF(E53=\"no\",F53,0)","v":0},null,null,"N/A"]
[null,null,4,"Are there written procedures for handling, investigating, communicating and reporting actual or potential non compliance with operating procedures or emission limits?  ","Yes",1,{"$f":"IF(E54=\"yes\",F54,0)","v":1},null,null,{"$f":"$J$34","v":"Prior to 01/04/2025"}]
[null,null,5,"Are there written procedures for handling, investigating, communicating and reporting environmental complaints?","Yes",1,{"$f":"IF(E55=\"yes\",F55,0)","v":1},null,null,{"$f":"$J$34","v":"Prior to 01/04/2025"}]
[null,null,6,"Are there written procedures for investigating incidents, (and near-misses) including identifying suitable corrective action and following up implementation of that action?","Yes",2,{"$f":"IF(E56=\"yes\",F56,0)","v":2},null,null,{"$f":"$J$34","v":"Prior to 01/04/2025"}]
[null,null,7,"In the last 2 years, have there been any notifiable incidents or releases for which it has been identified that lack of emergency planning was a contributory cause ?","No",-2,{"$f":"IF(E57=\"yes\",F57,0)","v":0},null,null,"N/A"]
[null,null,8,"Are there audit records of investigations into non compliance, complaints and incidents? Does the audit cover follow up actions? Do the audit reports go to senior managers?  ","Yes",3,{"$f":"IF(E58=\"yes\",F58,0)","v":3},null,null,{"$f":"$J$34","v":"Prior to 01/04/2025"}]
[null,null,null,"Emergency planning Total",null,12,{"$f":"SUM(G51:G58)","v":11}]
[]
[null,null,"Organisation - 40% "]
[null,null,null,"The following aspects of  site management procedures and controls may not be in the permit conditions but are likely to have an impact on the Agency resources required to apply the Env Permitting Regulations."]
[null,null,1,"Do you operate an externally audited environment management system, if so answer one of the following questions.  N.B Please enter your Certificate Number, Name of certification body and their UKAS Registration Number in the space for document reference."]
[null,null,1.1000000000000001,"Is your Environmental Management System EMAS registered?\nIf yes select Y and go to question 4.","No",20,{"$f":"IF(E64=\"yes\",F64,0)","v":0},null,null,"N/A"]
[null,null,1.2,"Is your Environmental Management System certified to ISO 14001? \nIf yes enter Y and go to questions 3 and 4.","Yes",15,{"$f":"IF(E65=\"yes\",F65,0)","v":15},null,null,"Doc reg: HG-M-02-MAN-01-02, Horizon Management System (HMS) 4.0"]
[null,null,1.3,"Is your system an Environmental Mangement System subject to external audit through a third party audit programme with a published methodology (excludes in-house company audit programme).\nIf yes enter and go to questions 3 and 4.",null,12,{"$f":"IF(E66=\"yes\",F66,0)","v":0}]
[null,null,null,"Sub Total",null,"Max 20",{"$f":"IF(E64=\"yes\",F64,IF(E65=\"yes\",F65,IF(E66=\"yes\",F66,0)))","v":15}]
[null,null,2,"If you do not operate an externally audited environmental management system then assess your system against the criteria below:"]
[null,null,2.1,"Has your company adopted an environmental policy and programme which :    "]
[null,null,null,"   includes a commitment to continual improvement and prevention of pollution?",null,1,{"$f":"IF(E70=\"yes\",F70,0)","v":0}]
[null,null,null,"   includes a commitment to comply with relevant legislation, and with other requirements that the organisation subscribes to?",null,1,{"$f":"IF(E71=\"yes\",F71,0)","v":0}]
[null,null,null,"   identifies, sets, monitors and reviews environmental objectives, independently of the permit?",null,1,{"$f":"IF(E72=\"yes\",F72,0)","v":0}]
[null,null,2.2000000000000002,"Are there procedures that incorporate environmental issues into the following areas (as supported by demonstrable evidence e.g. written procedures):"]
[null,null,null,"   the control of process change on the installation; ",null,1,{"$f":"IF(E74=\"yes\",F74,0)","v":0}]
[null,null,null,"   design and review of new facilities (including provision for their decommisioning), engineering and other capital projects; ",null,1,0]
[null,null,null,"   capital approval; ",null,1,0]
[null,null,null,"   purchasing policy;",null,1,0]
[null,null,2.2999999999999998,"Are there audits, at least annually, to check that all activities are being carried out in conformity with the above requirements? ",null,1,0]
[null,null,2.4,"Are they independent? (name the auditing body)",null,2,0]
[null,null,2.5,"Are there reports annually on environmental performance, objectives and targets, future planned improvements and or facilitate (participate in) local community liaison meetings?",null,1,0]
[null,null,3,"Does your company produce a public environmental statement?  You may score in this box for ISO 14001 and industry systems but not for EMAS as this is a requiremen for EMAS.","No",1,0,null,null,"N/A"]
[null,null,4,"Within the past 5 years have you failed to meet an improvement condition either set by the Agency in a Permit or Variation by the due date, without prior agreement? (minus 2 for each failure). ADD NUMBER OF FAILURES NOT Y OR N",null,-2,{"$f":"E82*F82","v":0},null,null,"N/A"]
[null,null,null,"Organisational Totals ",null,20,{"$f":"IF(E64=\"yes\",G67+G82,IF(OR(E65=\"yes\",E66=\"yes\"),G67+G81+G82,SUM(G70:G82)))","v":15}]
[]
[null,null,"Enforcement History (0 to -40% weighting)"]
[null,null,null,null,null,null,null,"Notice etc","Date Issued","Date Spent"]
[null,null,1,"Enforcement , Improvement, Works, Compliance or Restoration Notices issued in the past year by the Environment Agency under any legislation, by the Health and Safety Executive relevant to the COMAH Regulations or by local authorities under Part I of the Environmental Protection Act 1990 or relevant notice or Abatement Notices issued by local authorities or magistrates courts under Part III of the Environmental Protection Act 1990",0,"None      0\n1st       - 5\n2nd      -10\n3rd or more\n           -40"]
[]
[]
[]
[]
[]
[null,null,2,"Formal cautions, Enforcement Undertakings or Fixed Monetary Penalties issued by the Environment Agency in respect of offences under any legislation in the last 3 years.",0,"None      0\n1st       - 5\n2nd      -10\n3rd or more\n           -40"]
[]
[]
[]
[]
[]
[null,null,3,"Prohibition, Stop, Suspension or Revocation Notices issued by the Environment Agency under any legislation, by the Health and Safety Executive relevant to the COMAH Regulations or by local authorities under Part I of the Environmental Protection Act 1990 in the last 3 years ",0,"None      0\n1st      - 10\n2nd or more\n            -40\n"]
[]
[]
[]
[]
[]
[null,null,4,"Convictions on prosecutions brought by the Environment Agency under any legislation, by the Health and Safety Executive relevant to the COMAH regulations or by local authorities (in respect of offences under Parts I or III of the Environmental Protection Act 1990) in last 5 years (10 years where imprisonment was imposed).  Or any Variable Monetary Penalty.                                                             [NB each individual offence counts separately].  ",0,"None      0\n1st      - 15\n2nd or more\n            -40\n"]
[]
[]
[]
[]
[]
[null,null,null,null,0]
[]
[]
[]
[]
[]
[]
[null,null,null,"Enforcement History Total"]
[null,null,null,null,"Entered","Spent","Extant","Score"]
[null,null,1,"Enforcement etc Notices",{"$f":"EnforcementTotal","v":0},0,{"$f":"E120-F120","v":0},{"$f":"H232","v":0}]
[null,null,2,"Formal Cautions etc",{"$f":"CautionTotal","v":0},0,{"$f":"E121-F121","v":0}]
[null,null,3,"Prohibition etc Notices",{"$f":"ProhibitionTotal","v":0},0,{"$f":"E122-F122","v":0}]
[null,null,4,"Convictions on Prosecutions etc",{"$f":"ConvictionTotal","v":0},0,{"$f":"E123-F123","v":0}]
[null,null,5,"COMAH Improvement Notices",{"$f":"COMAHTotal","v":0},0,{"$f":"E124-F124","v":0}]
[]
[null,null,null,"Enforcement History Total (min -40)",null,null,null,{"$f":"TotalScore","v":0}]
[]
[]
[]
[]
[]
[]
[]
[]
[]
[]
[]
[]
[]
[]
[]
[]
[]
[]
[]
[]
[]
[]
[]
[null,null,null,"Band E= less than 2 \n D= 2 to 3.99, C= 4 to 5.99, B= 6 to 7.99 , A= 8 to 11",null,null,null,"BAND=",{"$f":"IF($G$118 = -40, \"E\",IF($I$163<2,\"E\",IF($I$163<4,\"D\",IF($I$163<6,\"C\",IF($I$163<8,\"B\",IF($I$163<12,\"A\"))))))","v":"A"}]
[]
[null,null,null,"Company :",{"$f":"Introduction!E8","v":"Horizon Nuclear Power Wylfa Ltd"},null,null,"Permit: ",{"$f":"Introduction!I8","v":0}]
[]
[]
[]
[null,null,null,"Data calculations generating the above graph"]
[null,null,null,"Summary","Max","Score from above","Normalised to scale out of 10","Weighting","Weighted score"]
[null,null,null,"Maintenance 20%",12,{"$f":"(G19)","v":10},{"$f":"10/E158*F158","v":8.3333333333333339},20,{"$f":"G158*H158/100","v":1.666666666666667}]
[null,null,null,"Training 20%",17,{"$f":"(G40)","v":17},{"$f":"10/E159*F159","v":10},20,{"$f":"G159*H159/100","v":2}]
[null,null,null,"Emergency Planning 20%",12,{"$f":"(G59)","v":11},{"$f":"10/E160*F160","v":9.1666666666666679},20,{"$f":"G160*H160/100","v":1.8333333333333337}]
[null,null,null,"Organisation 40%",20,{"$f":"(G83)","v":15},{"$f":"10/E161*F161","v":7.5},40,{"$f":"G161*H161/100","v":3}]
[null,null,null,"Enforcement History Penalty -up to 40%",-40,{"$f":"ABS(H126)","v":0},{"$f":"10/E162*F162","v":0},40,{"$f":"G162*H162/100","v":0}]
[null,null,null,"Overall average weighted score",null,null,null,null,{"$f":"SUM(I158:I162)","v":8.5}]
[]
[]
[]
[]
[]
[]
[]
[]
[]
[]
[]
[]
[]
[]
[]
[]
[]
[]
[]
[]
[]
[]
[]
[]
[]
[]
[1,"Enforcement etc Notices",null,null,{"$f":"CONCATENATE(E201,D87)","v":"Please type in the Enforcement , Improvement, Works, Compliance or Restoration Notices issued in the past year by the Environment Agency under any legislation, by the Health and Safety Executive relevant to the COMAH Regulations or by local authorities under Part I of the Environmental Protection Act 1990 or relevant notice or Abatement Notices issued by local authorities or magistrates courts under Part III of the Environmental Protection Act 1990"}]
[2,"Formal Cautions etc",null,null,{"$f":"CONCATENATE(E201,D93)","v":"Please type in the Formal cautions, Enforcement Undertakings or Fixed Monetary Penalties issued by the Environment Agency in respect of offences under any legislation in the last 3 years."}]
[3,"Prohibition etc Notices",null,null,{"$f":"CONCATENATE(E201,D99)","v":"Please type in the Prohibition, Stop, Suspension or Revocation Notices issued by the Environment Agency under any legislation, by the Health and Safety Executive relevant to the COMAH Regulations or by local authorities under Part I of the Environmental Protection Act 1990 in the last 3 years "}]
[4,"Convictions and Var Mon Penalties",null,null,{"$f":"CONCATENATE(E201,D105)","v":"Please type in the Convictions on prosecutions brought by the Environment Agency under any legislation, by the Health and Safety Executive relevant to the COMAH regulations or by local authorities (in respect of offences under Parts I or III of the Environmental Protection Act 1990) in last 5 years (10 years where imprisonment was imposed).  Or any Variable Monetary Penalty.                                                             [NB each individual offence counts separately].  "}]
[5,"Not used",null,null,"Not used"]
[]
[]
[]
[]
[]
[null,null,null,null,"Once a selection is made from the pick list, any information already stored will be loaded into this form and can then be amended, deleted or added to as necessary."]
[null,null,null,null,"Please type in the "]
[]
[null,null,1,"Enforcement or Works Notices"]
[null,null,2,"Formal Cautions"]
[null,null,3,"Prohibition, Suspension or Revocation\n Notices"]
[null,null,4,"Convictions on Prosecutions"]
[null,null,5,"Not used"]
[]
[]
[]
[]
[]
[]
[]
[]
[]
[]
[]
[]
[]
[null,null,null,null,null,null,null,1,2,"3 plus"]
[null,null,null,null,{"$f":"E119","v":"Entered"},"Spent","Extant"]
[null,null,{"$f":"C120","v":1},"Enforcement etc Notices",0,0,0,-5,-10,-40]
[null,null,2,"Formal Cautions etc",0,0,0,-5,-10,-40]
[null,null,3,"Prohibition etc Notices",0,0,0,-10,-40,-40]
[null,null,4,"Convictions on Prosecutions etc",0,0,0,-15,-40,-40]
[null,null,5,"COMAH Improvement Notices",0,0,0]
[null,null,null,null,null,"Total",{"$f":"SUM(G223:G227)","v":0}]
[]
[]
[null,null,"Points",null,null,null,"Score (2 or less)","Total Score"]
[null,null,1,"Enforcement or Works Notices",null,null,{"$f":"G223*H223","v":0},{"$f":"IF(G228>2,-40,G236)","v":0}]
[null,null,2,"Formal Cautions",null,null,{"$f":"G224*H224","v":0}]
[null,null,3,"Prohibition, Suspension or Revocation Notices",null,null,{"$f":"IF(G225=1,H225,IF(G225=2,I225,0))","v":0}]
[null,null,4,"Convictions on Prosecutions",null,null,{"$f":"IF(G226=1,H226,IF(G226=2,I226,0))","v":0}]
[null,null,null,null,null,null,{"$f":"SUM(G232:G235)","v":0}]
[]
[]
[]
[]
[]
[]
[]
[]
[]
[]
[]
[]
[null,null,null,null,null,null,null,null,null,null,null,null,null,"Enforcement","Caution","Prohib","Sentence","COM Fail","Score"]
[null,null,null,null,null,null,null,null,null,null,null,"EF = Enforcement Notice",null,0,0,0,0,0,0]
[null,null,null,null,null,null,null,null,null,null,null,"C = Caution",null,0,0,0,0,1,-5]
[null,null,null,null,null,null,null,null,null,null,null,"P = Prohibition",null,0,0,0,0,2,-10]
[null,null,null,null,null,null,null,null,null,null,null,"S = Sentence (Conviction)",null,0,0,0,0,3,-40]
[null,null,null,null,null,null,null,null,null,null,null,"F = COMAH Failure",null,0,0,0,1,0,-15]
[null,null,null,null,null,null,null,null,null,null,null,null,null,0,0,0,1,1,-40]
[null,null,null,null,null,null,null,null,null,null,null,null,null,0,0,0,1,2,-40]
[null,null,null,null,null,null,null,null,null,null,null,null,null,0,0,0,1,3,-40]
[null,null,null,null,null,null,null,null,null,null,null,null,null,0,0,0,2,0,-40]
[null,null,null,null,null,null,null,null,null,null,null,null,null,0,0,0,2,1,-40]
[null,null,null,null,null,null,null,null,null,null,null,null,null,0,0,0,2,2,-40]
[null,null,null,null,null,null,null,null,null,null,null,null,null,0,0,0,2,3,-40]
[null,null,null,null,null,null,null,null,null,null,null,null,null,0,0,1,0,0,-10]
[null,null,null,null,null,null,null,null,null,null,null,null,null,0,0,1,0,1,-15]
[null,null,null,null,null,null,null,null,null,null,null,null,null,0,0,1,0,2,-20]
[null,null,null,null,null,null,null,null,null,null,null,null,null,0,0,1,0,3,-40]
[null,null,null,null,null,null,null,null,null,null,null,null,null,0,0,1,1,0,-40]
[null,null,null,null,null,null,null,null,null,null,null,null,null,0,0,1,1,1,-40]
[null,null,null,null,null,null,null,null,null,null,null,null,null,0,0,1,1,2,-40]
[null,null,null,null,null,null,null,null,null,null,null,null,null,0,0,1,1,3,-40]
[null,null,null,null,null,null,null,null,null,null,null,null,null,0,0,1,2,0,-40]
[null,null,null,null,null,null,null,null,null,null,null,null,null,0,0,1,2,1,-40]
[null,null,null,null,null,null,null,null,null,null,null,null,null,0,0,1,2,2,-40]
[null,null,null,null,null,null,null,null,null,null,null,null,null,0,0,1,2,3,-40]
[null,null,null,null,null,null,null,null,null,null,null,null,null,0,0,2,0,0,-40]
[null,null,null,null,null,null,null,null,null,null,null,null,null,0,0,2,0,1,-40]
[null,null,null,null,null,null,null,null,null,null,null,null,null,0,0,2,0,2,-40]
[null,null,null,null,null,null,null,null,null,null,null,null,null,0,0,2,0,3,-40]
[null,null,null,null,null,null,null,null,null,null,null,null,null,0,0,2,1,0,-40]
[null,null,null,null,null,null,null,null,null,null,null,null,null,0,0,2,1,1,-40]
[null,null,null,null,null,null,null,null,null,null,null,null,null,0,0,2,1,2,-40]
[null,null,null,null,null,null,null,null,null,null,null,null,null,0,0,2,1,3,-40]
[null,null,null,null,null,null,null,null,null,null,null,null,null,0,0,2,2,0,-40]
[null,null,null,null,null,null,null,null,null,null,null,null,null,0,0,2,2,1,-40]
[null,null,null,null,null,null,null,null,null,null,null,null,null,0,0,2,2,2,-40]
[null,null,null,null,null,null,null,null,null,null,null,null,null,0,0,2,2,3,-40]
[null,null,null,null,null,null,null,null,null,null,null,null,null,0,0,3,0,0,-40]
[null,null,null,null,null,null,null,null,null,null,null,null,null,0,0,3,0,1,-40]
[null,null,null,null,null,null,null,null,null,null,null,null,null,0,0,3,0,2,-40]
[null,null,null,null,null,null,null,null,null,null,null,null,null,0,0,3,0,3,-40]
[null,null,null,null,null,null,null,null,null,null,null,null,null,0,0,3,1,0,-40]
[null,null,null,null,null,null,null,null,null,null,null,null,null,0,0,3,1,1,-40]
[null,null,null,null,null,null,null,null,null,null,null,null,null,0,0,3,1,2,-40]
[null,null,null,null,null,null,null,null,null,null,null,null,null,0,0,3,1,3,-40]
[null,null,null,null,null,null,null,null,null,null,null,null,null,0,0,3,2,0,-40]
[null,null,null,null,null,null,null,null,null,null,null,null,null,0,0,3,2,1,-40]
[null,null,null,null,null,null,null,null,null,null,null,null,null,0,0,3,2,2,-40]
[null,null,null,null,null,null,null,null,null,null,null,null,null,0,0,3,2,3,-40]
[null,null,null,null,null,null,null,null,null,null,null,null,null,0,1,0,0,0,-5]
[null,null,null,null,null,null,null,null,null,null,null,null,null,0,1,0,0,1,-10]
[null,null,null,null,null,null,null,null,null,null,null,null,null,0,1,0,0,2,-40]
[null,null,null,null,null,null,null,null,null,null,null,null,null,0,1,0,0,3,-40]
[null,null,null,null,null,null,null,null,null,null,null,null,null,0,1,0,1,0,-40]
[null,null,null,null,null,null,null,null,null,null,null,null,null,0,1,0,1,1,-40]
[null,null,null,null,null,null,null,null,null,null,null,null,null,0,1,0,1,2,-40]
[null,null,null,null,null,null,null,null,null,null,null,null,null,0,1,0,1,3,-40]
[null,null,null,null,null,null,null,null,null,null,null,null,null,0,1,0,2,0,-40]
[null,null,null,null,null,null,null,null,null,null,null,null,null,0,1,0,2,1,-40]
[null,null,null,null,null,null,null,null,null,null,null,null,null,0,1,0,2,2,-40]
[null,null,null,null,null,null,null,null,null,null,null,null,null,0,1,0,2,3,-40]
[null,null,null,null,null,null,null,null,null,null,null,null,null,0,1,1,0,0,-15]
[null,null,null,null,null,null,null,null,null,null,null,null,null,0,1,1,0,1,-20]
[null,null,null,null,null,null,null,null,null,null,null,null,null,0,1,1,0,2,-40]
[null,null,null,null,null,null,null,null,null,null,null,null,null,0,1,1,0,3,-40]
[null,null,null,null,null,null,null,null,null,null,null,null,null,0,1,1,1,0,-40]
[null,null,null,null,null,null,null,null,null,null,null,null,null,0,1,1,1,1,-40]
[null,null,null,null,null,null,null,null,null,null,null,null,null,0,1,1,1,2,-40]
[null,null,null,null,null,null,null,null,null,null,null,null,null,0,1,1,1,3,-40]
[null,null,null,null,null,null,null,null,null,null,null,null,null,0,1,1,2,0,-40]
[null,null,null,null,null,null,null,null,null,null,null,null,null,0,1,1,2,1,-40]
[null,null,null,null,null,null,null,null,null,null,null,null,null,0,1,1,2,2,-40]
[null,null,null,null,null,null,null,null,null,null,null,null,null,0,1,1,2,3,-40]
[null,null,null,null,null,null,null,null,null,null,null,null,null,0,1,2,0,0,-40]
[null,null,null,null,null,null,null,null,null,null,null,null,null,0,1,2,0,1,-40]
[null,null,null,null,null,null,null,null,null,null,null,null,null,0,1,2,0,2,-40]
[null,null,null,null,null,null,null,null,null,null,null,null,null,0,1,2,0,3,-40]
[null,null,null,null,null,null,null,null,null,null,null,null,null,0,1,2,1,0,-40]
[null,null,null,null,null,null,null,null,null,null,null,null,null,0,1,2,1,1,-40]
[null,null,null,null,null,null,null,null,null,null,null,null,null,0,1,2,1,2,-40]
[null,null,null,null,null,null,null,null,null,null,null,null,null,0,1,2,1,3,-40]
[null,null,null,null,null,null,null,null,null,null,null,null,null,0,1,2,2,0,-40]
[null,null,null,null,null,null,null,null,null,null,null,null,null,0,1,2,2,1,-40]
[null,null,null,null,null,null,null,null,null,null,null,null,null,0,1,2,2,2,-40]
[null,null,null,null,null,null,null,null,null,null,null,null,null,0,1,2,2,3,-40]
[null,null,null,null,null,null,null,null,null,null,null,null,null,0,1,3,0,0,-40]
[null,null,null,null,null,null,null,null,null,null,null,null,null,0,1,3,0,1,-40]
[null,null,null,null,null,null,null,null,null,null,null,null,null,0,1,3,0,2,-40]
[null,null,null,null,null,null,null,null,null,null,null,null,null,0,1,3,0,3,-40]
[null,null,null,null,null,null,null,null,null,null,null,null,null,0,1,3,1,0,-40]
[null,null,null,null,null,null,null,null,null,null,null,null,null,0,1,3,1,1,-40]
[null,null,null,null,null,null,null,null,null,null,null,null,null,0,1,3,1,2,-40]
[null,null,null,null,null,null,null,null,null,null,null,null,null,0,1,3,1,3,-40]
[null,null,null,null,null,null,null,null,null,null,null,null,null,0,1,3,2,0,-40]
[null,null,null,null,null,null,null,null,null,null,null,null,null,0,1,3,2,1,-40]
[null,null,null,null,null,null,null,null,null,null,null,null,null,0,1,3,2,2,-40]
[null,null,null,null,null,null,null,null,null,null,null,null,null,0,1,3,2,3,-40]
[null,null,null,null,null,null,null,null,null,null,null,null,null,0,2,0,0,0,-10]
[null,null,null,null,null,null,null,null,null,null,null,null,null,0,2,0,0,1,-40]
[null,null,null,null,null,null,null,null,null,null,null,null,null,0,2,0,0,2,-40]
[null,null,null,null,null,null,null,null,null,null,null,null,null,0,2,0,0,3,-40]
[null,null,null,null,null,null,null,null,null,null,null,null,null,0,2,0,1,0,-40]
[null,null,null,null,null,null,null,null,null,null,null,null,null,0,2,0,1,1,-40]
[null,null,null,null,null,null,null,null,null,null,null,null,null,0,2,0,1,2,-40]
[null,null,null,null,null,null,null,null,null,null,null,null,null,0,2,0,1,3,-40]
[null,null,null,null,null,null,null,null,null,null,null,null,null,0,2,0,2,0,-40]
[null,null,null,null,null,null,null,null,null,null,null,null,null,0,2,0,2,1,-40]
[null,null,null,null,null,null,null,null,null,null,null,null,null,0,2,0,2,2,-40]
[null,null,null,null,null,null,null,null,null,null,null,null,null,0,2,0,2,3,-40]
[null,null,null,null,null,null,null,null,null,null,null,null,null,0,2,1,0,0,-20]
[null,null,null,null,null,null,null,null,null,null,null,null,null,0,2,1,0,1,-40]
[null,null,null,null,null,null,null,null,null,null,null,null,null,0,2,1,0,2,-40]
[null,null,null,null,null,null,null,null,null,null,null,null,null,0,2,1,0,3,-40]
[null,null,null,null,null,null,null,null,null,null,null,null,null,0,2,1,1,0,-40]
[null,null,null,null,null,null,null,null,null,null,null,null,null,0,2,1,1,1,-40]
[null,null,null,null,null,null,null,null,null,null,null,null,null,0,2,1,1,2,-40]
[null,null,null,null,null,null,null,null,null,null,null,null,null,0,2,1,1,3,-40]
[null,null,null,null,null,null,null,null,null,null,null,null,null,0,2,1,2,0,-40]
[null,null,null,null,null,null,null,null,null,null,null,null,null,0,2,1,2,1,-40]
[null,null,null,null,null,null,null,null,null,null,null,null,null,0,2,1,2,2,-40]
[null,null,null,null,null,null,null,null,null,null,null,null,null,0,2,1,2,3,-40]
[null,null,null,null,null,null,null,null,null,null,null,null,null,0,2,2,0,0,-40]
[null,null,null,null,null,null,null,null,null,null,null,null,null,0,2,2,0,1,-40]
[null,null,null,null,null,null,null,null,null,null,null,null,null,0,2,2,0,2,-40]
[null,null,null,null,null,null,null,null,null,null,null,null,null,0,2,2,0,3,-40]
[null,null,null,null,null,null,null,null,null,null,null,null,null,0,2,2,1,0,-40]
[null,null,null,null,null,null,null,null,null,null,null,null,null,0,2,2,1,1,-40]
[null,null,null,null,null,null,null,null,null,null,null,null,null,0,2,2,1,2,-40]
[null,null,null,null,null,null,null,null,null,null,null,null,null,0,2,2,1,3,-40]
[null,null,null,null,null,null,null,null,null,null,null,null,null,0,2,2,2,0,-40]
[null,null,null,null,null,null,null,null,null,null,null,null,null,0,2,2,2,1,-40]
[null,null,null,null,null,null,null,null,null,null,null,null,null,0,2,2,2,2,-40]
[null,null,null,null,null,null,null,null,null,null,null,null,null,0,2,2,2,3,-40]
[null,null,null,null,null,null,null,null,null,null,null,null,null,0,2,3,0,0,-40]
[null,null,null,null,null,null,null,null,null,null,null,null,null,0,2,3,0,1,-40]
[null,null,null,null,null,null,null,null,null,null,null,null,null,0,2,3,0,2,-40]
[null,null,null,null,null,null,null,null,null,null,null,null,null,0,2,3,0,3,-40]
[null,null,null,null,null,null,null,null,null,null,null,null,null,0,2,3,1,0,-40]
[null,null,null,null,null,null,null,null,null,null,null,null,null,0,2,3,1,1,-40]
[null,null,null,null,null,null,null,null,null,null,null,null,null,0,2,3,1,2,-40]
[null,null,null,null,null,null,null,null,null,null,null,null,null,0,2,3,1,3,-40]
[null,null,null,null,null,null,null,null,null,null,null,null,null,0,2,3,2,0,-40]
[null,null,null,null,null,null,null,null,null,null,null,null,null,0,2,3,2,1,-40]
[null,null,null,null,null,null,null,null,null,null,null,null,null,0,2,3,2,2,-40]
[null,null,null,null,null,null,null,null,null,null,null,null,null,0,2,3,2,3,-40]
[null,null,null,null,null,null,null,null,null,null,null,null,null,0,3,0,0,0,-40]
[null,null,null,null,null,null,null,null,null,null,null,null,null,0,3,0,0,1,-40]
[null,null,null,null,null,null,null,null,null,null,null,null,null,0,3,0,0,2,-40]
[null,null,null,null,null,null,null,null,null,null,null,null,null,0,3,0,0,3,-40]
[null,null,null,null,null,null,null,null,null,null,null,null,null,0,3,0,1,0,-40]
[null,null,null,null,null,null,null,null,null,null,null,null,null,0,3,0,1,1,-40]
[null,null,null,null,null,null,null,null,null,null,null,null,null,0,3,0,1,2,-40]
[null,null,null,null,null,null,null,null,null,null,null,null,null,0,3,0,1,3,-40]
[null,null,null,null,null,null,null,null,null,null,null,null,null,0,3,0,2,0,-40]
[null,null,null,null,null,null,null,null,null,null,null,null,null,0,3,0,2,1,-40]
[null,null,null,null,null,null,null,null,null,null,null,null,null,0,3,0,2,2,-40]
[null,null,null,null,null,null,null,null,null,null,null,null,null,0,3,0,2,3,-40]
[null,null,null,null,null,null,null,null,null,null,null,null,null,0,3,1,0,0,-40]
[null,null,null,null,null,null,null,null,null,null,null,null,null,0,3,1,0,1,-40]
[null,null,null,null,null,null,null,null,null,null,null,null,null,0,3,1,0,2,-40]
[null,null,null,null,null,null,null,null,null,null,null,null,null,0,3,1,0,3,-40]
[null,null,null,null,null,null,null,null,null,null,null,null,null,0,3,1,1,0,-40]
[null,null,null,null,null,null,null,null,null,null,null,null,null,0,3,1,1,1,-40]
[null,null,null,null,null,null,null,null,null,null,null,null,null,0,3,1,1,2,-40]
[null,null,null,null,null,null,null,null,null,null,null,null,null,0,3,1,1,3,-40]
[null,null,null,null,null,null,null,null,null,null,null,null,null,0,3,1,2,0,-40]
[null,null,null,null,null,null,null,null,null,null,null,null,null,0,3,1,2,1,-40]
[null,null,null,null,null,null,null,null,null,null,null,null,null,0,3,1,2,2,-40]
[null,null,null,null,null,null,null,null,null,null,null,null,null,0,3,1,2,3,-40]
[null,null,null,null,null,null,null,null,null,null,null,null,null,0,3,2,0,0,-40]
[null,null,null,null,null,null,null,null,null,null,null,null,null,0,3,2,0,1,-40]
[null,null,null,null,null,null,null,null,null,null,null,null,null,0,3,2,0,2,-40]
[null,null,null,null,null,null,null,null,null,null,null,null,null,0,3,2,0,3,-40]
[null,null,null,null,null,null,null,null,null,null,null,null,null,0,3,2,1,0,-40]
[null,null,null,null,null,null,null,null,null,null,null,null,null,0,3,2,1,1,-40]
[null,null,null,null,null,null,null,null,null,null,null,null,null,0,3,2,1,2,-40]
[null,null,null,null,null,null,null,null,null,null,null,null,null,0,3,2,1,3,-40]
[null,null,null,null,null,null,null,null,null,null,null,null,null,0,3,2,2,0,-40]
[null,null,null,null,null,null,null,null,null,null,null,null,null,0,3,2,2,1,-40]
[null,null,null,null,null,null,null,null,null,null,null,null,null,0,3,2,2,2,-40]
[null,null,null,null,null,null,null,null,null,null,null,null,null,0,3,2,2,3,-40]
[null,null,null,null,null,null,null,null,null,null,null,null,null,0,3,3,0,0,-40]
[null,null,null,null,null,null,null,null,null,null,null,null,null,0,3,3,0,1,-40]
[null,null,null,null,null,null,null,null,null,null,null,null,null,0,3,3,0,2,-40]
[null,null,null,null,null,null,null,null,null,null,null,null,null,0,3,3,0,3,-40]
[null,null,null,null,null,null,null,null,null,null,null,null,null,0,3,3,1,0,-40]
[null,null,null,null,null,null,null,null,null,null,null,null,null,0,3,3,1,1,-40]
[null,null,null,null,null,null,null,null,null,null,null,null,null,0,3,3,1,2,-40]
[null,null,null,null,null,null,null,null,null,null,null,null,null,0,3,3,1,3,-40]
[null,null,null,null,null,null,null,null,null,null,null,null,null,0,3,3,2,0,-40]
[null,null,null,null,null,null,null,null,null,null,null,null,null,0,3,3,2,1,-40]
[null,null,null,null,null,null,null,null,null,null,null,null,null,0,3,3,2,2,-40]
[null,null,null,null,null,null,null,null,null,null,null,null,null,0,3,3,2,3,-40]
[null,null,null,null,null,null,null,null,null,null,null,null,null,0,3,0,0,0,-40]
[null,null,null,null,null,null,null,null,null,null,null,null,null,0,3,0,0,1,-40]
[null,null,null,null,null,null,null,null,null,null,null,null,null,0,3,0,0,2,-40]
[null,null,null,null,null,null,null,null,null,null,null,null,null,0,3,0,0,3,-40]
[null,null,null,null,null,null,null,null,null,null,null,null,null,0,3,0,1,0,-40]
[null,null,null,null,null,null,null,null,null,null,null,null,null,0,3,0,1,1,-40]
[null,null,null,null,null,null,null,null,null,null,null,null,null,0,3,0,1,2,-40]
[null,null,null,null,null,null,null,null,null,null,null,null,null,0,3,0,1,3,-40]
[null,null,null,null,null,null,null,null,null,null,null,null,null,0,3,0,2,0,-40]
[null,null,null,null,null,null,null,null,null,null,null,null,null,0,3,0,2,1,-40]
[null,null,null,null,null,null,null,null,null,null,null,null,null,0,3,0,2,2,-40]
[null,null,null,null,null,null,null,null,null,null,null,null,null,0,3,0,2,3,-40]
[null,null,null,null,null,null,null,null,null,null,null,null,null,0,3,1,0,0,-40]
[null,null,null,null,null,null,null,null,null,null,null,null,null,0,3,1,0,1,-40]
[null,null,null,null,null,null,null,null,null,null,null,null,null,0,3,1,0,2,-40]
[null,null,null,null,null,null,null,null,null,null,null,null,null,0,3,1,0,3,-40]
[null,null,null,null,null,null,null,null,null,null,null,null,null,0,3,1,1,0,-40]
[null,null,null,null,null,null,null,null,null,null,null,null,null,0,3,1,1,1,-40]
[null,null,null,null,null,null,null,null,null,null,null,null,null,0,3,1,1,2,-40]
[null,null,null,null,null,null,null,null,null,null,null,null,null,0,3,1,1,3,-40]
[null,null,null,null,null,null,null,null,null,null,null,null,null,0,3,1,2,0,-40]
[null,null,null,null,null,null,null,null,null,null,null,null,null,0,3,1,2,1,-40]
[null,null,null,null,null,null,null,null,null,null,null,null,null,0,3,1,2,2,-40]
[null,null,null,null,null,null,null,null,null,null,null,null,null,0,3,1,2,3,-40]
[null,null,null,null,null,null,null,null,null,null,null,null,null,0,3,2,0,0,-40]
[null,null,null,null,null,null,null,null,null,null,null,null,null,0,3,2,0,1,-40]
[null,null,null,null,null,null,null,null,null,null,null,null,null,0,3,2,0,2,-40]
[null,null,null,null,null,null,null,null,null,null,null,null,null,0,3,2,0,3,-40]
[null,null,null,null,null,null,null,null,null,null,null,null,null,0,3,2,1,0,-40]
[null,null,null,null,null,null,null,null,null,null,null,null,null,0,3,2,1,1,-40]
[null,null,null,null,null,null,null,null,null,null,null,null,null,0,3,2,1,2,-40]
[null,null,null,null,null,null,null,null,null,null,null,null,null,0,3,2,1,3,-40]
[null,null,null,null,null,null,null,null,null,null,null,null,null,0,3,2,2,0,-40]
[null,null,null,null,null,null,null,null,null,null,null,null,null,0,3,2,2,1,-40]
[null,null,null,null,null,null,null,null,null,null,null,null,null,0,3,2,2,2,-40]
[null,null,null,null,null,null,null,null,null,null,null,null,null,0,3,2,2,3,-40]
[null,null,null,null,null,null,null,null,null,null,null,null,null,0,3,3,0,0,-40]
[null,null,null,null,null,null,null,null,null,null,null,null,null,0,3,3,0,1,-40]
[null,null,null,null,null,null,null,null,null,null,null,null,null,0,3,3,0,2,-40]
[null,null,null,null,null,null,null,null,null,null,null,null,null,0,3,3,0,3,-40]
[null,null,null,null,null,null,null,null,null,null,null,null,null,0,3,3,1,0,-40]
[null,null,null,null,null,null,null,null,null,null,null,null,null,0,3,3,1,1,-40]
[null,null,null,null,null,null,null,null,null,null,null,null,null,0,3,3,1,2,-40]
[null,null,null,null,null,null,null,null,null,null,null,null,null,0,3,3,1,3,-40]
[null,null,null,null,null,null,null,null,null,null,null,null,null,0,3,3,2,0,-40]
[null,null,null,null,null,null,null,null,null,null,null,null,null,0,3,3,2,1,-40]
[null,null,null,null,null,null,null,null,null,null,null,null,null,0,3,3,2,2,-40]
[null,null,null,null,null,null,null,null,null,null,null,null,null,0,3,3,2,3,-40]
[null,null,null,null,null,null,null,null,null,null,null,null,null,0,3,0,0,0,-40]
[null,null,null,null,null,null,null,null,null,null,null,null,null,0,3,0,0,1,-40]
[null,null,null,null,null,null,null,null,null,null,null,null,null,0,3,0,0,2,-40]
[null,null,null,null,null,null,null,null,null,null,null,null,null,0,3,0,0,3,-40]
[null,null,null,null,null,null,null,null,null,null,null,null,null,0,3,0,1,0,-40]
[null,null,null,null,null,null,null,null,null,null,null,null,null,0,3,0,1,1,-40]
[null,null,null,null,null,null,null,null,null,null,null,null,null,0,3,0,1,2,-40]
[null,null,null,null,null,null,null,null,null,null,null,null,null,0,3,0,1,3,-40]
[null,null,null,null,null,null,null,null,null,null,null,null,null,0,3,0,2,0,-40]
[null,null,null,null,null,null,null,null,null,null,null,null,null,0,3,0,2,1,-40]
[null,null,null,null,null,null,null,null,null,null,null,null,null,0,3,0,2,2,-40]
[null,null,null,null,null,null,null,null,null,null,null,null,null,0,3,0,2,3,-40]
[null,null,null,null,null,null,null,null,null,null,null,null,null,0,3,1,0,0,-40]
[null,null,null,null,null,null,null,null,null,null,null,null,null,0,3,1,0,1,-40]
[null,null,null,null,null,null,null,null,null,null,null,null,null,0,3,1,0,2,-40]
[null,null,null,null,null,null,null,null,null,null,null,null,null,0,3,1,0,3,-40]
[null,null,null,null,null,null,null,null,null,null,null,null,null,0,3,1,1,0,-40]
[null,null,null,null,null,null,null,null,null,null,null,null,null,0,3,1,1,1,-40]
[null,null,null,null,null,null,null,null,null,null,null,null,null,0,3,1,1,2,-40]
[null,null,null,null,null,null,null,null,null,null,null,null,null,0,3,1,1,3,-40]
[null,null,null,null,null,null,null,null,null,null,null,null,null,0,3,1,2,0,-40]
[null,null,null,null,null,null,null,null,null,null,null,null,null,0,3,1,2,1,-40]
[null,null,null,null,null,null,null,null,null,null,null,null,null,0,3,1,2,2,-40]
[null,null,null,null,null,null,null,null,null,null,null,null,null,0,3,1,2,3,-40]
[null,null,null,null,null,null,null,null,null,null,null,null,null,0,3,2,0,0,-40]
[null,null,null,null,null,null,null,null,null,null,null,null,null,0,3,2,0,1,-40]
[null,null,null,null,null,null,null,null,null,null,null,null,null,0,3,2,0,2,-40]
[null,null,null,null,null,null,null,null,null,null,null,null,null,0,3,2,0,3,-40]
[null,null,null,null,null,null,null,null,null,null,null,null,null,0,3,2,1,0,-40]
[null,null,null,null,null,null,null,null,null,null,null,null,null,0,3,2,1,1,-40]
[null,null,null,null,null,null,null,null,null,null,null,null,null,0,3,2,1,2,-40]
[null,null,null,null,null,null,null,null,null,null,null,null,null,0,3,2,1,3,-40]
[null,null,null,null,null,null,null,null,null,null,null,null,null,0,3,2,2,0,-40]
[null,null,null,null,null,null,null,null,null,null,null,null,null,0,3,2,2,1,-40]
[null,null,null,null,null,null,null,null,null,null,null,null,null,0,3,2,2,2,-40]
[null,null,null,null,null,null,null,null,null,null,null,null,null,0,3,2,2,3,-40]
[null,null,null,null,null,null,null,null,null,null,null,null,null,0,3,3,0,0,-40]
[null,null,null,null,null,null,null,null,null,null,null,null,null,0,3,3,0,1,-40]
[null,null,null,null,null,null,null,null,null,null,null,null,null,0,3,3,0,2,-40]
[null,null,null,null,null,null,null,null,null,null,null,null,null,0,3,3,0,3,-40]
[null,null,null,null,null,null,null,null,null,null,null,null,null,0,3,3,1,0,-40]
[null,null,null,null,null,null,null,null,null,null,null,null,null,0,3,3,1,1,-40]
[null,null,null,null,null,null,null,null,null,null,null,null,null,0,3,3,1,2,-40]
[null,null,null,null,null,null,null,null,null,null,null,null,null,0,3,3,1,3,-40]
[null,null,null,null,null,null,null,null,null,null,null,null,null,0,3,3,2,0,-40]
[null,null,null,null,null,null,null,null,null,null,null,null,null,0,3,3,2,1,-40]
[null,null,null,null,null,null,null,null,null,null,null,null,null,0,3,3,2,2,-40]
[null,null,null,null,null,null,null,null,null,null,null,null,null,0,3,3,2,3,-40]
[null,null,null,null,null,null,null,null,null,null,null,null,null,1,0,0,0,0,-5]
[null,null,null,null,null,null,null,null,null,null,null,null,null,1,0,0,0,1,-10]
[null,null,null,null,null,null,null,null,null,null,null,null,null,1,0,0,0,2,-40]
[null,null,null,null,null,null,null,null,null,null,null,null,null,1,0,0,0,3,-40]
[null,null,null,null,null,null,null,null,null,null,null,null,null,1,0,0,1,0,-40]
[null,null,null,null,null,null,null,null,null,null,null,null,null,1,0,0,1,1,-40]
[null,null,null,null,null,null,null,null,null,null,null,null,null,1,0,0,1,2,-40]
[null,null,null,null,null,null,null,null,null,null,null,null,null,1,0,0,1,3,-40]
[null,null,null,null,null,null,null,null,null,null,null,null,null,1,0,0,2,0,-40]
[null,null,null,null,null,null,null,null,null,null,null,null,null,1,0,0,2,1,-40]
[null,null,null,null,null,null,null,null,null,null,null,null,null,1,0,0,2,2,-40]
[null,null,null,null,null,null,null,null,null,null,null,null,null,1,0,0,2,3,-40]
[null,null,null,null,null,null,null,null,null,null,null,null,null,1,0,1,0,0,-20]
[null,null,null,null,null,null,null,null,null,null,null,null,null,1,0,1,0,1,-40]
[null,null,null,null,null,null,null,null,null,null,null,null,null,1,0,1,0,2,-40]
[null,null,null,null,null,null,null,null,null,null,null,null,null,1,0,1,0,3,-40]
[null,null,null,null,null,null,null,null,null,null,null,null,null,1,0,1,1,0,-40]
[null,null,null,null,null,null,null,null,null,null,null,null,null,1,0,1,1,1,-40]
[null,null,null,null,null,null,null,null,null,null,null,null,null,1,0,1,1,2,-40]
[null,null,null,null,null,null,null,null,null,null,null,null,null,1,0,1,1,3,-40]
[null,null,null,null,null,null,null,null,null,null,null,null,null,1,0,1,2,0,-40]
[null,null,null,null,null,null,null,null,null,null,null,null,null,1,0,1,2,1,-40]
[null,null,null,null,null,null,null,null,null,null,null,null,null,1,0,1,2,2,-40]
[null,null,null,null,null,null,null,null,null,null,null,null,null,1,0,1,2,3,-40]
[null,null,null,null,null,null,null,null,null,null,null,null,null,1,0,2,0,0,-40]
[null,null,null,null,null,null,null,null,null,null,null,null,null,1,0,2,0,1,-40]
[null,null,null,null,null,null,null,null,null,null,null,null,null,1,0,2,0,2,-40]
[null,null,null,null,null,null,null,null,null,null,null,null,null,1,0,2,0,3,-40]
[null,null,null,null,null,null,null,null,null,null,null,null,null,1,0,2,1,0,-40]
[null,null,null,null,null,null,null,null,null,null,null,null,null,1,0,2,1,1,-40]
[null,null,null,null,null,null,null,null,null,null,null,null,null,1,0,2,1,2,-40]
[null,null,null,null,null,null,null,null,null,null,null,null,null,1,0,2,1,3,-40]
[null,null,null,null,null,null,null,null,null,null,null,null,null,1,0,2,2,0,-40]
[null,null,null,null,null,null,null,null,null,null,null,null,null,1,0,2,2,1,-40]
[null,null,null,null,null,null,null,null,null,null,null,null,null,1,0,2,2,2,-40]
[null,null,null,null,null,null,null,null,null,null,null,null,null,1,0,2,2,3,-40]
[null,null,null,null,null,null,null,null,null,null,null,null,null,1,0,3,0,0,-40]
[null,null,null,null,null,null,null,null,null,null,null,null,null,1,0,3,0,1,-40]
[null,null,null,null,null,null,null,null,null,null,null,null,null,1,0,3,0,2,-40]
[null,null,null,null,null,null,null,null,null,null,null,null,null,1,0,3,0,3,-40]
[null,null,null,null,null,null,null,null,null,null,null,null,null,1,0,3,1,0,-40]
[null,null,null,null,null,null,null,null,null,null,null,null,null,1,0,3,1,1,-40]
[null,null,null,null,null,null,null,null,null,null,null,null,null,1,0,3,1,2,-40]
[null,null,null,null,null,null,null,null,null,null,null,null,null,1,0,3,1,3,-40]
[null,null,null,null,null,null,null,null,null,null,null,null,null,1,0,3,2,0,-40]
[null,null,null,null,null,null,null,null,null,null,null,null,null,1,0,3,2,1,-40]
[null,null,null,null,null,null,null,null,null,null,null,null,null,1,0,3,2,2,-40]
[null,null,null,null,null,null,null,null,null,null,null,null,null,1,0,3,2,3,-40]
[null,null,null,null,null,null,null,null,null,null,null,null,null,1,1,0,0,0,-10]
[null,null,null,null,null,null,null,null,null,null,null,null,null,1,1,0,0,1,-40]
[null,null,null,null,null,null,null,null,null,null,null,null,null,1,1,0,0,2,-40]
[null,null,null,null,null,null,null,null,null,null,null,null,null,1,1,0,0,3,-40]
[null,null,null,null,null,null,null,null,null,null,null,null,null,1,1,0,1,0,-40]
[null,null,null,null,null,null,null,null,null,null,null,null,null,1,1,0,1,1,-40]
[null,null,null,null,null,null,null,null,null,null,null,null,null,1,1,0,1,2,-40]
[null,null,null,null,null,null,null,null,null,null,null,null,null,1,1,0,1,3,-40]
[null,null,null,null,null,null,null,null,null,null,null,null,null,1,1,0,2,0,-40]
[null,null,null,null,null,null,null,null,null,null,null,null,null,1,1,0,2,1,-40]
[null,null,null,null,null,null,null,null,null,null,null,null,null,1,1,0,2,2,-40]
[null,null,null,null,null,null,null,null,null,null,null,null,null,1,1,0,2,3,-40]
[null,null,null,null,null,null,null,null,null,null,null,null,null,1,1,1,0,0,-20]
[null,null,null,null,null,null,null,null,null,null,null,null,null,1,1,1,0,1,-40]
[null,null,null,null,null,null,null,null,null,null,null,null,null,1,1,1,0,2,-40]
[null,null,null,null,null,null,null,null,null,null,null,null,null,1,1,1,0,3,-40]
[null,null,null,null,null,null,null,null,null,null,null,null,null,1,1,1,1,0,-40]
[null,null,null,null,null,null,null,null,null,null,null,null,null,1,1,1,1,1,-40]
[null,null,null,null,null,null,null,null,null,null,null,null,null,1,1,1,1,2,-40]
[null,null,null,null,null,null,null,null,null,null,null,null,null,1,1,1,1,3,-40]
[null,null,null,null,null,null,null,null,null,null,null,null,null,1,1,1,2,0,-40]
[null,null,null,null,null,null,null,null,null,null,null,null,null,1,1,1,2,1,-40]
[null,null,null,null,null,null,null,null,null,null,null,null,null,1,1,1,2,2,-40]
[null,null,null,null,null,null,null,null,null,null,null,null,null,1,1,1,2,3,-40]
[null,null,null,null,null,null,null,null,null,null,null,null,null,1,1,2,0,0,-40]
[null,null,null,null,null,null,null,null,null,null,null,null,null,1,1,2,0,1,-40]
[null,null,null,null,null,null,null,null,null,null,null,null,null,1,1,2,0,2,-40]
[null,null,null,null,null,null,null,null,null,null,null,null,null,1,1,2,0,3,-40]
[null,null,null,null,null,null,null,null,null,null,null,null,null,1,1,2,1,0,-40]
[null,null,null,null,null,null,null,null,null,null,null,null,null,1,1,2,1,1,-40]
[null,null,null,null,null,null,null,null,null,null,null,null,null,1,1,2,1,2,-40]
[null,null,null,null,null,null,null,null,null,null,null,null,null,1,1,2,1,3,-40]
[null,null,null,null,null,null,null,null,null,null,null,null,null,1,1,2,2,0,-40]
[null,null,null,null,null,null,null,null,null,null,null,null,null,1,1,2,2,1,-40]
[null,null,null,null,null,null,null,null,null,null,null,null,null,1,1,2,2,2,-40]
[null,null,null,null,null,null,null,null,null,null,null,null,null,1,1,2,2,3,-40]
[null,null,null,null,null,null,null,null,null,null,null,null,null,1,1,3,0,0,-40]
[null,null,null,null,null,null,null,null,null,null,null,null,null,1,1,3,0,1,-40]
[null,null,null,null,null,null,null,null,null,null,null,null,null,1,1,3,0,2,-40]
[null,null,null,null,null,null,null,null,null,null,null,null,null,1,1,3,0,3,-40]
[null,null,null,null,null,null,null,null,null,null,null,null,null,1,1,3,1,0,-40]
[null,null,null,null,null,null,null,null,null,null,null,null,null,1,1,3,1,1,-40]
[null,null,null,null,null,null,null,null,null,null,null,null,null,1,1,3,1,2,-40]
[null,null,null,null,null,null,null,null,null,null,null,null,null,1,1,3,1,3,-40]
[null,null,null,null,null,null,null,null,null,null,null,null,null,1,1,3,2,0,-40]
[null,null,null,null,null,null,null,null,null,null,null,null,null,1,1,3,2,1,-40]
[null,null,null,null,null,null,null,null,null,null,null,null,null,1,1,3,2,2,-40]
[null,null,null,null,null,null,null,null,null,null,null,null,null,1,1,3,2,3,-40]
[null,null,null,null,null,null,null,null,null,null,null,null,null,1,2,0,0,0,-40]
[null,null,null,null,null,null,null,null,null,null,null,null,null,1,2,0,0,1,-40]
[null,null,null,null,null,null,null,null,null,null,null,null,null,1,2,0,0,2,-40]
[null,null,null,null,null,null,null,null,null,null,null,null,null,1,2,0,0,3,-40]
[null,null,null,null,null,null,null,null,null,null,null,null,null,1,2,0,1,0,-40]
[null,null,null,null,null,null,null,null,null,null,null,null,null,1,2,0,1,1,-40]
[null,null,null,null,null,null,null,null,null,null,null,null,null,1,2,0,1,2,-40]
[null,null,null,null,null,null,null,null,null,null,null,null,null,1,2,0,1,3,-40]
[null,null,null,null,null,null,null,null,null,null,null,null,null,1,2,0,2,0,-40]
[null,null,null,null,null,null,null,null,null,null,null,null,null,1,2,0,2,1,-40]
[null,null,null,null,null,null,null,null,null,null,null,null,null,1,2,0,2,2,-40]
[null,null,null,null,null,null,null,null,null,null,null,null,null,1,2,0,2,3,-40]
[null,null,null,null,null,null,null,null,null,null,null,null,null,1,2,1,0,0,-40]
[null,null,null,null,null,null,null,null,null,null,null,null,null,1,2,1,0,1,-40]
[null,null,null,null,null,null,null,null,null,null,null,null,null,1,2,1,0,2,-40]
[null,null,null,null,null,null,null,null,null,null,null,null,null,1,2,1,0,3,-40]
[null,null,null,null,null,null,null,null,null,null,null,null,null,1,2,1,1,0,-40]
[null,null,null,null,null,null,null,null,null,null,null,null,null,1,2,1,1,1,-40]
[null,null,null,null,null,null,null,null,null,null,null,null,null,1,2,1,1,2,-40]
[null,null,null,null,null,null,null,null,null,null,null,null,null,1,2,1,1,3,-40]
[null,null,null,null,null,null,null,null,null,null,null,null,null,1,2,1,2,0,-40]
[null,null,null,null,null,null,null,null,null,null,null,null,null,1,2,1,2,1,-40]
[null,null,null,null,null,null,null,null,null,null,null,null,null,1,2,1,2,2,-40]
[null,null,null,null,null,null,null,null,null,null,null,null,null,1,2,1,2,3,-40]
[null,null,null,null,null,null,null,null,null,null,null,null,null,1,2,2,0,0,-40]
[null,null,null,null,null,null,null,null,null,null,null,null,null,1,2,2,0,1,-40]
[null,null,null,null,null,null,null,null,null,null,null,null,null,1,2,2,0,2,-40]
[null,null,null,null,null,null,null,null,null,null,null,null,null,1,2,2,0,3,-40]
[null,null,null,null,null,null,null,null,null,null,null,null,null,1,2,2,1,0,-40]
[null,null,null,null,null,null,null,null,null,null,null,null,null,1,2,2,1,1,-40]
[null,null,null,null,null,null,null,null,null,null,null,null,null,1,2,2,1,2,-40]
[null,null,null,null,null,null,null,null,null,null,null,null,null,1,2,2,1,3,-40]
[null,null,null,null,null,null,null,null,null,null,null,null,null,1,2,2,2,0,-40]
[null,null,null,null,null,null,null,null,null,null,null,null,null,1,2,2,2,1,-40]
[null,null,null,null,null,null,null,null,null,null,null,null,null,1,2,2,2,2,-40]
[null,null,null,null,null,null,null,null,null,null,null,null,null,1,2,2,2,3,-40]
[null,null,null,null,null,null,null,null,null,null,null,null,null,1,2,3,0,0,-40]
[null,null,null,null,null,null,null,null,null,null,null,null,null,1,2,3,0,1,-40]
[null,null,null,null,null,null,null,null,null,null,null,null,null,1,2,3,0,2,-40]
[null,null,null,null,null,null,null,null,null,null,null,null,null,1,2,3,0,3,-40]
[null,null,null,null,null,null,null,null,null,null,null,null,null,1,2,3,1,0,-40]
[null,null,null,null,null,null,null,null,null,null,null,null,null,1,2,3,1,1,-40]
[null,null,null,null,null,null,null,null,null,null,null,null,null,1,2,3,1,2,-40]
[null,null,null,null,null,null,null,null,null,null,null,null,null,1,2,3,1,3,-40]
[null,null,null,null,null,null,null,null,null,null,null,null,null,1,2,3,2,0,-40]
[null,null,null,null,null,null,null,null,null,null,null,null,null,1,2,3,2,1,-40]
[null,null,null,null,null,null,null,null,null,null,null,null,null,1,2,3,2,2,-40]
[null,null,null,null,null,null,null,null,null,null,null,null,null,1,2,3,2,3,-40]
[null,null,null,null,null,null,null,null,null,null,null,null,null,1,3,0,0,0,-40]
[null,null,null,null,null,null,null,null,null,null,null,null,null,1,3,0,0,1,-40]
[null,null,null,null,null,null,null,null,null,null,null,null,null,1,3,0,0,2,-40]
[null,null,null,null,null,null,null,null,null,null,null,null,null,1,3,0,0,3,-40]
[null,null,null,null,null,null,null,null,null,null,null,null,null,1,3,0,1,0,-40]
[null,null,null,null,null,null,null,null,null,null,null,null,null,1,3,0,1,1,-40]
[null,null,null,null,null,null,null,null,null,null,null,null,null,1,3,0,1,2,-40]
[null,null,null,null,null,null,null,null,null,null,null,null,null,1,3,0,1,3,-40]
[null,null,null,null,null,null,null,null,null,null,null,null,null,1,3,0,2,0,-40]
[null,null,null,null,null,null,null,null,null,null,null,null,null,1,3,0,2,1,-40]
[null,null,null,null,null,null,null,null,null,null,null,null,null,1,3,0,2,2,-40]
[null,null,null,null,null,null,null,null,null,null,null,null,null,1,3,0,2,3,-40]
[null,null,null,null,null,null,null,null,null,null,null,null,null,1,3,1,0,0,-40]
[null,null,null,null,null,null,null,null,null,null,null,null,null,1,3,1,0,1,-40]
[null,null,null,null,null,null,null,null,null,null,null,null,null,1,3,1,0,2,-40]
[null,null,null,null,null,null,null,null,null,null,null,null,null,1,3,1,0,3,-40]
[null,null,null,null,null,null,null,null,null,null,null,null,null,1,3,1,1,0,-40]
[null,null,null,null,null,null,null,null,null,null,null,null,null,1,3,1,1,1,-40]
[null,null,null,null,null,null,null,null,null,null,null,null,null,1,3,1,1,2,-40]
[null,null,null,null,null,null,null,null,null,null,null,null,null,1,3,1,1,3,-40]
[null,null,null,null,null,null,null,null,null,null,null,null,null,1,3,1,2,0,-40]
[null,null,null,null,null,null,null,null,null,null,null,null,null,1,3,1,2,1,-40]
[null,null,null,null,null,null,null,null,null,null,null,null,null,1,3,1,2,2,-40]
[null,null,null,null,null,null,null,null,null,null,null,null,null,1,3,1,2,3,-40]
[null,null,null,null,null,null,null,null,null,null,null,null,null,1,3,2,0,0,-40]
[null,null,null,null,null,null,null,null,null,null,null,null,null,1,3,2,0,1,-40]
[null,null,null,null,null,null,null,null,null,null,null,null,null,1,3,2,0,2,-40]
[null,null,null,null,null,null,null,null,null,null,null,null,null,1,3,2,0,3,-40]
[null,null,null,null,null,null,null,null,null,null,null,null,null,1,3,2,1,0,-40]
[null,null,null,null,null,null,null,null,null,null,null,null,null,1,3,2,1,1,-40]
[null,null,null,null,null,null,null,null,null,null,null,null,null,1,3,2,1,2,-40]
[null,null,null,null,null,null,null,null,null,null,null,null,null,1,3,2,1,3,-40]
[null,null,null,null,null,null,null,null,null,null,null,null,null,1,3,2,2,0,-40]
[null,null,null,null,null,null,null,null,null,null,null,null,null,1,3,2,2,1,-40]
[null,null,null,null,null,null,null,null,null,null,null,null,null,1,3,2,2,2,-40]
[null,null,null,null,null,null,null,null,null,null,null,null,null,1,3,2,2,3,-40]
[null,null,null,null,null,null,null,null,null,null,null,null,null,1,3,3,0,0,-40]
[null,null,null,null,null,null,null,null,null,null,null,null,null,1,3,3,0,1,-40]
[null,null,null,null,null,null,null,null,null,null,null,null,null,1,3,3,0,2,-40]
[null,null,null,null,null,null,null,null,null,null,null,null,null,1,3,3,0,3,-40]
[null,null,null,null,null,null,null,null,null,null,null,null,null,1,3,3,1,0,-40]
[null,null,null,null,null,null,null,null,null,null,null,null,null,1,3,3,1,1,-40]
[null,null,null,null,null,null,null,null,null,null,null,null,null,1,3,3,1,2,-40]
[null,null,null,null,null,null,null,null,null,null,null,null,null,1,3,3,1,3,-40]
[null,null,null,null,null,null,null,null,null,null,null,null,null,1,3,3,2,0,-40]
[null,null,null,null,null,null,null,null,null,null,null,null,null,1,3,3,2,1,-40]
[null,null,null,null,null,null,null,null,null,null,null,null,null,1,3,3,2,2,-40]
[null,null,null,null,null,null,null,null,null,null,null,null,null,1,3,3,2,3,-40]
[null,null,null,null,null,null,null,null,null,null,null,null,null,1,3,0,0,0,-40]
[null,null,null,null,null,null,null,null,null,null,null,null,null,1,3,0,0,1,-40]
[null,null,null,null,null,null,null,null,null,null,null,null,null,1,3,0,0,2,-40]
[null,null,null,null,null,null,null,null,null,null,null,null,null,1,3,0,0,3,-40]
[null,null,null,null,null,null,null,null,null,null,null,null,null,1,3,0,1,0,-40]
[null,null,null,null,null,null,null,null,null,null,null,null,null,1,3,0,1,1,-40]
[null,null,null,null,null,null,null,null,null,null,null,null,null,1,3,0,1,2,-40]
[null,null,null,null,null,null,null,null,null,null,null,null,null,1,3,0,1,3,-40]
[null,null,null,null,null,null,null,null,null,null,null,null,null,1,3,0,2,0,-40]
[null,null,null,null,null,null,null,null,null,null,null,null,null,1,3,0,2,1,-40]
[null,null,null,null,null,null,null,null,null,null,null,null,null,1,3,0,2,2,-40]
[null,null,null,null,null,null,null,null,null,null,null,null,null,1,3,0,2,3,-40]
[null,null,null,null,null,null,null,null,null,null,null,null,null,1,3,1,0,0,-40]
[null,null,null,null,null,null,null,null,null,null,null,null,null,1,3,1,0,1,-40]
[null,null,null,null,null,null,null,null,null,null,null,null,null,1,3,1,0,2,-40]
[null,null,null,null,null,null,null,null,null,null,null,null,null,1,3,1,0,3,-40]
[null,null,null,null,null,null,null,null,null,null,null,null,null,1,3,1,1,0,-40]
[null,null,null,null,null,null,null,null,null,null,null,null,null,1,3,1,1,1,-40]
[null,null,null,null,null,null,null,null,null,null,null,null,null,1,3,1,1,2,-40]
[null,null,null,null,null,null,null,null,null,null,null,null,null,1,3,1,1,3,-40]
[null,null,null,null,null,null,null,null,null,null,null,null,null,1,3,1,2,0,-40]
[null,null,null,null,null,null,null,null,null,null,null,null,null,1,3,1,2,1,-40]
[null,null,null,null,null,null,null,null,null,null,null,null,null,1,3,1,2,2,-40]
[null,null,null,null,null,null,null,null,null,null,null,null,null,1,3,1,2,3,-40]
[null,null,null,null,null,null,null,null,null,null,null,null,null,1,3,2,0,0,-40]
[null,null,null,null,null,null,null,null,null,null,null,null,null,1,3,2,0,1,-40]
[null,null,null,null,null,null,null,null,null,null,null,null,null,1,3,2,0,2,-40]
[null,null,null,null,null,null,null,null,null,null,null,null,null,1,3,2,0,3,-40]
[null,null,null,null,null,null,null,null,null,null,null,null,null,1,3,2,1,0,-40]
[null,null,null,null,null,null,null,null,null,null,null,null,null,1,3,2,1,1,-40]
[null,null,null,null,null,null,null,null,null,null,null,null,null,1,3,2,1,2,-40]
[null,null,null,null,null,null,null,null,null,null,null,null,null,1,3,2,1,3,-40]
[null,null,null,null,null,null,null,null,null,null,null,null,null,1,3,2,2,0,-40]
[null,null,null,null,null,null,null,null,null,null,null,null,null,1,3,2,2,1,-40]
[null,null,null,null,null,null,null,null,null,null,null,null,null,1,3,2,2,2,-40]
[null,null,null,null,null,null,null,null,null,null,null,null,null,1,3,2,2,3,-40]
[null,null,null,null,null,null,null,null,null,null,null,null,null,1,3,3,0,0,-40]
[null,null,null,null,null,null,null,null,null,null,null,null,null,1,3,3,0,1,-40]
[null,null,null,null,null,null,null,null,null,null,null,null,null,1,3,3,0,2,-40]
[null,null,null,null,null,null,null,null,null,null,null,null,null,1,3,3,0,3,-40]
[null,null,null,null,null,null,null,null,null,null,null,null,null,1,3,3,1,0,-40]
[null,null,null,null,null,null,null,null,null,null,null,null,null,1,3,3,1,1,-40]
[null,null,null,null,null,null,null,null,null,null,null,null,null,1,3,3,1,2,-40]
[null,null,null,null,null,null,null,null,null,null,null,null,null,1,3,3,1,3,-40]
[null,null,null,null,null,null,null,null,null,null,null,null,null,1,3,3,2,0,-40]
[null,null,null,null,null,null,null,null,null,null,null,null,null,1,3,3,2,1,-40]
[null,null,null,null,null,null,null,null,null,null,null,null,null,1,3,3,2,2,-40]
[null,null,null,null,null,null,null,null,null,null,null,null,null,1,3,3,2,3,-40]
[null,null,null,null,null,null,null,null,null,null,null,null,null,1,3,0,0,0,-40]
[null,null,null,null,null,null,null,null,null,null,null,null,null,1,3,0,0,1,-40]
[null,null,null,null,null,null,null,null,null,null,null,null,null,1,3,0,0,2,-40]
[null,null,null,null,null,null,null,null,null,null,null,null,null,1,3,0,0,3,-40]
[null,null,null,null,null,null,null,null,null,null,null,null,null,1,3,0,1,0,-40]
[null,null,null,null,null,null,null,null,null,null,null,null,null,1,3,0,1,1,-40]
[null,null,null,null,null,null,null,null,null,null,null,null,null,1,3,0,1,2,-40]
[null,null,null,null,null,null,null,null,null,null,null,null,null,1,3,0,1,3,-40]
[null,null,null,null,null,null,null,null,null,null,null,null,null,1,3,0,2,0,-40]
[null,null,null,null,null,null,null,null,null,null,null,null,null,1,3,0,2,1,-40]
[null,null,null,null,null,null,null,null,null,null,null,null,null,1,3,0,2,2,-40]
[null,null,null,null,null,null,null,null,null,null,null,null,null,1,3,0,2,3,-40]
[null,null,null,null,null,null,null,null,null,null,null,null,null,1,3,1,0,0,-40]
[null,null,null,null,null,null,null,null,null,null,null,null,null,1,3,1,0,1,-40]
[null,null,null,null,null,null,null,null,null,null,null,null,null,1,3,1,0,2,-40]
[null,null,null,null,null,null,null,null,null,null,null,null,null,1,3,1,0,3,-40]
[null,null,null,null,null,null,null,null,null,null,null,null,null,1,3,1,1,0,-40]
[null,null,null,null,null,null,null,null,null,null,null,null,null,1,3,1,1,1,-40]
[null,null,null,null,null,null,null,null,null,null,null,null,null,1,3,1,1,2,-40]
[null,null,null,null,null,null,null,null,null,null,null,null,null,1,3,1,1,3,-40]
[null,null,null,null,null,null,null,null,null,null,null,null,null,1,3,1,2,0,-40]
[null,null,null,null,null,null,null,null,null,null,null,null,null,1,3,1,2,1,-40]
[null,null,null,null,null,null,null,null,null,null,null,null,null,1,3,1,2,2,-40]
[null,null,null,null,null,null,null,null,null,null,null,null,null,1,3,1,2,3,-40]
[null,null,null,null,null,null,null,null,null,null,null,null,null,1,3,2,0,0,-40]
[null,null,null,null,null,null,null,null,null,null,null,null,null,1,3,2,0,1,-40]
[null,null,null,null,null,null,null,null,null,null,null,null,null,1,3,2,0,2,-40]
[null,null,null,null,null,null,null,null,null,null,null,null,null,1,3,2,0,3,-40]
[null,null,null,null,null,null,null,null,null,null,null,null,null,1,3,2,1,0,-40]
[null,null,null,null,null,null,null,null,null,null,null,null,null,1,3,2,1,1,-40]
[null,null,null,null,null,null,null,null,null,null,null,null,null,1,3,2,1,2,-40]
[null,null,null,null,null,null,null,null,null,null,null,null,null,1,3,2,1,3,-40]
[null,null,null,null,null,null,null,null,null,null,null,null,null,1,3,2,2,0,-40]
[null,null,null,null,null,null,null,null,null,null,null,null,null,1,3,2,2,1,-40]
[null,null,null,null,null,null,null,null,null,null,null,null,null,1,3,2,2,2,-40]
[null,null,null,null,null,null,null,null,null,null,null,null,null,1,3,2,2,3,-40]
[null,null,null,null,null,null,null,null,null,null,null,null,null,1,3,3,0,0,-40]
[null,null,null,null,null,null,null,null,null,null,null,null,null,1,3,3,0,1,-40]
[null,null,null,null,null,null,null,null,null,null,null,null,null,1,3,3,0,2,-40]
[null,null,null,null,null,null,null,null,null,null,null,null,null,1,3,3,0,3,-40]
[null,null,null,null,null,null,null,null,null,null,null,null,null,1,3,3,1,0,-40]
[null,null,null,null,null,null,null,null,null,null,null,null,null,1,3,3,1,1,-40]
[null,null,null,null,null,null,null,null,null,null,null,null,null,1,3,3,1,2,-40]
[null,null,null,null,null,null,null,null,null,null,null,null,null,1,3,3,1,3,-40]
[null,null,null,null,null,null,null,null,null,null,null,null,null,1,3,3,2,0,-40]
[null,null,null,null,null,null,null,null,null,null,null,null,null,1,3,3,2,1,-40]
[null,null,null,null,null,null,null,null,null,null,null,null,null,1,3,3,2,2,-40]
[null,null,null,null,null,null,null,null,null,null,null,null,null,1,3,3,2,3,-40]
[null,null,null,null,null,null,null,null,null,null,null,null,null,2,0,0,0,0,-10]
[null,null,null,null,null,null,null,null,null,null,null,null,null,2,0,0,0,1,-40]
[null,null,null,null,null,null,null,null,null,null,null,null,null,2,0,0,0,2,-40]
[null,null,null,null,null,null,null,null,null,null,null,null,null,2,0,0,0,3,-40]
[null,null,null,null,null,null,null,null,null,null,null,null,null,2,0,0,1,0,-40]
[null,null,null,null,null,null,null,null,null,null,null,null,null,2,0,0,1,1,-40]
[null,null,null,null,null,null,null,null,null,null,null,null,null,2,0,0,1,2,-40]
[null,null,null,null,null,null,null,null,null,null,null,null,null,2,0,0,1,3,-40]
[null,null,null,null,null,null,null,null,null,null,null,null,null,2,0,0,2,0,-40]
[null,null,null,null,null,null,null,null,null,null,null,null,null,2,0,0,2,1,-40]
[null,null,null,null,null,null,null,null,null,null,null,null,null,2,0,0,2,2,-40]
[null,null,null,null,null,null,null,null,null,null,null,null,null,2,0,0,2,3,-40]
[null,null,null,null,null,null,null,null,null,null,null,null,null,2,0,1,0,0,-40]
[null,null,null,null,null,null,null,null,null,null,null,null,null,2,0,1,0,1,-40]
[null,null,null,null,null,null,null,null,null,null,null,null,null,2,0,1,0,2,-40]
[null,null,null,null,null,null,null,null,null,null,null,null,null,2,0,1,0,3,-40]
[null,null,null,null,null,null,null,null,null,null,null,null,null,2,0,1,1,0,-40]
[null,null,null,null,null,null,null,null,null,null,null,null,null,2,0,1,1,1,-40]
[null,null,null,null,null,null,null,null,null,null,null,null,null,2,0,1,1,2,-40]
[null,null,null,null,null,null,null,null,null,null,null,null,null,2,0,1,1,3,-40]
[null,null,null,null,null,null,null,null,null,null,null,null,null,2,0,1,2,0,-40]
[null,null,null,null,null,null,null,null,null,null,null,null,null,2,0,1,2,1,-40]
[null,null,null,null,null,null,null,null,null,null,null,null,null,2,0,1,2,2,-40]
[null,null,null,null,null,null,null,null,null,null,null,null,null,2,0,1,2,3,-40]
[null,null,null,null,null,null,null,null,null,null,null,null,null,2,0,2,0,0,-40]
[null,null,null,null,null,null,null,null,null,null,null,null,null,2,0,2,0,1,-40]
[null,null,null,null,null,null,null,null,null,null,null,null,null,2,0,2,0,2,-40]
[null,null,null,null,null,null,null,null,null,null,null,null,null,2,0,2,0,3,-40]
[null,null,null,null,null,null,null,null,null,null,null,null,null,2,0,2,1,0,-40]
[null,null,null,null,null,null,null,null,null,null,null,null,null,2,0,2,1,1,-40]
[null,null,null,null,null,null,null,null,null,null,null,null,null,2,0,2,1,2,-40]
[null,null,null,null,null,null,null,null,null,null,null,null,null,2,0,2,1,3,-40]
[null,null,null,null,null,null,null,null,null,null,null,null,null,2,0,2,2,0,-40]
[null,null,null,null,null,null,null,null,null,null,null,null,null,2,0,2,2,1,-40]
[null,null,null,null,null,null,null,null,null,null,null,null,null,2,0,2,2,2,-40]
[null,null,null,null,null,null,null,null,null,null,null,null,null,2,0,2,2,3,-40]
[null,null,null,null,null,null,null,null,null,null,null,null,null,2,0,3,0,0,-40]
[null,null,null,null,null,null,null,null,null,null,null,null,null,2,0,3,0,1,-40]
[null,null,null,null,null,null,null,null,null,null,null,null,null,2,0,3,0,2,-40]
[null,null,null,null,null,null,null,null,null,null,null,null,null,2,0,3,0,3,-40]
[null,null,null,null,null,null,null,null,null,null,null,null,null,2,0,3,1,0,-40]
[null,null,null,null,null,null,null,null,null,null,null,null,null,2,0,3,1,1,-40]
[null,null,null,null,null,null,null,null,null,null,null,null,null,2,0,3,1,2,-40]
[null,null,null,null,null,null,null,null,null,null,null,null,null,2,0,3,1,3,-40]
[null,null,null,null,null,null,null,null,null,null,null,null,null,2,0,3,2,0,-40]
[null,null,null,null,null,null,null,null,null,null,null,null,null,2,0,3,2,1,-40]
[null,null,null,null,null,null,null,null,null,null,null,null,null,2,0,3,2,2,-40]
[null,null,null,null,null,null,null,null,null,null,null,null,null,2,0,3,2,3,-40]
[null,null,null,null,null,null,null,null,null,null,null,null,null,2,1,0,0,0,-40]
[null,null,null,null,null,null,null,null,null,null,null,null,null,2,1,0,0,1,-40]
[null,null,null,null,null,null,null,null,null,null,null,null,null,2,1,0,0,2,-40]
[null,null,null,null,null,null,null,null,null,null,null,null,null,2,1,0,0,3,-40]
[null,null,null,null,null,null,null,null,null,null,null,null,null,2,1,0,1,0,-40]
[null,null,null,null,null,null,null,null,null,null,null,null,null,2,1,0,1,1,-40]
[null,null,null,null,null,null,null,null,null,null,null,null,null,2,1,0,1,2,-40]
[null,null,null,null,null,null,null,null,null,null,null,null,null,2,1,0,1,3,-40]
[null,null,null,null,null,null,null,null,null,null,null,null,null,2,1,0,2,0,-40]
[null,null,null,null,null,null,null,null,null,null,null,null,null,2,1,0,2,1,-40]
[null,null,null,null,null,null,null,null,null,null,null,null,null,2,1,0,2,2,-40]
[null,null,null,null,null,null,null,null,null,null,null,null,null,2,1,0,2,3,-40]
[null,null,null,null,null,null,null,null,null,null,null,null,null,2,1,1,0,0,-40]
[null,null,null,null,null,null,null,null,null,null,null,null,null,2,1,1,0,1,-40]
[null,null,null,null,null,null,null,null,null,null,null,null,null,2,1,1,0,2,-40]
[null,null,null,null,null,null,null,null,null,null,null,null,null,2,1,1,0,3,-40]
[null,null,null,null,null,null,null,null,null,null,null,null,null,2,1,1,1,0,-40]
[null,null,null,null,null,null,null,null,null,null,null,null,null,2,1,1,1,1,-40]
[null,null,null,null,null,null,null,null,null,null,null,null,null,2,1,1,1,2,-40]
[null,null,null,null,null,null,null,null,null,null,null,null,null,2,1,1,1,3,-40]
[null,null,null,null,null,null,null,null,null,null,null,null,null,2,1,1,2,0,-40]
[null,null,null,null,null,null,null,null,null,null,null,null,null,2,1,1,2,1,-40]
[null,null,null,null,null,null,null,null,null,null,null,null,null,2,1,1,2,2,-40]
[null,null,null,null,null,null,null,null,null,null,null,null,null,2,1,1,2,3,-40]
[null,null,null,null,null,null,null,null,null,null,null,null,null,2,1,2,0,0,-40]
[null,null,null,null,null,null,null,null,null,null,null,null,null,2,1,2,0,1,-40]
[null,null,null,null,null,null,null,null,null,null,null,null,null,2,1,2,0,2,-40]
[null,null,null,null,null,null,null,null,null,null,null,null,null,2,1,2,0,3,-40]
[null,null,null,null,null,null,null,null,null,null,null,null,null,2,1,2,1,0,-40]
[null,null,null,null,null,null,null,null,null,null,null,null,null,2,1,2,1,1,-40]
[null,null,null,null,null,null,null,null,null,null,null,null,null,2,1,2,1,2,-40]
[null,null,null,null,null,null,null,null,null,null,null,null,null,2,1,2,1,3,-40]
[null,null,null,null,null,null,null,null,null,null,null,null,null,2,1,2,2,0,-40]
[null,null,null,null,null,null,null,null,null,null,null,null,null,2,1,2,2,1,-40]
[null,null,null,null,null,null,null,null,null,null,null,null,null,2,1,2,2,2,-40]
[null,null,null,null,null,null,null,null,null,null,null,null,null,2,1,2,2,3,-40]
[null,null,null,null,null,null,null,null,null,null,null,null,null,2,1,3,0,0,-40]
[null,null,null,null,null,null,null,null,null,null,null,null,null,2,1,3,0,1,-40]
[null,null,null,null,null,null,null,null,null,null,null,null,null,2,1,3,0,2,-40]
[null,null,null,null,null,null,null,null,null,null,null,null,null,2,1,3,0,3,-40]
[null,null,null,null,null,null,null,null,null,null,null,null,null,2,1,3,1,0,-40]
[null,null,null,null,null,null,null,null,null,null,null,null,null,2,1,3,1,1,-40]
[null,null,null,null,null,null,null,null,null,null,null,null,null,2,1,3,1,2,-40]
[null,null,null,null,null,null,null,null,null,null,null,null,null,2,1,3,1,3,-40]
[null,null,null,null,null,null,null,null,null,null,null,null,null,2,1,3,2,0,-40]
[null,null,null,null,null,null,null,null,null,null,null,null,null,2,1,3,2,1,-40]
[null,null,null,null,null,null,null,null,null,null,null,null,null,2,1,3,2,2,-40]
[null,null,null,null,null,null,null,null,null,null,null,null,null,2,1,3,2,3,-40]
[null,null,null,null,null,null,null,null,null,null,null,null,null,2,2,0,0,0,-40]
[null,null,null,null,null,null,null,null,null,null,null,null,null,2,2,0,0,1,-40]
[null,null,null,null,null,null,null,null,null,null,null,null,null,2,2,0,0,2,-40]
[null,null,null,null,null,null,null,null,null,null,null,null,null,2,2,0,0,3,-40]
[null,null,null,null,null,null,null,null,null,null,null,null,null,2,2,0,1,0,-40]
[null,null,null,null,null,null,null,null,null,null,null,null,null,2,2,0,1,1,-40]
[null,null,null,null,null,null,null,null,null,null,null,null,null,2,2,0,1,2,-40]
[null,null,null,null,null,null,null,null,null,null,null,null,null,2,2,0,1,3,-40]
[null,null,null,null,null,null,null,null,null,null,null,null,null,2,2,0,2,0,-40]
[null,null,null,null,null,null,null,null,null,null,null,null,null,2,2,0,2,1,-40]
[null,null,null,null,null,null,null,null,null,null,null,null,null,2,2,0,2,2,-40]
[null,null,null,null,null,null,null,null,null,null,null,null,null,2,2,0,2,3,-40]
[null,null,null,null,null,null,null,null,null,null,null,null,null,2,2,1,0,0,-40]
[null,null,null,null,null,null,null,null,null,null,null,null,null,2,2,1,0,1,-40]
[null,null,null,null,null,null,null,null,null,null,null,null,null,2,2,1,0,2,-40]
[null,null,null,null,null,null,null,null,null,null,null,null,null,2,2,1,0,3,-40]
[null,null,null,null,null,null,null,null,null,null,null,null,null,2,2,1,1,0,-40]
[null,null,null,null,null,null,null,null,null,null,null,null,null,2,2,1,1,1,-40]
[null,null,null,null,null,null,null,null,null,null,null,null,null,2,2,1,1,2,-40]
[null,null,null,null,null,null,null,null,null,null,null,null,null,2,2,1,1,3,-40]
[null,null,null,null,null,null,null,null,null,null,null,null,null,2,2,1,2,0,-40]
[null,null,null,null,null,null,null,null,null,null,null,null,null,2,2,1,2,1,-40]
[null,null,null,null,null,null,null,null,null,null,null,null,null,2,2,1,2,2,-40]
[null,null,null,null,null,null,null,null,null,null,null,null,null,2,2,1,2,3,-40]
[null,null,null,null,null,null,null,null,null,null,null,null,null,2,2,2,0,0,-40]
[null,null,null,null,null,null,null,null,null,null,null,null,null,2,2,2,0,1,-40]
[null,null,null,null,null,null,null,null,null,null,null,null,null,2,2,2,0,2,-40]
[null,null,null,null,null,null,null,null,null,null,null,null,null,2,2,2,0,3,-40]
[null,null,null,null,null,null,null,null,null,null,null,null,null,2,2,2,1,0,-40]
[null,null,null,null,null,null,null,null,null,null,null,null,null,2,2,2,1,1,-40]
[null,null,null,null,null,null,null,null,null,null,null,null,null,2,2,2,1,2,-40]
[null,null,null,null,null,null,null,null,null,null,null,null,null,2,2,2,1,3,-40]
[null,null,null,null,null,null,null,null,null,null,null,null,null,2,2,2,2,0,-40]
[null,null,null,null,null,null,null,null,null,null,null,null,null,2,2,2,2,1,-40]
[null,null,null,null,null,null,null,null,null,null,null,null,null,2,2,2,2,2,-40]
[null,null,null,null,null,null,null,null,null,null,null,null,null,2,2,2,2,3,-40]
[null,null,null,null,null,null,null,null,null,null,null,null,null,2,2,3,0,0,-40]
[null,null,null,null,null,null,null,null,null,null,null,null,null,2,2,3,0,1,-40]
[null,null,null,null,null,null,null,null,null,null,null,null,null,2,2,3,0,2,-40]
[null,null,null,null,null,null,null,null,null,null,null,null,null,2,2,3,0,3,-40]
[null,null,null,null,null,null,null,null,null,null,null,null,null,2,2,3,1,0,-40]
[null,null,null,null,null,null,null,null,null,null,null,null,null,2,2,3,1,1,-40]
[null,null,null,null,null,null,null,null,null,null,null,null,null,2,2,3,1,2,-40]
[null,null,null,null,null,null,null,null,null,null,null,null,null,2,2,3,1,3,-40]
[null,null,null,null,null,null,null,null,null,null,null,null,null,2,2,3,2,0,-40]
[null,null,null,null,null,null,null,null,null,null,null,null,null,2,2,3,2,1,-40]
[null,null,null,null,null,null,null,null,null,null,null,null,null,2,2,3,2,2,-40]
[null,null,null,null,null,null,null,null,null,null,null,null,null,2,2,3,2,3,-40]
[null,null,null,null,null,null,null,null,null,null,null,null,null,2,3,0,0,0,-40]
[null,null,null,null,null,null,null,null,null,null,null,null,null,2,3,0,0,1,-40]
[null,null,null,null,null,null,null,null,null,null,null,null,null,2,3,0,0,2,-40]
[null,null,null,null,null,null,null,null,null,null,null,null,null,2,3,0,0,3,-40]
[null,null,null,null,null,null,null,null,null,null,null,null,null,2,3,0,1,0,-40]
[null,null,null,null,null,null,null,null,null,null,null,null,null,2,3,0,1,1,-40]
[null,null,null,null,null,null,null,null,null,null,null,null,null,2,3,0,1,2,-40]
[null,null,null,null,null,null,null,null,null,null,null,null,null,2,3,0,1,3,-40]
[null,null,null,null,null,null,null,null,null,null,null,null,null,2,3,0,2,0,-40]
[null,null,null,null,null,null,null,null,null,null,null,null,null,2,3,0,2,1,-40]
[null,null,null,null,null,null,null,null,null,null,null,null,null,2,3,0,2,2,-40]
[null,null,null,null,null,null,null,null,null,null,null,null,null,2,3,0,2,3,-40]
[null,null,null,null,null,null,null,null,null,null,null,null,null,2,3,1,0,0,-40]
[null,null,null,null,null,null,null,null,null,null,null,null,null,2,3,1,0,1,-40]
[null,null,null,null,null,null,null,null,null,null,null,null,null,2,3,1,0,2,-40]
[null,null,null,null,null,null,null,null,null,null,null,null,null,2,3,1,0,3,-40]
[null,null,null,null,null,null,null,null,null,null,null,null,null,2,3,1,1,0,-40]
[null,null,null,null,null,null,null,null,null,null,null,null,null,2,3,1,1,1,-40]
[null,null,null,null,null,null,null,null,null,null,null,null,null,2,3,1,1,2,-40]
[null,null,null,null,null,null,null,null,null,null,null,null,null,2,3,1,1,3,-40]
[null,null,null,null,null,null,null,null,null,null,null,null,null,2,3,1,2,0,-40]
[null,null,null,null,null,null,null,null,null,null,null,null,null,2,3,1,2,1,-40]
[null,null,null,null,null,null,null,null,null,null,null,null,null,2,3,1,2,2,-40]
[null,null,null,null,null,null,null,null,null,null,null,null,null,2,3,1,2,3,-40]
[null,null,null,null,null,null,null,null,null,null,null,null,null,2,3,2,0,0,-40]
[null,null,null,null,null,null,null,null,null,null,null,null,null,2,3,2,0,1,-40]
[null,null,null,null,null,null,null,null,null,null,null,null,null,2,3,2,0,2,-40]
[null,null,null,null,null,null,null,null,null,null,null,null,null,2,3,2,0,3,-40]
[null,null,null,null,null,null,null,null,null,null,null,null,null,2,3,2,1,0,-40]
[null,null,null,null,null,null,null,null,null,null,null,null,null,2,3,2,1,1,-40]

{"sheet":"EP Summary","index":12,"n_rows":22,"n_cols":8,"rows_kept":22,"cut":false,"hidden":false,"merged":[[8,2,8,3],[21,2,21,4],[20,3,20,4],[13,2,13,3],[7,4,7,5],[11,2,11,3],[14,2,18,2],[14,4,18,4],[12,2,12,3],[9,2,9,3],[10,2,10,3],[2,2,2,5],[3,2,3,3],[4,3,4,4],[5,3,5,4],[7,6,7,7]]}
[]
[]
[null,null,"Opra Banded Profile"]
[]
[null,null,"Organisation Name:",{"$f":"Introduction!E8","v":"Horizon Nuclear Power Wylfa Ltd"}]
[null,null,"Case Number:",{"$f":"Introduction!I8","v":0}]
[]
[null,null,null,null,"Profile before any rules or capping applied",null,"Opra Banded Profile used for charging"]
[null,null,"Attribute",null,"Number","Band","Number","Band"]
[null,null,"Complexity",null,{"$f":"Complexities!H51","v":0},"A",{"$f":"Complexities!F51","v":0},"A"]
[null,null,null,null,{"$f":"Complexities!H52","v":0},"B",{"$f":"Complexities!F52","v":0},"B"]
[null,null,null,null,{"$f":"Complexities!H53","v":7},"C",{"$f":"Complexities!F53","v":0},"C"]
[null,null,null,null,{"$f":"Complexities!H54","v":0},"D",{"$f":"Complexities!F54","v":0},"D"]
[null,null,null,null,{"$f":"Complexities!H55","v":0},"E",{"$f":"Complexities!F55","v":0},"E"]
[null,null,"Emissions","Air",null,{"$f":"'Emissions Summary'!E22","v":"B"},null,{"$f":"'Emissions Summary'!E22","v":"B"}]
[null,null,null,"Water",null,{"$f":"'Emissions Summary'!E23","v":"-"},null,{"$f":"'Emissions Summary'!E23","v":"-"}]
[null,null,null,"Land",null,{"$f":"'Emissions Summary'!E24","v":"-"},null,{"$f":"'Emissions Summary'!E24","v":"-"}]
[null,null,null,"Sewer",null,{"$f":"'Emissions Summary'!E25","v":"-"},null,{"$f":"'Emissions Summary'!E25","v":"-"}]
[null,null,null,"Waste Off Site",null,{"$f":"'Emissions Summary'!E26","v":"-"},null,{"$f":"'Emissions Summary'!E26","v":"-"}]
[null,null,null,"Waste Input",null,{"$f":"'Emissions Summary'!E27","v":"-"},null,{"$f":"'Emissions Summary'!E27","v":"-"}]
[null,null,"Location",null,null,{"$f":"Location!F43","v":"C"},null,{"$f":"Location!F43","v":"C"}]
[null,null,"Operator Performance",null,null,{"$f":"'Op Perf'!I150","v":"A"},null,{"$f":"'Op Perf'!I150","v":"A"}]

{"sheet":"Calculation","index":13,"n_rows":42,"n_cols":15,"rows_kept":42,"cut":false,"hidden":false,"merged":[[2,3,2,4],[2,5,2,6],[2,7,2,8],[24,3,24,5],[39,5,39,7],[32,5,32,8],[33,5,33,7],[26,5,26,9],[27,5,30,9],[34,5,34,7],[35,5,35,7],[36,5,36,7],[38,5,38,7],[37,5,37,7]]}
[]
[]
[null,null,"Organisation Name:",{"$f":"Introduction!E8","v":"Horizon Nuclear Power Wylfa Ltd"},null,"Case Number:",null,{"$f":"Introduction!I8","v":0}]
[]
[null,null,"EPR Installations Application Charge Calculation"]
[null,null,"(excludes Compliance Rating)"]
[null,null,"Scoring Summary - Financial"]
[]
[null,null,"Attribute","Band",null,"Score","Total Score"]
[null,null,"Complexity","A",0,{"$f":"HLOOKUP(D10,Lookup!$C$5:$G$13,2,FALSE)","v":2},{"$f":"E10*F10","v":0}]
[null,null,null,"B",0,{"$f":"HLOOKUP(D11,Lookup!$C$5:$G$13,2,FALSE)","v":15},0]
[null,null,null,"C",3,{"$f":"HLOOKUP(D12,Lookup!$C$5:$G$13,2,FALSE)","v":45},135]
[null,null,null,"D",0,{"$f":"HLOOKUP(D13,Lookup!$C$5:$G$13,2,FALSE)","v":82},0]
[null,null,null,"E",0,{"$f":"HLOOKUP(D14,Lookup!$C$5:$G$13,2,FALSE)","v":110},0]
[null,null,null,null,3,{"$f":"HLOOKUP(D15,Lookup!$C$5:$G$13,2,FALSE)","v":{"$error":"#N/A"}},{"$error":"#N/A"}]
[null,null,null,null,"-",{"$f":"HLOOKUP(D16,Lookup!$C$5:$G$13,2,FALSE)","v":{"$error":"#N/A"}},{"$error":"#VALUE!"}]
[null,null,"Emissions to Air","B",null,null,{"$f":"IF(OR(D17=\"-\",D17=\"\",D17=0,D17=\"0\"),0,HLOOKUP(D17,Lookup!$C$5:$G$13,3,FALSE))","v":10}]
[null,null,"Emissions to Water","-",null,null,{"$f":"IF(OR(D18=\"-\",D18=\"\",D18=0,D18=\"0\"),0,HLOOKUP(D18,Lookup!$C$5:$G$13,4,FALSE))","v":0}]
[null,null,"Emissions to Land","-",null,null,{"$f":"IF(OR(D19=\"-\",D19=\"\",D19=0,D19=\"0\"),0,HLOOKUP(D19,Lookup!$C$5:$G$13,5,FALSE))","v":0}]
[null,null,"Emissions to Sewer","-",null,null,{"$f":"IF(OR(D20=\"-\",D20=\"\",D20=0,D20=\"0\"),0,HLOOKUP(D20,Lookup!$C$5:$G$13,8,FALSE))","v":0}]
[null,null,"Emissions to Off-site Waste","-",null,null,{"$f":"IF(OR(D21=\"-\",D21=\"\",D21=0,D21=\"0\"),0,HLOOKUP(D21,Lookup!$C$5:$G$13,8,FALSE))","v":0}]
[null,null,"Emissions - Waste Input","-",null,null,{"$f":"IF(OR(D22=\"-\",D22=\"\",D22=0,D22=\"0\"),0,HLOOKUP(D22,Lookup!$C$5:$G$13,5,FALSE))","v":0}]
[null,null,"Location","C",null,null,{"$f":"IF(OR(D23=\"-\",D23=\"\",D23=0,D23=\"0\"),0,HLOOKUP(D23,Lookup!$C$5:$G$13,6,FALSE))","v":20}]
[null,null,"Operator Performance","A",null,null,{"$f":"IF(OR(D24=\"-\",D24=\"\",D24=0,D24=\"0\"),0,HLOOKUP(D24,Lookup!$C$5:$G$13,7,FALSE))","v":10}]
[null,null,null,"Total Opra charging score",null,null,{"$f":"SUM(G10:G14,G17:G24)","v":175}]
[]
[null,null,"Indicative Fees & Charges",null,null,"Part A(2) and Part B Activities"]
[null,null,"Application Fee",{"$f":"Mult_App*Total_EP_OPRA_score1","v":36050},null,"Please ensure that you have completed these entries in the Listed Activities sheet. The charge shown will not include any charges associated with Local Authority Part A (2) or Part B activities that form part of the installation.\nRefer to Installations Charging Scheme for further details."]
[]
[null,null,"Subsistence Charge*",{"$f":"Mult_Subs*Total_EP_OPRA_score1","v":17500}]
[]
[null,null,"Substantial Variation",{"$f":"Mult_SubsVar*Total_EP_OPRA_score1","v":19775}]
[null,null,null,null,null,"Opra Charge Multipliers",null,null,null,null,null,null,null,"E"]
[null,null,"Standard Variation",{"$f":"Mult_StanVar*Total_EP_OPRA_score1","v":9975},null,"Application",null,null,206,null,null,null,null,206,201]
[null,null,null,null,null,"Subsistence",null,null,100,null,null,null,null,101,98]
[null,null,"Partial Surrender",{"$f":"Mult_PartSur*Total_EP_OPRA_score1","v":17150},null,"Substantial Variation",null,null,113,null,null,null,null,113,110]
[null,null,null,null,null,"Standard Variation",null,null,57,null,null,null,null,58,56]
[null,null,"Full Surrender",{"$f":"Mult_FullSur*Total_EP_OPRA_score1","v":22225},null,"Partial Surrender",null,null,98,null,null,null,null,99,96]
[null,null,null,null,null,"Full Surrender",null,null,127,null,null,null,null,127,124]
[null,null,"Closure",{"$f":"Mult_Closure*Total_EP_OPRA_score1","v":0},null,"Closure (Landfill only)"]
[]
[null,null,"* Does not take into account Compliance Rating"]

{"sheet":"Compliance Rating","index":14,"n_rows":21,"n_cols":6,"rows_kept":21,"cut":false,"hidden":false,"merged":[]}
[]
[null,null,"Compliance Rating"]
[]
[null,null,"Breach Category*","Events","Score per event","Total"]
[null,null,1,0,60,{"$f":"IF(D5=\"\",\"-\",D5*E5)","v":0}]
[null,null,2,0,31,{"$f":"IF(D6=\"\",\"-\",D6*E6)","v":0}]
[null,null,3,0,4,{"$f":"IF(D7=\"\",\"-\",D7*E7)","v":0}]
[null,null,4,0,0.1,{"$f":"IF(D8=\"\",\"-\",D8*E8)","v":0}]
[]
[null,null,null,null,"Compliance Index",{"$f":"IF(F5&F6&F7&F8 = \"----\",\"-\",SUM(F5:F8))","v":0}]
[]
[null,null,null,"Compliance Rating Band",null,{"$f":"IF(F10=\"-\",\"No Data\",IF(F10>149,\"F\",IF(F10>60,\"E\",IF(F10>30,\"D\",IF(F10>10,\"C\",IF(F10>0,\"B\",\"A\"))))))","v":"A"}]
[]
[null,null,null,"Compliance Rating Multiplier",null,{"$f":"IF(F10=\"-\",1,HLOOKUP(F12,Lookup!$C$5:$H$14,10,FALSE))","v":0.95}]
[null,"* Under Compliance Classification Scheme (CCS)"]
[]
[null,"Opra Score"]
[null,"Without Compliance Rating",null,{"$f":"Total_EP_OPRA_score1","v":175}]
[null,"Including Compliance Rating",null,{"$f":"D18*F14","v":166.25}]
[]
[null,"Subsistence Fee:",null,{"$f":"Mult_Subs*D19","v":16625}]

{"sheet":"XML Data","index":15,"n_rows":823,"n_cols":6,"rows_kept":823,"cut":false,"hidden":true,"merged":[]}
[null,null,null,null,null,"<?xml version=\"1.0\" encoding=\"utf-8\"?>"]
[null,null,null,null,null,"<?EP OPRA data instance developed by Sean Moore Piper Networking Ltd - This version for Consultation of Version 2 of the OPRA Methodology?>"]
[null,null,null,null,null,"<EPOPRA>"]
[null,null,null,null,null,"<section>"]
[null,"Spreadsheet Version","<spreadsheetVersion>",{"$f":"Introduction!D10","v":"NRW V1"},"</spreadsheetVersion>",{"$f":"CONCATENATE(C5,D5,E5)","v":"<spreadsheetVersion>NRW V1</spreadsheetVersion>"}]
[null,"Company Name","<organisationName>",{"$f":"Introduction!E8","v":"Horizon Nuclear Power Wylfa Ltd"},"</organisationName>",{"$f":"CONCATENATE(C6,D6,E6)","v":"<organisationName>Horizon Nuclear Power Wylfa Ltd</organisationName>"}]
[null,"Case Number","<caseNumber>",{"$f":"Introduction!I8","v":0},"</caseNumber>",{"$f":"CONCATENATE(C7,D7,E7)","v":"<caseNumber>0</caseNumber>"}]
[null,null,"<confidentiality>",{"$f":"IF(Introduction!J19=\"\",\"\",\"Commercial-in-Confidence\")","v":""},"</confidentiality>"]
[null,"Start of  Listed Activities","<activities>",null,null,{"$f":"C9","v":"<activities>"}]
[1,"1 - 25 are extracted from Listed Activities sheet","<caseActivity>",null,null,{"$f":"C10","v":"<caseActivity>"}]
[null,"Activity Description","<actDescript>",{"$f":"'Listed Activities'!D8","v":"4 x 25tph Boilers"},"</actDescript>","<actDescript>4 x 25tph Boilers</actDescript>"]
[null,"Schedule 1 reference","<actId>",{"$f":"'Listed Activities'!G8","v":232},"</actId>","<actId>232</actId>"]
[null,"Complexity Band","<actComplexity>",{"$f":"UPPER('Listed Activities'!F8)","v":"C"},"</actComplexity>","<actComplexity>C</actComplexity>"]
[null,null,"</caseActivity>",null,null,{"$f":"C14","v":"</caseActivity>"}]
[2,null,"<caseActivity>",null,null,{"$f":"C15","v":"<caseActivity>"}]
[null,"Activity Description","<actDescript>",{"$f":"'Listed Activities'!D9","v":"2 x 3tph Boilers"},"</actDescript>","<actDescript>2 x 3tph Boilers</actDescript>"]
[null,"Schedule 1 reference","<actId>",{"$f":"'Listed Activities'!G9","v":232},"</actId>","<actId>232</actId>"]
[null,"Complexity Band","<actComplexity>",{"$f":"UPPER('Listed Activities'!F9)","v":"C"},"</actComplexity>","<actComplexity>C</actComplexity>"]
[null,null,"</caseActivity>",null,null,{"$f":"C19","v":"</caseActivity>"}]
[3,null,"<caseActivity>",null,null,{"$f":"C20","v":"<caseActivity>"}]
[null,"Activity Description","<actDescript>",{"$f":"'Listed Activities'!D10","v":"ASGs x2 "},"</actDescript>",{"$f":"CONCATENATE(C21,D21,E21)","v":"<actDescript>ASGs x2 </actDescript>"}]
[null,"Schedule 1 reference","<actId>",{"$f":"'Listed Activities'!G10","v":232},"</actId>",{"$f":"CONCATENATE(C22,D22,E22)","v":"<actId>232</actId>"}]
[null,"Complexity Band","<actComplexity>",{"$f":"UPPER('Listed Activities'!F10)","v":"C"},"</actComplexity>",{"$f":"CONCATENATE(C23,D23,E23)","v":"<actComplexity>C</actComplexity>"}]
[null,null,"</caseActivity>",null,null,{"$f":"C24","v":"</caseActivity>"}]
[4,null,"<caseActivity>",null,null,{"$f":"C25","v":"<caseActivity>"}]
[null,"Activity Description","<actDescript>",{"$f":"'Listed Activities'!D11","v":"BBGs x4 (Units 1 & 2)"},"</actDescript>",{"$f":"CONCATENATE(C26,D26,E26)","v":"<actDescript>BBGs x4 (Units 1 & 2)</actDescript>"}]
[null,"Schedule 1 reference","<actId>",{"$f":"'Listed Activities'!G11","v":232},"</actId>",{"$f":"CONCATENATE(C27,D27,E27)","v":"<actId>232</actId>"}]
[null,"Complexity Band","<actComplexity>",{"$f":"UPPER('Listed Activities'!F11)","v":"C"},"</actComplexity>",{"$f":"CONCATENATE(C28,D28,E28)","v":"<actComplexity>C</actComplexity>"}]
[null,null,"</caseActivity>",null,null,{"$f":"C29","v":"</caseActivity>"}]
[5,null,"<caseActivity>",null,null,{"$f":"C30","v":"<caseActivity>"}]
[null,"Activity Description","<actDescript>",{"$f":"'Listed Activities'!D12","v":"EDGs x3 (Unit 1)"},"</actDescript>",{"$f":"CONCATENATE(C31,D31,E31)","v":"<actDescript>EDGs x3 (Unit 1)</actDescript>"}]
[null,"Schedule 1 reference","<actId>",{"$f":"'Listed Activities'!G12","v":232},"</actId>",{"$f":"CONCATENATE(C32,D32,E32)","v":"<actId>232</actId>"}]
[null,"Complexity Band","<actComplexity>",{"$f":"UPPER('Listed Activities'!F12)","v":"C"},"</actComplexity>",{"$f":"CONCATENATE(C33,D33,E33)","v":"<actComplexity>C</actComplexity>"}]
[null,null,"</caseActivity>",null,null,{"$f":"C34","v":"</caseActivity>"}]
[6,null,"<caseActivity>",null,null,{"$f":"C35","v":"<caseActivity>"}]
[null,"Activity Description","<actDescript>",{"$f":"'Listed Activities'!D13","v":"EDGs x3 (Unit 2)"},"</actDescript>",{"$f":"CONCATENATE(C36,D36,E36)","v":"<actDescript>EDGs x3 (Unit 2)</actDescript>"}]
[null,"Schedule 1 reference","<actId>",{"$f":"'Listed Activities'!G13","v":232},"</actId>",{"$f":"CONCATENATE(C37,D37,E37)","v":"<actId>232</actId>"}]
[null,"Complexity Band","<actComplexity>",{"$f":"UPPER('Listed Activities'!F13)","v":"C"},"</actComplexity>",{"$f":"CONCATENATE(C38,D38,E38)","v":"<actComplexity>C</actComplexity>"}]
[null,null,"</caseActivity>",null,null,{"$f":"C39","v":"</caseActivity>"}]
[7,null,"<caseActivity>",null,null,{"$f":"C40","v":"<caseActivity>"}]
[null,"Activity Description","<actDescript>",{"$f":"'Listed Activities'!D14","v":"Firewater Pumps x2"},"</actDescript>",{"$f":"CONCATENATE(C41,D41,E41)","v":"<actDescript>Firewater Pumps x2</actDescript>"}]
[null,"Schedule 1 reference","<actId>",{"$f":"'Listed Activities'!G14","v":232},"</actId>",{"$f":"CONCATENATE(C42,D42,E42)","v":"<actId>232</actId>"}]
[null,"Complexity Band","<actComplexity>",{"$f":"UPPER('Listed Activities'!F14)","v":"C"},"</actComplexity>",{"$f":"CONCATENATE(C43,D43,E43)","v":"<actComplexity>C</actComplexity>"}]
[null,null,"</caseActivity>",null,null,{"$f":"C44","v":"</caseActivity>"}]
[8,null,"<caseActivity>",null,null,{"$f":"C45","v":"<caseActivity>"}]
[null,"Activity Description","<actDescript>",{"$f":"'Listed Activities'!D15","v":0},"</actDescript>",{"$f":"CONCATENATE(C46,D46,E46)","v":"<actDescript>0</actDescript>"}]
[null,"Schedule 1 reference","<actId>",{"$f":"'Listed Activities'!G15","v":0},"</actId>",{"$f":"CONCATENATE(C47,D47,E47)","v":"<actId>0</actId>"}]
[null,"Complexity Band","<actComplexity>",{"$f":"UPPER('Listed Activities'!F15)","v":""},"</actComplexity>",{"$f":"CONCATENATE(C48,D48,E48)","v":"<actComplexity></actComplexity>"}]
[null,null,"</caseActivity>",null,null,{"$f":"C49","v":"</caseActivity>"}]
[9,null,"<caseActivity>",null,null,{"$f":"C50","v":"<caseActivity>"}]
[null,"Activity Description","<actDescript>",{"$f":"'Listed Activities'!D16","v":0},"</actDescript>",{"$f":"CONCATENATE(C51,D51,E51)","v":"<actDescript>0</actDescript>"}]
[null,"Schedule 1 reference","<actId>",{"$f":"'Listed Activities'!G16","v":0},"</actId>",{"$f":"CONCATENATE(C52,D52,E52)","v":"<actId>0</actId>"}]
[null,"Complexity Band","<actComplexity>",{"$f":"UPPER('Listed Activities'!F16)","v":""},"</actComplexity>",{"$f":"CONCATENATE(C53,D53,E53)","v":"<actComplexity></actComplexity>"}]
[null,null,"</caseActivity>",null,null,{"$f":"C54","v":"</caseActivity>"}]
[10,null,"<caseActivity>",null,null,{"$f":"C55","v":"<caseActivity>"}]
[null,"Activity Description","<actDescript>",{"$f":"'Listed Activities'!D17","v":0},"</actDescript>",{"$f":"CONCATENATE(C56,D56,E56)","v":"<actDescript>0</actDescript>"}]
[null,"Schedule 1 reference","<actId>",{"$f":"'Listed Activities'!G17","v":0},"</actId>",{"$f":"CONCATENATE(C57,D57,E57)","v":"<actId>0</actId>"}]
[null,"Complexity Band","<actComplexity>",{"$f":"UPPER('Listed Activities'!F17)","v":""},"</actComplexity>",{"$f":"CONCATENATE(C58,D58,E58)","v":"<actComplexity></actComplexity>"}]
[null,null,"</caseActivity>",null,null,{"$f":"C59","v":"</caseActivity>"}]
[11,null,"<caseActivity>",null,null,{"$f":"C60","v":"<caseActivity>"}]
[null,"Activity Description","<actDescript>",{"$f":"'Listed Activities'!D18","v":0},"</actDescript>",{"$f":"CONCATENATE(C61,D61,E61)","v":"<actDescript>0</actDescript>"}]
[null,"Schedule 1 reference","<actId>",{"$f":"'Listed Activities'!G18","v":0},"</actId>",{"$f":"CONCATENATE(C62,D62,E62)","v":"<actId>0</actId>"}]
[null,"Complexity Band","<actComplexity>",{"$f":"UPPER('Listed Activities'!F18)","v":""},"</actComplexity>",{"$f":"CONCATENATE(C63,D63,E63)","v":"<actComplexity></actComplexity>"}]
[null,null,"</caseActivity>",null,null,{"$f":"C64","v":"</caseActivity>"}]
[12,null,"<caseActivity>",null,null,{"$f":"C65","v":"<caseActivity>"}]
[null,"Activity Description","<actDescript>",{"$f":"'Listed Activities'!D19","v":0},"</actDescript>",{"$f":"CONCATENATE(C66,D66,E66)","v":"<actDescript>0</actDescript>"}]
[null,"Schedule 1 reference","<actId>",{"$f":"'Listed Activities'!G19","v":0},"</actId>",{"$f":"CONCATENATE(C67,D67,E67)","v":"<actId>0</actId>"}]
[null,"Complexity Band","<actComplexity>",{"$f":"UPPER('Listed Activities'!F19)","v":""},"</actComplexity>",{"$f":"CONCATENATE(C68,D68,E68)","v":"<actComplexity></actComplexity>"}]
[null,null,"</caseActivity>",null,null,{"$f":"C69","v":"</caseActivity>"}]
[13,null,"<caseActivity>",null,null,{"$f":"C70","v":"<caseActivity>"}]
[null,"Activity Description","<actDescript>",{"$f":"'Listed Activities'!D20","v":0},"</actDescript>",{"$f":"CONCATENATE(C71,D71,E71)","v":"<actDescript>0</actDescript>"}]
[null,"Schedule 1 reference","<actId>",{"$f":"'Listed Activities'!G20","v":0},"</actId>",{"$f":"CONCATENATE(C72,D72,E72)","v":"<actId>0</actId>"}]
[null,"Complexity Band","<actComplexity>",{"$f":"UPPER('Listed Activities'!F20)","v":""},"</actComplexity>",{"$f":"CONCATENATE(C73,D73,E73)","v":"<actComplexity></actComplexity>"}]
[null,null,"</caseActivity>",null,null,{"$f":"C74","v":"</caseActivity>"}]
[14,null,"<caseActivity>",null,null,{"$f":"C75","v":"<caseActivity>"}]
[null,"Activity Description","<actDescript>",{"$f":"'Listed Activities'!D21","v":0},"</actDescript>",{"$f":"CONCATENATE(C76,D76,E76)","v":"<actDescript>0</actDescript>"}]
[null,"Schedule 1 reference","<actId>",{"$f":"'Listed Activities'!G21","v":0},"</actId>",{"$f":"CONCATENATE(C77,D77,E77)","v":"<actId>0</actId>"}]
[null,"Complexity Band","<actComplexity>",{"$f":"UPPER('Listed Activities'!F21)","v":""},"</actComplexity>",{"$f":"CONCATENATE(C78,D78,E78)","v":"<actComplexity></actComplexity>"}]
[null,null,"</caseActivity>",null,null,{"$f":"C79","v":"</caseActivity>"}]
[15,null,"<caseActivity>",null,null,{"$f":"C80","v":"<caseActivity>"}]
[null,"Activity Description","<actDescript>",{"$f":"'Listed Activities'!D22","v":0},"</actDescript>",{"$f":"CONCATENATE(C81,D81,E81)","v":"<actDescript>0</actDescript>"}]
[null,"Schedule 1 reference","<actId>",{"$f":"'Listed Activities'!G22","v":0},"</actId>",{"$f":"CONCATENATE(C82,D82,E82)","v":"<actId>0</actId>"}]
[null,"Complexity Band","<actComplexity>",{"$f":"UPPER('Listed Activities'!F22)","v":""},"</actComplexity>",{"$f":"CONCATENATE(C83,D83,E83)","v":"<actComplexity></actComplexity>"}]
[null,null,"</caseActivity>",null,null,{"$f":"C84","v":"</caseActivity>"}]
[16,null,"<caseActivity>",null,null,{"$f":"C85","v":"<caseActivity>"}]
[null,"Activity Description","<actDescript>",{"$f":"'Listed Activities'!D23","v":0},"</actDescript>",{"$f":"CONCATENATE(C86,D86,E86)","v":"<actDescript>0</actDescript>"}]
[null,"Schedule 1 reference","<actId>",{"$f":"'Listed Activities'!G23","v":0},"</actId>",{"$f":"CONCATENATE(C87,D87,E87)","v":"<actId>0</actId>"}]
[null,"Complexity Band","<actComplexity>",{"$f":"UPPER('Listed Activities'!F23)","v":""},"</actComplexity>",{"$f":"CONCATENATE(C88,D88,E88)","v":"<actComplexity></actComplexity>"}]
[null,null,"</caseActivity>",null,null,{"$f":"C89","v":"</caseActivity>"}]
[17,null,"<caseActivity>",null,null,{"$f":"C90","v":"<caseActivity>"}]
[null,"Activity Description","<actDescript>",{"$f":"'Listed Activities'!D24","v":0},"</actDescript>",{"$f":"CONCATENATE(C91,D91,E91)","v":"<actDescript>0</actDescript>"}]
[null,"Schedule 1 reference","<actId>",{"$f":"'Listed Activities'!G24","v":0},"</actId>",{"$f":"CONCATENATE(C92,D92,E92)","v":"<actId>0</actId>"}]
[null,"Complexity Band","<actComplexity>",{"$f":"UPPER('Listed Activities'!F24)","v":""},"</actComplexity>",{"$f":"CONCATENATE(C93,D93,E93)","v":"<actComplexity></actComplexity>"}]
[null,null,"</caseActivity>",null,null,{"$f":"C94","v":"</caseActivity>"}]
[18,null,"<caseActivity>",null,null,{"$f":"C95","v":"<caseActivity>"}]
[null,"Activity Description","<actDescript>",{"$f":"'Listed Activities'!D25","v":0},"</actDescript>",{"$f":"CONCATENATE(C96,D96,E96)","v":"<actDescript>0</actDescript>"}]
[null,"Schedule 1 reference","<actId>",{"$f":"'Listed Activities'!G25","v":0},"</actId>",{"$f":"CONCATENATE(C97,D97,E97)","v":"<actId>0</actId>"}]
[null,"Complexity Band","<actComplexity>",{"$f":"UPPER('Listed Activities'!F25)","v":""},"</actComplexity>",{"$f":"CONCATENATE(C98,D98,E98)","v":"<actComplexity></actComplexity>"}]
[null,null,"</caseActivity>",null,null,{"$f":"C99","v":"</caseActivity>"}]
[19,null,"<caseActivity>",null,null,{"$f":"C100","v":"<caseActivity>"}]
[null,"Activity Description","<actDescript>",{"$f":"'Listed Activities'!D26","v":0},"</actDescript>",{"$f":"CONCATENATE(C101,D101,E101)","v":"<actDescript>0</actDescript>"}]
[null,"Schedule 1 reference","<actId>",{"$f":"'Listed Activities'!G26","v":0},"</actId>",{"$f":"CONCATENATE(C102,D102,E102)","v":"<actId>0</actId>"}]
[null,"Complexity Band","<actComplexity>",{"$f":"UPPER('Listed Activities'!F26)","v":""},"</actComplexity>",{"$f":"CONCATENATE(C103,D103,E103)","v":"<actComplexity></actComplexity>"}]
[null,null,"</caseActivity>",null,null,{"$f":"C104","v":"</caseActivity>"}]
[20,null,"<caseActivity>",null,null,{"$f":"C105","v":"<caseActivity>"}]
[null,"Activity Description","<actDescript>",{"$f":"'Listed Activities'!D27","v":0},"</actDescript>",{"$f":"CONCATENATE(C106,D106,E106)","v":"<actDescript>0</actDescript>"}]
[null,"Schedule 1 reference","<actId>",{"$f":"'Listed Activities'!G27","v":0},"</actId>",{"$f":"CONCATENATE(C107,D107,E107)","v":"<actId>0</actId>"}]
[null,"Complexity Band","<actComplexity>",{"$f":"UPPER('Listed Activities'!F27)","v":""},"</actComplexity>",{"$f":"CONCATENATE(C108,D108,E108)","v":"<actComplexity></actComplexity>"}]
[null,null,"</caseActivity>",null,null,{"$f":"C109","v":"</caseActivity>"}]
[21,null,"<caseActivity>",null,null,{"$f":"C110","v":"<caseActivity>"}]
[null,"Activity Description","<actDescript>",{"$f":"'Listed Activities'!D28","v":0},"</actDescript>",{"$f":"CONCATENATE(C111,D111,E111)","v":"<actDescript>0</actDescript>"}]
[null,"Schedule 1 reference","<actId>",{"$f":"'Listed Activities'!G28","v":0},"</actId>",{"$f":"CONCATENATE(C112,D112,E112)","v":"<actId>0</actId>"}]
[null,"Complexity Band","<actComplexity>",{"$f":"UPPER('Listed Activities'!F28)","v":""},"</actComplexity>",{"$f":"CONCATENATE(C113,D113,E113)","v":"<actComplexity></actComplexity>"}]
[null,null,"</caseActivity>",null,null,{"$f":"C114","v":"</caseActivity>"}]
[22,null,"<caseActivity>",null,null,{"$f":"C115","v":"<caseActivity>"}]
[null,"Activity Description","<actDescript>",{"$f":"'Listed Activities'!D29","v":0},"</actDescript>",{"$f":"CONCATENATE(C116,D116,E116)","v":"<actDescript>0</actDescript>"}]
[null,"Schedule 1 reference","<actId>",{"$f":"'Listed Activities'!G29","v":0},"</actId>",{"$f":"CONCATENATE(C117,D117,E117)","v":"<actId>0</actId>"}]
[null,"Complexity Band","<actComplexity>",{"$f":"UPPER('Listed Activities'!F29)","v":""},"</actComplexity>",{"$f":"CONCATENATE(C118,D118,E118)","v":"<actComplexity></actComplexity>"}]
[null,null,"</caseActivity>",null,null,{"$f":"C119","v":"</caseActivity>"}]
[23,null,"<caseActivity>",null,null,{"$f":"C120","v":"<caseActivity>"}]
[null,"Activity Description","<actDescript>",{"$f":"'Listed Activities'!D30","v":0},"</actDescript>",{"$f":"CONCATENATE(C121,D121,E121)","v":"<actDescript>0</actDescript>"}]
[null,"Schedule 1 reference","<actId>",{"$f":"'Listed Activities'!G30","v":0},"</actId>",{"$f":"CONCATENATE(C122,D122,E122)","v":"<actId>0</actId>"}]
[null,"Complexity Band","<actComplexity>",{"$f":"UPPER('Listed Activities'!F30)","v":""},"</actComplexity>",{"$f":"CONCATENATE(C123,D123,E123)","v":"<actComplexity></actComplexity>"}]
[null,null,"</caseActivity>",null,null,{"$f":"C124","v":"</caseActivity>"}]
[24,null,"<caseActivity>",null,null,{"$f":"C125","v":"<caseActivity>"}]
[null,"Activity Description","<actDescript>",{"$f":"'Listed Activities'!D31","v":0},"</actDescript>",{"$f":"CONCATENATE(C126,D126,E126)","v":"<actDescript>0</actDescript>"}]
[null,"Schedule 1 reference","<actId>",{"$f":"'Listed Activities'!G31","v":0},"</actId>",{"$f":"CONCATENATE(C127,D127,E127)","v":"<actId>0</actId>"}]
[null,"Complexity Band","<actComplexity>",{"$f":"UPPER('Listed Activities'!F31)","v":""},"</actComplexity>",{"$f":"CONCATENATE(C128,D128,E128)","v":"<actComplexity></actComplexity>"}]
[null,null,"</caseActivity>",null,null,{"$f":"C129","v":"</caseActivity>"}]
[25,null,"<caseActivity>",null,null,{"$f":"C130","v":"<caseActivity>"}]
[null,"Activity Description","<actDescript>",{"$f":"'Listed Activities'!D32","v":0},"</actDescript>",{"$f":"CONCATENATE(C131,D131,E131)","v":"<actDescript>0</actDescript>"}]
[null,"Schedule 1 reference","<actId>",{"$f":"'Listed Activities'!G32","v":0},"</actId>",{"$f":"CONCATENATE(C132,D132,E132)","v":"<actId>0</actId>"}]
[null,"Complexity Band","<actComplexity>",{"$f":"UPPER('Listed Activities'!F32)","v":""},"</actComplexity>",{"$f":"CONCATENATE(C133,D133,E133)","v":"<actComplexity></actComplexity>"}]
[null,null,"</caseActivity>",null,null,{"$f":"C134","v":"</caseActivity>"}]
[26,"26 - 50 are extracted from Other Activities (Sched 1 A(1)) sheet","<caseActivity>",null,null,{"$f":"C135","v":"<caseActivity>"}]
[null,"Activity Description","<actDescript>",{"$f":"'Other Activities'!E10","v":0},"</actDescript>",{"$f":"CONCATENATE(C136,D136,E136)","v":"<actDescript>0</actDescript>"}]
[null,"Schedule 1 reference","<actId>",{"$f":"'Other Activities'!M10","v":0},"</actId>",{"$f":"CONCATENATE(C137,D137,E137)","v":"<actId>0</actId>"}]
[null,"Complexity Band","<actComplexity>",{"$f":"UPPER('Other Activities'!G10)","v":""},"</actComplexity>",{"$f":"CONCATENATE(C138,D138,E138)","v":"<actComplexity></actComplexity>"}]
[null,null,"</caseActivity>",null,null,{"$f":"C139","v":"</caseActivity>"}]
[27,null,"<caseActivity>",null,null,{"$f":"C140","v":"<caseActivity>"}]
[null,"Activity Description","<actDescript>",{"$f":"'Other Activities'!E11","v":0},"</actDescript>",{"$f":"CONCATENATE(C141,D141,E141)","v":"<actDescript>0</actDescript>"}]
[null,"Schedule 1 reference","<actId>",{"$f":"'Other Activities'!M11","v":0},"</actId>",{"$f":"CONCATENATE(C142,D142,E142)","v":"<actId>0</actId>"}]
[null,"Complexity Band","<actComplexity>",{"$f":"UPPER('Other Activities'!G11)","v":""},"</actComplexity>",{"$f":"CONCATENATE(C143,D143,E143)","v":"<actComplexity></actComplexity>"}]
[null,null,"</caseActivity>",null,null,{"$f":"C144","v":"</caseActivity>"}]
[28,null,"<caseActivity>",null,null,{"$f":"C145","v":"<caseActivity>"}]
[null,"Activity Description","<actDescript>",{"$f":"'Other Activities'!E12","v":0},"</actDescript>",{"$f":"CONCATENATE(C146,D146,E146)","v":"<actDescript>0</actDescript>"}]
[null,"Schedule 1 reference","<actId>",{"$f":"'Other Activities'!M12","v":0},"</actId>",{"$f":"CONCATENATE(C147,D147,E147)","v":"<actId>0</actId>"}]
[null,"Complexity Band","<actComplexity>",{"$f":"UPPER('Other Activities'!G12)","v":""},"</actComplexity>",{"$f":"CONCATENATE(C148,D148,E148)","v":"<actComplexity></actComplexity>"}]
[null,null,"</caseActivity>",null,null,{"$f":"C149","v":"</caseActivity>"}]
[29,null,"<caseActivity>",null,null,{"$f":"C150","v":"<caseActivity>"}]
[null,"Activity Description","<actDescript>",{"$f":"'Other Activities'!E13","v":0},"</actDescript>",{"$f":"CONCATENATE(C151,D151,E151)","v":"<actDescript>0</actDescript>"}]
[null,"Schedule 1 reference","<actId>",{"$f":"'Other Activities'!M13","v":0},"</actId>",{"$f":"CONCATENATE(C152,D152,E152)","v":"<actId>0</actId>"}]
[null,"Complexity Band","<actComplexity>",{"$f":"UPPER('Other Activities'!G13)","v":""},"</actComplexity>",{"$f":"CONCATENATE(C153,D153,E153)","v":"<actComplexity></actComplexity>"}]
[null,null,"</caseActivity>",null,null,{"$f":"C154","v":"</caseActivity>"}]
[30,null,"<caseActivity>",null,null,{"$f":"C155","v":"<caseActivity>"}]
[null,"Activity Description","<actDescript>",{"$f":"'Other Activities'!E14","v":0},"</actDescript>",{"$f":"CONCATENATE(C156,D156,E156)","v":"<actDescript>0</actDescript>"}]
[null,"Schedule 1 reference","<actId>",{"$f":"'Other Activities'!M14","v":0},"</actId>",{"$f":"CONCATENATE(C157,D157,E157)","v":"<actId>0</actId>"}]
[null,"Complexity Band","<actComplexity>",{"$f":"UPPER('Other Activities'!G14)","v":""},"</actComplexity>",{"$f":"CONCATENATE(C158,D158,E158)","v":"<actComplexity></actComplexity>"}]
[null,null,"</caseActivity>",null,null,{"$f":"C159","v":"</caseActivity>"}]
[31,null,"<caseActivity>",null,null,{"$f":"C160","v":"<caseActivity>"}]
[null,"Activity Description","<actDescript>",{"$f":"'Other Activities'!E15","v":0},"</actDescript>",{"$f":"CONCATENATE(C161,D161,E161)","v":"<actDescript>0</actDescript>"}]
[null,"Schedule 1 reference","<actId>",{"$f":"'Other Activities'!M15","v":0},"</actId>",{"$f":"CONCATENATE(C162,D162,E162)","v":"<actId>0</actId>"}]
[null,"Complexity Band","<actComplexity>",{"$f":"UPPER('Other Activities'!G15)","v":""},"</actComplexity>",{"$f":"CONCATENATE(C163,D163,E163)","v":"<actComplexity></actComplexity>"}]
[null,null,"</caseActivity>",null,null,{"$f":"C164","v":"</caseActivity>"}]
[32,null,"<caseActivity>",null,null,{"$f":"C165","v":"<caseActivity>"}]
[null,"Activity Description","<actDescript>",{"$f":"'Other Activities'!E16","v":0},"</actDescript>",{"$f":"CONCATENATE(C166,D166,E166)","v":"<actDescript>0</actDescript>"}]
[null,"Schedule 1 reference","<actId>",{"$f":"'Other Activities'!M16","v":0},"</actId>",{"$f":"CONCATENATE(C167,D167,E167)","v":"<actId>0</actId>"}]
[null,"Complexity Band","<actComplexity>",{"$f":"UPPER('Other Activities'!G16)","v":""},"</actComplexity>",{"$f":"CONCATENATE(C168,D168,E168)","v":"<actComplexity></actComplexity>"}]
[null,null,"</caseActivity>",null,null,{"$f":"C169","v":"</caseActivity>"}]
[33,null,"<caseActivity>",null,null,{"$f":"C170","v":"<caseActivity>"}]
[null,"Activity Description","<actDescript>",{"$f":"'Other Activities'!E17","v":0},"</actDescript>",{"$f":"CONCATENATE(C171,D171,E171)","v":"<actDescript>0</actDescript>"}]
[null,"Schedule 1 reference","<actId>",{"$f":"'Other Activities'!M17","v":0},"</actId>",{"$f":"CONCATENATE(C172,D172,E172)","v":"<actId>0</actId>"}]
[null,"Complexity Band","<actComplexity>",{"$f":"UPPER('Other Activities'!G17)","v":""},"</actComplexity>",{"$f":"CONCATENATE(C173,D173,E173)","v":"<actComplexity></actComplexity>"}]
[null,null,"</caseActivity>",null,null,{"$f":"C174","v":"</caseActivity>"}]
[34,null,"<caseActivity>",null,null,{"$f":"C175","v":"<caseActivity>"}]
[null,"Activity Description","<actDescript>",{"$f":"'Other Activities'!E18","v":0},"</actDescript>",{"$f":"CONCATENATE(C176,D176,E176)","v":"<actDescript>0</actDescript>"}]
[null,"Schedule 1 reference","<actId>",{"$f":"'Other Activities'!M18","v":0},"</actId>",{"$f":"CONCATENATE(C177,D177,E177)","v":"<actId>0</actId>"}]
[null,"Complexity Band","<actComplexity>",{"$f":"UPPER('Other Activities'!G18)","v":""},"</actComplexity>",{"$f":"CONCATENATE(C178,D178,E178)","v":"<actComplexity></actComplexity>"}]
[null,null,"</caseActivity>",null,null,{"$f":"C179","v":"</caseActivity>"}]
[35,null,"<caseActivity>",null,null,{"$f":"C180","v":"<caseActivity>"}]
[null,"Activity Description","<actDescript>",{"$f":"'Other Activities'!E19","v":0},"</actDescript>",{"$f":"CONCATENATE(C181,D181,E181)","v":"<actDescript>0</actDescript>"}]
[null,"Schedule 1 reference","<actId>",{"$f":"'Other Activities'!M19","v":0},"</actId>",{"$f":"CONCATENATE(C182,D182,E182)","v":"<actId>0</actId>"}]
[null,"Complexity Band","<actComplexity>",{"$f":"UPPER('Other Activities'!G19)","v":""},"</actComplexity>",{"$f":"CONCATENATE(C183,D183,E183)","v":"<actComplexity></actComplexity>"}]
[null,null,"</caseActivity>",null,null,{"$f":"C184","v":"</caseActivity>"}]
[36,null,"<caseActivity>",null,null,{"$f":"C185","v":"<caseActivity>"}]
[null,"Activity Description","<actDescript>",{"$f":"'Other Activities'!E20","v":0},"</actDescript>",{"$f":"CONCATENATE(C186,D186,E186)","v":"<actDescript>0</actDescript>"}]
[null,"Schedule 1 reference","<actId>",{"$f":"'Other Activities'!M20","v":0},"</actId>",{"$f":"CONCATENATE(C187,D187,E187)","v":"<actId>0</actId>"}]
[null,"Complexity Band","<actComplexity>",{"$f":"UPPER('Other Activities'!G20)","v":""},"</actComplexity>",{"$f":"CONCATENATE(C188,D188,E188)","v":"<actComplexity></actComplexity>"}]
[null,null,"</caseActivity>",null,null,{"$f":"C189","v":"</caseActivity>"}]
[37,null,"<caseActivity>",null,null,{"$f":"C190","v":"<caseActivity>"}]
[null,"Activity Description","<actDescript>",{"$f":"'Other Activities'!E21","v":0},"</actDescript>",{"$f":"CONCATENATE(C191,D191,E191)","v":"<actDescript>0</actDescript>"}]
[null,"Schedule 1 reference","<actId>",{"$f":"'Other Activities'!M21","v":0},"</actId>",{"$f":"CONCATENATE(C192,D192,E192)","v":"<actId>0</actId>"}]
[null,"Complexity Band","<actComplexity>",{"$f":"UPPER('Other Activities'!G21)","v":""},"</actComplexity>",{"$f":"CONCATENATE(C193,D193,E193)","v":"<actComplexity></actComplexity>"}]
[null,null,"</caseActivity>",null,null,{"$f":"C194","v":"</caseActivity>"}]
[38,null,"<caseActivity>",null,null,{"$f":"C195","v":"<caseActivity>"}]
[null,"Activity Description","<actDescript>",{"$f":"'Other Activities'!E22","v":0},"</actDescript>",{"$f":"CONCATENATE(C196,D196,E196)","v":"<actDescript>0</actDescript>"}]
[null,"Schedule 1 reference","<actId>",{"$f":"'Other Activities'!M22","v":0},"</actId>",{"$f":"CONCATENATE(C197,D197,E197)","v":"<actId>0</actId>"}]
[null,"Complexity Band","<actComplexity>",{"$f":"UPPER('Other Activities'!G22)","v":""},"</actComplexity>",{"$f":"CONCATENATE(C198,D198,E198)","v":"<actComplexity></actComplexity>"}]
[null,null,"</caseActivity>",null,null,{"$f":"C199","v":"</caseActivity>"}]
[39,null,"<caseActivity>",null,null,{"$f":"C200","v":"<caseActivity>"}]
[null,"Activity Description","<actDescript>",{"$f":"'Other Activities'!E23","v":0},"</actDescript>",{"$f":"CONCATENATE(C201,D201,E201)","v":"<actDescript>0</actDescript>"}]
[null,"Schedule 1 reference","<actId>",{"$f":"'Other Activities'!M23","v":0},"</actId>",{"$f":"CONCATENATE(C202,D202,E202)","v":"<actId>0</actId>"}]
[null,"Complexity Band","<actComplexity>",{"$f":"UPPER('Other Activities'!G23)","v":""},"</actComplexity>",{"$f":"CONCATENATE(C203,D203,E203)","v":"<actComplexity></actComplexity>"}]
[null,null,"</caseActivity>",null,null,{"$f":"C204","v":"</caseActivity>"}]
[40,null,"<caseActivity>",null,null,{"$f":"C205","v":"<caseActivity>"}]
[null,"Activity Description","<actDescript>",{"$f":"'Other Activities'!E24","v":0},"</actDescript>",{"$f":"CONCATENATE(C206,D206,E206)","v":"<actDescript>0</actDescript>"}]
[null,"Schedule 1 reference","<actId>",{"$f":"'Other Activities'!M24","v":0},"</actId>",{"$f":"CONCATENATE(C207,D207,E207)","v":"<actId>0</actId>"}]
[null,"Complexity Band","<actComplexity>",{"$f":"UPPER('Other Activities'!G24)","v":""},"</actComplexity>",{"$f":"CONCATENATE(C208,D208,E208)","v":"<actComplexity></actComplexity>"}]
[null,null,"</caseActivity>",null,null,{"$f":"C209","v":"</caseActivity>"}]
[41,null,"<caseActivity>",null,null,{"$f":"C210","v":"<caseActivity>"}]
[null,"Activity Description","<actDescript>",{"$f":"'Other Activities'!E25","v":0},"</actDescript>",{"$f":"CONCATENATE(C211,D211,E211)","v":"<actDescript>0</actDescript>"}]
[null,"Schedule 1 reference","<actId>",{"$f":"'Other Activities'!M25","v":0},"</actId>",{"$f":"CONCATENATE(C212,D212,E212)","v":"<actId>0</actId>"}]
[null,"Complexity Band","<actComplexity>",{"$f":"UPPER('Other Activities'!G25)","v":""},"</actComplexity>",{"$f":"CONCATENATE(C213,D213,E213)","v":"<actComplexity></actComplexity>"}]
[null,null,"</caseActivity>",null,null,{"$f":"C214","v":"</caseActivity>"}]
[42,null,"<caseActivity>",null,null,{"$f":"C215","v":"<caseActivity>"}]
[null,"Activity Description","<actDescript>",{"$f":"'Other Activities'!E26","v":0},"</actDescript>",{"$f":"CONCATENATE(C216,D216,E216)","v":"<actDescript>0</actDescript>"}]
[null,"Schedule 1 reference","<actId>",{"$f":"'Other Activities'!M26","v":0},"</actId>",{"$f":"CONCATENATE(C217,D217,E217)","v":"<actId>0</actId>"}]
[null,"Complexity Band","<actComplexity>",{"$f":"UPPER('Other Activities'!G26)","v":""},"</actComplexity>",{"$f":"CONCATENATE(C218,D218,E218)","v":"<actComplexity></actComplexity>"}]
[null,null,"</caseActivity>",null,null,{"$f":"C219","v":"</caseActivity>"}]
[43,null,"<caseActivity>",null,null,{"$f":"C220","v":"<caseActivity>"}]
[null,"Activity Description","<actDescript>",{"$f":"'Other Activities'!E27","v":0},"</actDescript>",{"$f":"CONCATENATE(C221,D221,E221)","v":"<actDescript>0</actDescript>"}]
[null,"Schedule 1 reference","<actId>",{"$f":"'Other Activities'!M27","v":0},"</actId>",{"$f":"CONCATENATE(C222,D222,E222)","v":"<actId>0</actId>"}]
[null,"Complexity Band","<actComplexity>",{"$f":"UPPER('Other Activities'!G27)","v":""},"</actComplexity>",{"$f":"CONCATENATE(C223,D223,E223)","v":"<actComplexity></actComplexity>"}]
[null,null,"</caseActivity>",null,null,{"$f":"C224","v":"</caseActivity>"}]
[44,null,"<caseActivity>",null,null,{"$f":"C225","v":"<caseActivity>"}]
[null,"Activity Description","<actDescript>",{"$f":"'Other Activities'!E28","v":0},"</actDescript>",{"$f":"CONCATENATE(C226,D226,E226)","v":"<actDescript>0</actDescript>"}]
[null,"Schedule 1 reference","<actId>",{"$f":"'Other Activities'!M28","v":0},"</actId>",{"$f":"CONCATENATE(C227,D227,E227)","v":"<actId>0</actId>"}]
[null,"Complexity Band","<actComplexity>",{"$f":"UPPER('Other Activities'!G28)","v":""},"</actComplexity>",{"$f":"CONCATENATE(C228,D228,E228)","v":"<actComplexity></actComplexity>"}]
[null,null,"</caseActivity>",null,null,{"$f":"C229","v":"</caseActivity>"}]
[45,null,"<caseActivity>",null,null,{"$f":"C230","v":"<caseActivity>"}]
[null,"Activity Description","<actDescript>",{"$f":"'Other Activities'!E29","v":0},"</actDescript>",{"$f":"CONCATENATE(C231,D231,E231)","v":"<actDescript>0</actDescript>"}]
[null,"Schedule 1 reference","<actId>",{"$f":"'Other Activities'!M29","v":0},"</actId>",{"$f":"CONCATENATE(C232,D232,E232)","v":"<actId>0</actId>"}]
[null,"Complexity Band","<actComplexity>",{"$f":"UPPER('Other Activities'!G29)","v":""},"</actComplexity>",{"$f":"CONCATENATE(C233,D233,E233)","v":"<actComplexity></actComplexity>"}]
[null,null,"</caseActivity>",null,null,{"$f":"C234","v":"</caseActivity>"}]
[46,null,"<caseActivity>",null,null,{"$f":"C235","v":"<caseActivity>"}]
[null,"Activity Description","<actDescript>",{"$f":"'Other Activities'!E30","v":0},"</actDescript>",{"$f":"CONCATENATE(C236,D236,E236)","v":"<actDescript>0</actDescript>"}]
[null,"Schedule 1 reference","<actId>",{"$f":"'Other Activities'!M30","v":0},"</actId>",{"$f":"CONCATENATE(C237,D237,E237)","v":"<actId>0</actId>"}]
[null,"Complexity Band","<actComplexity>",{"$f":"UPPER('Other Activities'!G30)","v":""},"</actComplexity>",{"$f":"CONCATENATE(C238,D238,E238)","v":"<actComplexity></actComplexity>"}]
[null,null,"</caseActivity>",null,null,{"$f":"C239","v":"</caseActivity>"}]
[47,null,"<caseActivity>",null,null,{"$f":"C240","v":"<caseActivity>"}]
[null,"Activity Description","<actDescript>",{"$f":"'Other Activities'!E31","v":0},"</actDescript>",{"$f":"CONCATENATE(C241,D241,E241)","v":"<actDescript>0</actDescript>"}]
[null,"Schedule 1 reference","<actId>",{"$f":"'Other Activities'!M31","v":0},"</actId>",{"$f":"CONCATENATE(C242,D242,E242)","v":"<actId>0</actId>"}]
[null,"Complexity Band","<actComplexity>",{"$f":"UPPER('Other Activities'!G31)","v":""},"</actComplexity>",{"$f":"CONCATENATE(C243,D243,E243)","v":"<actComplexity></actComplexity>"}]
[null,null,"</caseActivity>",null,null,{"$f":"C244","v":"</caseActivity>"}]
[48,null,"<caseActivity>",null,null,{"$f":"C245","v":"<caseActivity>"}]
[null,"Activity Description","<actDescript>",{"$f":"'Other Activities'!E32","v":0},"</actDescript>",{"$f":"CONCATENATE(C246,D246,E246)","v":"<actDescript>0</actDescript>"}]
[null,"Schedule 1 reference","<actId>",{"$f":"'Other Activities'!M32","v":0},"</actId>",{"$f":"CONCATENATE(C247,D247,E247)","v":"<actId>0</actId>"}]
[null,"Complexity Band","<actComplexity>",{"$f":"UPPER('Other Activities'!G32)","v":""},"</actComplexity>",{"$f":"CONCATENATE(C248,D248,E248)","v":"<actComplexity></actComplexity>"}]
[null,null,"</caseActivity>",null,null,{"$f":"C249","v":"</caseActivity>"}]
[49,null,"<caseActivity>",null,null,{"$f":"C250","v":"<caseActivity>"}]
[null,"Activity Description","<actDescript>",{"$f":"'Other Activities'!E33","v":0},"</actDescript>",{"$f":"CONCATENATE(C251,D251,E251)","v":"<actDescript>0</actDescript>"}]
[null,"Schedule 1 reference","<actId>",{"$f":"'Other Activities'!M33","v":0},"</actId>",{"$f":"CONCATENATE(C252,D252,E252)","v":"<actId>0</actId>"}]
[null,"Complexity Band","<actComplexity>",{"$f":"UPPER('Other Activities'!G33)","v":""},"</actComplexity>",{"$f":"CONCATENATE(C253,D253,E253)","v":"<actComplexity></actComplexity>"}]
[null,null,"</caseActivity>",null,null,{"$f":"C254","v":"</caseActivity>"}]
[50,null,"<caseActivity>",null,null,{"$f":"C255","v":"<caseActivity>"}]
[null,"Activity Description","<actDescript>",{"$f":"'Other Activities'!E34","v":0},"</actDescript>",{"$f":"CONCATENATE(C256,D256,E256)","v":"<actDescript>0</actDescript>"}]
[null,"Schedule 1 reference","<actId>",{"$f":"'Other Activities'!M34","v":0},"</actId>",{"$f":"CONCATENATE(C257,D257,E257)","v":"<actId>0</actId>"}]
[null,"Complexity Band","<actComplexity>",{"$f":"UPPER('Other Activities'!G34)","v":""},"</actComplexity>",{"$f":"CONCATENATE(C258,D258,E258)","v":"<actComplexity></actComplexity>"}]
[null,null,"</caseActivity>",null,null,{"$f":"C259","v":"</caseActivity>"}]
[null,"End of Listed Activities","</activities>",null,null,{"$f":"CONCATENATE(C260,D260,E260)","v":"</activities>"}]
[null,"Start of  Other Activities","<activitiesAssoc>",null,null,{"$f":"C261","v":"<activitiesAssoc>"}]
[1,null,"<caseActivity>",null,null,{"$f":"C262","v":"<caseActivity>"}]
[null,"Activity Description","<actDescript>",{"$f":"'Other Activities'!D45","v":0},"</actDescript>",{"$f":"CONCATENATE(C263,D263,E263)","v":"<actDescript>0</actDescript>"}]
[null,"Schedule 1 reference","<actId>",{"$f":"'Other Activities'!M45","v":0},"</actId>",{"$f":"CONCATENATE(C264,D264,E264)","v":"<actId>0</actId>"}]
[null,null,"</caseActivity>",null,null,{"$f":"C265","v":"</caseActivity>"}]
[2,null,"<caseActivity>",null,null,"<caseActivity>"]
[null,"Activity Description","<actDescript>",{"$f":"'Other Activities'!D46","v":0},"</actDescript>",{"$f":"CONCATENATE(C267,D267,E267)","v":"<actDescript>0</actDescript>"}]
[null,"Schedule 1 reference","<actId>",{"$f":"'Other Activities'!M46","v":0},"</actId>",{"$f":"CONCATENATE(C268,D268,E268)","v":"<actId>0</actId>"}]
[null,null,"</caseActivity>",null,null,"</caseActivity>"]
[3,null,"<caseActivity>",null,null,{"$f":"C270","v":"<caseActivity>"}]
[null,"Activity Description","<actDescript>",{"$f":"'Other Activities'!D47","v":0},"</actDescript>",{"$f":"CONCATENATE(C271,D271,E271)","v":"<actDescript>0</actDescript>"}]
[null,"Schedule 1 reference","<actId>",{"$f":"'Other Activities'!M47","v":0},"</actId>",{"$f":"CONCATENATE(C272,D272,E272)","v":"<actId>0</actId>"}]
[null,null,"</caseActivity>",null,null,{"$f":"C273","v":"</caseActivity>"}]
[4,null,"<caseActivity>",null,null,"<caseActivity>"]
[null,"Activity Description","<actDescript>",{"$f":"'Other Activities'!D48","v":0},"</actDescript>",{"$f":"CONCATENATE(C275,D275,E275)","v":"<actDescript>0</actDescript>"}]
[null,"Schedule 1 reference","<actId>",{"$f":"'Other Activities'!M48","v":0},"</actId>",{"$f":"CONCATENATE(C276,D276,E276)","v":"<actId>0</actId>"}]
[null,null,"</caseActivity>",null,null,"</caseActivity>"]
[5,null,"<caseActivity>",null,null,{"$f":"C278","v":"<caseActivity>"}]
[null,"Activity Description","<actDescript>",{"$f":"'Other Activities'!D49","v":0},"</actDescript>",{"$f":"CONCATENATE(C279,D279,E279)","v":"<actDescript>0</actDescript>"}]
[null,"Schedule 1 reference","<actId>",{"$f":"'Other Activities'!M49","v":0},"</actId>",{"$f":"CONCATENATE(C280,D280,E280)","v":"<actId>0</actId>"}]
[null,null,"</caseActivity>",null,null,{"$f":"C281","v":"</caseActivity>"}]
[6,null,"<caseActivity>",null,null,"<caseActivity>"]
[null,"Activity Description","<actDescript>",{"$f":"'Other Activities'!D50","v":0},"</actDescript>",{"$f":"CONCATENATE(C283,D283,E283)","v":"<actDescript>0</actDescript>"}]
[null,"Schedule 1 reference","<actId>",{"$f":"'Other Activities'!M50","v":0},"</actId>",{"$f":"CONCATENATE(C284,D284,E284)","v":"<actId>0</actId>"}]
[null,null,"</caseActivity>",null,null,"</caseActivity>"]
[7,null,"<caseActivity>",null,null,{"$f":"C286","v":"<caseActivity>"}]
[null,"Activity Description","<actDescript>",{"$f":"'Other Activities'!D51","v":0},"</actDescript>",{"$f":"CONCATENATE(C287,D287,E287)","v":"<actDescript>0</actDescript>"}]
[null,"Schedule 1 reference","<actId>",{"$f":"'Other Activities'!M51","v":0},"</actId>",{"$f":"CONCATENATE(C288,D288,E288)","v":"<actId>0</actId>"}]
[null,null,"</caseActivity>",null,null,{"$f":"C289","v":"</caseActivity>"}]
[8,null,"<caseActivity>",null,null,"<caseActivity>"]
[null,"Activity Description","<actDescript>",{"$f":"'Other Activities'!D52","v":0},"</actDescript>",{"$f":"CONCATENATE(C291,D291,E291)","v":"<actDescript>0</actDescript>"}]
[null,"Schedule 1 reference","<actId>",{"$f":"'Other Activities'!M52","v":0},"</actId>",{"$f":"CONCATENATE(C292,D292,E292)","v":"<actId>0</actId>"}]
[null,null,"</caseActivity>",null,null,"</caseActivity>"]
[9,null,"<caseActivity>",null,null,{"$f":"C294","v":"<caseActivity>"}]
[null,"Activity Description","<actDescript>",{"$f":"'Other Activities'!D53","v":0},"</actDescript>",{"$f":"CONCATENATE(C295,D295,E295)","v":"<actDescript>0</actDescript>"}]
[null,"Schedule 1 reference","<actId>",{"$f":"'Other Activities'!M53","v":0},"</actId>",{"$f":"CONCATENATE(C296,D296,E296)","v":"<actId>0</actId>"}]
[null,null,"</caseActivity>",null,null,{"$f":"C297","v":"</caseActivity>"}]
[10,null,"<caseActivity>",null,null,"<caseActivity>"]
[null,"Activity Description","<actDescript>",{"$f":"'Other Activities'!D54","v":0},"</actDescript>",{"$f":"CONCATENATE(C299,D299,E299)","v":"<actDescript>0</actDescript>"}]
[null,"Schedule 1 reference","<actId>",{"$f":"'Other Activities'!M54","v":0},"</actId>",{"$f":"CONCATENATE(C300,D300,E300)","v":"<actId>0</actId>"}]
[null,null,"</caseActivity>",null,null,"</caseActivity>"]
[11,null,"<caseActivity>",null,null,{"$f":"C302","v":"<caseActivity>"}]
[null,"Activity Description","<actDescript>",{"$f":"'Other Activities'!D55","v":0},"</actDescript>",{"$f":"CONCATENATE(C303,D303,E303)","v":"<actDescript>0</actDescript>"}]
[null,"Schedule 1 reference","<actId>",{"$f":"'Other Activities'!M55","v":0},"</actId>",{"$f":"CONCATENATE(C304,D304,E304)","v":"<actId>0</actId>"}]
[null,null,"</caseActivity>",null,null,{"$f":"C305","v":"</caseActivity>"}]
[12,null,"<caseActivity>",null,null,"<caseActivity>"]
[null,"Activity Description","<actDescript>",{"$f":"'Other Activities'!D56","v":0},"</actDescript>",{"$f":"CONCATENATE(C307,D307,E307)","v":"<actDescript>0</actDescript>"}]
[null,"Schedule 1 reference","<actId>",{"$f":"'Other Activities'!M56","v":0},"</actId>",{"$f":"CONCATENATE(C308,D308,E308)","v":"<actId>0</actId>"}]
[null,null,"</caseActivity>",null,null,"</caseActivity>"]
[13,null,"<caseActivity>",null,null,{"$f":"C310","v":"<caseActivity>"}]
[null,"Activity Description","<actDescript>",{"$f":"'Other Activities'!D57","v":0},"</actDescript>",{"$f":"CONCATENATE(C311,D311,E311)","v":"<actDescript>0</actDescript>"}]
[null,"Schedule 1 reference","<actId>",{"$f":"'Other Activities'!M57","v":0},"</actId>",{"$f":"CONCATENATE(C312,D312,E312)","v":"<actId>0</actId>"}]
[null,null,"</caseActivity>",null,null,{"$f":"C313","v":"</caseActivity>"}]
[14,null,"<caseActivity>",null,null,"<caseActivity>"]
[null,"Activity Description","<actDescript>",{"$f":"'Other Activities'!D58","v":0},"</actDescript>",{"$f":"CONCATENATE(C315,D315,E315)","v":"<actDescript>0</actDescript>"}]
[null,"Schedule 1 reference","<actId>",{"$f":"'Other Activities'!M58","v":0},"</actId>",{"$f":"CONCATENATE(C316,D316,E316)","v":"<actId>0</actId>"}]
[null,null,"</caseActivity>",null,null,"</caseActivity>"]
[15,null,"<caseActivity>",null,null,{"$f":"C318","v":"<caseActivity>"}]
[null,"Activity Description","<actDescript>",{"$f":"'Other Activities'!D59","v":0},"</actDescript>",{"$f":"CONCATENATE(C319,D319,E319)","v":"<actDescript>0</actDescript>"}]
[null,"Schedule 1 reference","<actId>",{"$f":"'Other Activities'!M59","v":0},"</actId>",{"$f":"CONCATENATE(C320,D320,E320)","v":"<actId>0</actId>"}]
[null,null,"</caseActivity>",null,null,{"$f":"C321","v":"</caseActivity>"}]
[16,null,"<caseActivity>",null,null,"<caseActivity>"]
[null,"Activity Description","<actDescript>",{"$f":"'Other Activities'!D60","v":0},"</actDescript>",{"$f":"CONCATENATE(C323,D323,E323)","v":"<actDescript>0</actDescript>"}]
[null,"Schedule 1 reference","<actId>",{"$f":"'Other Activities'!M60","v":0},"</actId>",{"$f":"CONCATENATE(C324,D324,E324)","v":"<actId>0</actId>"}]
[null,null,"</caseActivity>",null,null,"</caseActivity>"]
[17,null,"<caseActivity>",null,null,{"$f":"C326","v":"<caseActivity>"}]
[null,"Activity Description","<actDescript>",{"$f":"'Other Activities'!D61","v":0},"</actDescript>",{"$f":"CONCATENATE(C327,D327,E327)","v":"<actDescript>0</actDescript>"}]
[null,"Schedule 1 reference","<actId>",{"$f":"'Other Activities'!M61","v":0},"</actId>",{"$f":"CONCATENATE(C328,D328,E328)","v":"<actId>0</actId>"}]
[null,null,"</caseActivity>",null,null,{"$f":"C329","v":"</caseActivity>"}]
[18,null,"<caseActivity>",null,null,"<caseActivity>"]
[null,"Activity Description","<actDescript>",{"$f":"'Other Activities'!D62","v":0},"</actDescript>",{"$f":"CONCATENATE(C331,D331,E331)","v":"<actDescript>0</actDescript>"}]
[null,"Schedule 1 reference","<actId>",{"$f":"'Other Activities'!M62","v":0},"</actId>",{"$f":"CONCATENATE(C332,D332,E332)","v":"<actId>0</actId>"}]
[null,null,"</caseActivity>",null,null,"</caseActivity>"]
[19,null,"<caseActivity>",null,null,{"$f":"C334","v":"<caseActivity>"}]
[null,"Activity Description","<actDescript>",{"$f":"'Other Activities'!D63","v":0},"</actDescript>",{"$f":"CONCATENATE(C335,D335,E335)","v":"<actDescript>0</actDescript>"}]
[null,"Schedule 1 reference","<actId>",{"$f":"'Other Activities'!M63","v":0},"</actId>",{"$f":"CONCATENATE(C336,D336,E336)","v":"<actId>0</actId>"}]
[null,null,"</caseActivity>",null,null,{"$f":"C337","v":"</caseActivity>"}]
[20,null,"<caseActivity>",null,null,"<caseActivity>"]
[null,"Activity Description","<actDescript>",{"$f":"'Other Activities'!D64","v":0},"</actDescript>",{"$f":"CONCATENATE(C339,D339,E339)","v":"<actDescript>0</actDescript>"}]
[null,"Schedule 1 reference","<actId>",{"$f":"'Other Activities'!M64","v":0},"</actId>",{"$f":"CONCATENATE(C340,D340,E340)","v":"<actId>0</actId>"}]
[null,null,"</caseActivity>",null,null,"</caseActivity>"]
[null,"End of Other Activities","</activitiesAssoc>",null,null,{"$f":"CONCATENATE(C342,D342,E342)","v":"</activitiesAssoc>"}]
[null,"Start of Rules Applied","<caseRulesApplied>",null,null,"<caseRulesApplied>"]
[null,null,"<Rule3>",{"$f":"Complexities!E43","v":"Yes"},"</Rule3>",{"$f":"CONCATENATE(C344,D344,E344)","v":"<Rule3>Yes</Rule3>"}]
[null,null,"<Rule4>",{"$f":"Complexities!E44","v":"No"},"</Rule4>",{"$f":"CONCATENATE(C345,D345,E345)","v":"<Rule4>No</Rule4>"}]
[null,null,"<Rule5>",{"$f":"Complexities!E45","v":"No"},"</Rule5>",{"$f":"CONCATENATE(C346,D346,E346)","v":"<Rule5>No</Rule5>"}]
[null,null,"<Rule6>",{"$f":"Complexities!E46","v":"No"},"</Rule6>",{"$f":"CONCATENATE(C347,D347,E347)","v":"<Rule6>No</Rule6>"}]
[null,null,"<Rule7>",{"$f":"Complexities!E47","v":"No"},"</Rule7>",{"$f":"CONCATENATE(C348,D348,E348)","v":"<Rule7>No</Rule7>"}]
[null,"End of Rules Applied","</caseRulesApplied>",null,null,"</caseRulesApplied>"]
[null,"Start of EP OPRA scoring","<EPOPRAScoresForFinance>",null,null,{"$f":"CONCATENATE(C350,D350,E350)","v":"<EPOPRAScoresForFinance>"}]
[null,"Complexity Band A","<complexityBandA>",null,null,{"$f":"C351","v":"<complexityBandA>"}]
[null,null,"<number>",{"$f":"Calculation!E10","v":0},"</number>",{"$f":"CONCATENATE(C352,D352,E352)","v":"<number>0</number>"}]
[null,null,"<score>",{"$f":"Calculation!G10","v":0},"</score>",{"$f":"CONCATENATE(C353,D353,E353)","v":"<score>0</score>"}]
[null,null,"</complexityBandA>",null,null,{"$f":"C354","v":"</complexityBandA>"}]
[null,"Complexity Band B","<complexityBandB>",null,null,{"$f":"C355","v":"<complexityBandB>"}]
[null,null,"<number>",{"$f":"Calculation!E11","v":0},"</number>",{"$f":"CONCATENATE(C356,D356,E356)","v":"<number>0</number>"}]
[null,null,"<score>",{"$f":"Calculation!G11","v":0},"</score>",{"$f":"CONCATENATE(C357,D357,E357)","v":"<score>0</score>"}]
[null,null,"</complexityBandB>",null,null,"</complexityBandB>"]
[null,"Complexity Band C","<complexityBandC>",null,null,"<complexityBandC>"]
[null,null,"<number>",{"$f":"Calculation!E12","v":3},"</number>",{"$f":"CONCATENATE(C360,D360,E360)","v":"<number>3</number>"}]
[null,null,"<score>",{"$f":"Calculation!G12","v":135},"</score>",{"$f":"CONCATENATE(C361,D361,E361)","v":"<score>135</score>"}]
[null,null,"</complexityBandC>",null,null,"</complexityBandC>"]
[null,"Complexity Band D","<complexityBandD>",null,null,"<complexityBandD>"]
[null,null,"<number>",{"$f":"Calculation!E13","v":0},"</number>",{"$f":"CONCATENATE(C364,D364,E364)","v":"<number>0</number>"}]
[null,null,"<score>",{"$f":"Calculation!G13","v":0},"</score>",{"$f":"CONCATENATE(C365,D365,E365)","v":"<score>0</score>"}]
[null,null,"</complexityBandD>",null,null,"</complexityBandD>"]
[null,"Complexity Band E","<complexityBandE>",null,null,"<complexityBandE>"]
[null,null,"<number>",{"$f":"Calculation!E14","v":0},"</number>",{"$f":"CONCATENATE(C368,D368,E368)","v":"<number>0</number>"}]
[null,null,"<score>",{"$f":"Calculation!G14","v":0},"</score>",{"$f":"CONCATENATE(C369,D369,E369)","v":"<score>0</score>"}]
[null,null,"</complexityBandE>",null,null,"</complexityBandE>"]
[null,"Emmissions to Air","<emissionsToAir>",null,null,"<emissionsToAir>"]
[null,null,"<band>",{"$f":"Calculation!D17","v":"B"},"</band>",{"$f":"CONCATENATE(C372,D372,E372)","v":"<band>B</band>"}]
[null,null,"<score>",{"$f":"Calculation!G17","v":10},"</score>",{"$f":"CONCATENATE(C373,D373,E373)","v":"<score>10</score>"}]
[null,null,"</emissionsToAir>",null,null,"</emissionsToAir>"]
[null,"Emmissions to Water","<emissionsToWater>",null,null,"<emissionsToWater>"]
[null,null,"<band>",{"$f":"Calculation!D18","v":"-"},"</band>",{"$f":"CONCATENATE(C376,D376,E376)","v":"<band>-</band>"}]
[null,null,"<score>",{"$f":"Calculation!G18","v":0},"</score>",{"$f":"CONCATENATE(C377,D377,E377)","v":"<score>0</score>"}]
[null,null,"</emissionsToWater>",null,null,"</emissionsToWater>"]
[null,"Emmissions to Land","<emissionsToLand>",null,null,"<emissionsToLand>"]
[null,null,"<band>",{"$f":"Calculation!D19","v":"-"},"</band>",{"$f":"CONCATENATE(C380,D380,E380)","v":"<band>-</band>"}]
[null,null,"<score>",{"$f":"Calculation!G19","v":0},"</score>",{"$f":"CONCATENATE(C381,D381,E381)","v":"<score>0</score>"}]
[null,null,"</emissionsToLand>",null,null,"</emissionsToLand>"]
[null,"Disposal to Sewer","<disposalToSewer>",null,null,"<disposalToSewer>"]
[null,null,"<band>",{"$f":"Calculation!D20","v":"-"},"</band>",{"$f":"CONCATENATE(C384,D384,E384)","v":"<band>-</band>"}]
[null,null,"<score>",{"$f":"Calculation!G20","v":0},"</score>",{"$f":"CONCATENATE(C385,D385,E385)","v":"<score>0</score>"}]
[null,null,"</disposalToSewer>",null,null,"</disposalToSewer>"]
[null,"Disposal to Waste","<disposalToWaste>",null,null,"<disposalToWaste>"]
[null,null,"<band>",{"$f":"Calculation!D21","v":"-"},"</band>",{"$f":"CONCATENATE(C388,D388,E388)","v":"<band>-</band>"}]
[null,null,"<score>",{"$f":"Calculation!G21","v":0},"</score>",{"$f":"CONCATENATE(C389,D389,E389)","v":"<score>0</score>"}]
[null,null,"</disposalToWaste>",null,null,"</disposalToWaste>"]
[null,"Location","<location>",null,null,"<location>"]
[null,null,"<band>",{"$f":"Calculation!D23","v":"C"},"</band>",{"$f":"CONCATENATE(C392,D392,E392)","v":"<band>C</band>"}]
[null,null,"<score>",{"$f":"Calculation!G23","v":20},"</score>",{"$f":"CONCATENATE(C393,D393,E393)","v":"<score>20</score>"}]
[null,null,"</location>",null,null,"</location>"]
[null,"Operator Management Performance","<operatorPerformance>",null,null,"<operatorPerformance>"]
[null,null,"<band>",{"$f":"Calculation!D24","v":"A"},"</band>",{"$f":"CONCATENATE(C396,D396,E396)","v":"<band>A</band>"}]
[null,null,"<score>",{"$f":"Calculation!G24","v":10},"</score>",{"$f":"CONCATENATE(C397,D397,E397)","v":"<score>10</score>"}]
[null,null,"</operatorPerformance>",null,null,"</operatorPerformance>"]
[null,"End of EP OPRA Scoring","</EPOPRAScoresForFinance>",null,null,{"$f":"C399","v":"</EPOPRAScoresForFinance>"}]
[null,"Start of Operator Performance detail","<operatorPerformanceDetail>",null,null,{"$f":"C400","v":"<operatorPerformanceDetail>"}]
[null,null,"<operationsAndMaintenanceSection>",null,null,{"$f":"C401","v":"<operationsAndMaintenanceSection>"}]
[null,"<question1>","<docOpProcs>",null,null,{"$f":"C402","v":"<docOpProcs>"}]
[null,null,"<answer>",{"$f":"'Op Perf'!E10","v":"Yes"},"</answer>",{"$f":"CONCATENATE(C403,D403,E403)","v":"<answer>Yes</answer>"}]
[null,null,"<score>",{"$f":"'Op Perf'!G10","v":2},"</score>",{"$f":"CONCATENATE(C404,D404,E404)","v":"<score>2</score>"}]
[null,null,"<post>",{"$f":"'Op Perf'!H10","v":0},"</post>",{"$f":"CONCATENATE(C405,D405,E405)","v":"<post>0</post>"}]
[null,null,"<docRef>",{"$f":"'Op Perf'!J10","v":"Prior to 01/04/2025"},"</docRef>",{"$f":"CONCATENATE(C406,D406,E406)","v":"<docRef>Prior to 01/04/2025</docRef>"}]
[null,null,"</docOpProcs>",null,null,{"$f":"C407","v":"</docOpProcs>"}]
[null,"<question2>","<definedIdentAndReviewProcs>",null,null,{"$f":"C408","v":"<definedIdentAndReviewProcs>"}]
[null,null,"<answer>",{"$f":"'Op Perf'!E11","v":"Yes"},"</answer>",{"$f":"CONCATENATE(C409,D409,E409)","v":"<answer>Yes</answer>"}]
[null,null,"<score>",{"$f":"'Op Perf'!G11","v":2},"</score>",{"$f":"CONCATENATE(C410,D410,E410)","v":"<score>2</score>"}]
[null,null,"<post>",{"$f":"'Op Perf'!H11","v":0},"</post>",{"$f":"CONCATENATE(C411,D411,E411)","v":"<post>0</post>"}]
[null,null,"<docRef>",{"$f":"'Op Perf'!J11","v":"Prior to 01/04/2025"},"</docRef>",{"$f":"CONCATENATE(C412,D412,E412)","v":"<docRef>Prior to 01/04/2025</docRef>"}]
[null,null,"</definedIdentAndReviewProcs>",null,null,{"$f":"C413","v":"</definedIdentAndReviewProcs>"}]
[null,"<question3>","<docMonitoringProcs>",null,null,{"$f":"C414","v":"<docMonitoringProcs>"}]
[null,null,"<answer>",{"$f":"'Op Perf'!E12","v":"Yes"},"</answer>",{"$f":"CONCATENATE(C415,D415,E415)","v":"<answer>Yes</answer>"}]
[null,null,"<score>",{"$f":"'Op Perf'!G12","v":2},"</score>",{"$f":"CONCATENATE(C416,D416,E416)","v":"<score>2</score>"}]
[null,null,"<post>",{"$f":"'Op Perf'!H12","v":0},"</post>",{"$f":"CONCATENATE(C417,D417,E417)","v":"<post>0</post>"}]
[null,null,"<docRef>",{"$f":"'Op Perf'!J12","v":"Prior to 01/04/2025"},"</docRef>",{"$f":"CONCATENATE(C418,D418,E418)","v":"<docRef>Prior to 01/04/2025</docRef>"}]
[null,null,"</docMonitoringProcs>",null,null,{"$f":"CONCATENATE(C419,D419,E419)","v":"</docMonitoringProcs>"}]
[null,"<question4>","<prevMaintProg>",null,null,{"$f":"C420","v":"<prevMaintProg>"}]
[null,null,"<answer>",{"$f":"'Op Perf'!E13","v":"Yes"},"</answer>",{"$f":"CONCATENATE(C421,D421,E421)","v":"<answer>Yes</answer>"}]
[null,null,"<score>",{"$f":"'Op Perf'!G13","v":1},"</score>",{"$f":"CONCATENATE(C422,D422,E422)","v":"<score>1</score>"}]
[null,null,"<post>",{"$f":"'Op Perf'!H13","v":0},"</post>",{"$f":"CONCATENATE(C423,D423,E423)","v":"<post>0</post>"}]
[null,null,"<docRef>",{"$f":"'Op Perf'!J13","v":"Prior to 01/04/2025"},"</docRef>",{"$f":"CONCATENATE(C424,D424,E424)","v":"<docRef>Prior to 01/04/2025</docRef>"}]
[null,null,"</prevMaintProg>",null,null,{"$f":"CONCATENATE(C425,D425,E425)","v":"</prevMaintProg>"}]
[null,"<question5>","<prevMaintRegChecks>",null,null,{"$f":"C426","v":"<prevMaintRegChecks>"}]
[null,null,"<answer>",{"$f":"'Op Perf'!E14","v":"Yes"},"</answer>",{"$f":"CONCATENATE(C427,D427,E427)","v":"<answer>Yes</answer>"}]
[null,null,"<score>",{"$f":"'Op Perf'!G14","v":1},"</score>",{"$f":"CONCATENATE(C428,D428,E428)","v":"<score>1</score>"}]
[null,null,"<post>",{"$f":"'Op Perf'!H14","v":0},"</post>",{"$f":"CONCATENATE(C429,D429,E429)","v":"<post>0</post>"}]
[null,null,"<docRef>",{"$f":"'Op Perf'!J14","v":"Prior to 01/04/2025"},"</docRef>",{"$f":"CONCATENATE(C430,D430,E430)","v":"<docRef>Prior to 01/04/2025</docRef>"}]
[null,null,"</prevMaintRegChecks>",null,null,{"$f":"CONCATENATE(C431,D431,E431)","v":"</prevMaintRegChecks>"}]
[null,"<question6>","<opAndMaintAudit>",null,null,{"$f":"C432","v":"<opAndMaintAudit>"}]
[null,null,"<answer>",{"$f":"'Op Perf'!E15","v":"Yes"},"</answer>",{"$f":"CONCATENATE(C433,D433,E433)","v":"<answer>Yes</answer>"}]
[null,null,"<score>",{"$f":"'Op Perf'!G15","v":2},"</score>",{"$f":"CONCATENATE(C434,D434,E434)","v":"<score>2</score>"}]
[null,null,"<post>",{"$f":"'Op Perf'!H15","v":0},"</post>",{"$f":"CONCATENATE(C435,D435,E435)","v":"<post>0</post>"}]
[null,null,"<docRef>",{"$f":"'Op Perf'!J15","v":"Prior to 01/04/2025"},"</docRef>",{"$f":"CONCATENATE(C436,D436,E436)","v":"<docRef>Prior to 01/04/2025</docRef>"}]
[null,null,"</opAndMaintAudit>",null,null,{"$f":"CONCATENATE(C437,D437,E437)","v":"</opAndMaintAudit>"}]
[null,"<question7>","<reportsAndRecs>",null,null,{"$f":"C438","v":"<reportsAndRecs>"}]
[null,null,"<answer>",{"$f":"'Op Perf'!E16","v":"Yes"},"</answer>",{"$f":"CONCATENATE(C439,D439,E439)","v":"<answer>Yes</answer>"}]
[null,null,"<score>",{"$f":"'Op Perf'!G16","v":2},"</score>",{"$f":"CONCATENATE(C440,D440,E440)","v":"<score>2</score>"}]
[null,null,"<post>",{"$f":"'Op Perf'!H16","v":0},"</post>",{"$f":"CONCATENATE(C441,D441,E441)","v":"<post>0</post>"}]
[null,null,"<docRef>",{"$f":"'Op Perf'!J16","v":"Prior to 01/04/2025"},"</docRef>",{"$f":"CONCATENATE(C442,D442,E442)","v":"<docRef>Prior to 01/04/2025</docRef>"}]
[null,null,"</reportsAndRecs>",null,null,{"$f":"CONCATENATE(C443,D443,E443)","v":"</reportsAndRecs>"}]
[null,"<question8>","<notifiableIncidentCauseKnown>",null,null,{"$f":"C444","v":"<notifiableIncidentCauseKnown>"}]
[null,null,"<answer>",{"$f":"'Op Perf'!E17","v":"Yes"},"</answer>",{"$f":"CONCATENATE(C445,D445,E445)","v":"<answer>Yes</answer>"}]
[null,null,"<score>",{"$f":"'Op Perf'!G17","v":-2},"</score>",{"$f":"CONCATENATE(C446,D446,E446)","v":"<score>-2</score>"}]
[null,null,"<post>",{"$f":"'Op Perf'!H17","v":"Horizon contractor carrying out off-shore ground investigations-  leak of 50 ml oil to sea."},"</post>",{"$f":"CONCATENATE(C447,D447,E447)","v":"<post>Horizon contractor carrying out off-shore ground investigations-  leak of 50 ml oil to sea.</post>"}]
[null,null,"<docRef>",{"$f":"'Op Perf'!J17","v":"N/A"},"</docRef>",{"$f":"CONCATENATE(C448,D448,E448)","v":"<docRef>N/A</docRef>"}]
[null,null,"</notifiableIncidentCauseKnown>",null,null,{"$f":"CONCATENATE(C449,D449,E449)","v":"</notifiableIncidentCauseKnown>"}]
[null,"<question9>","<notifiableIncidentCauseUnknown>",null,null,{"$f":"C450","v":"<notifiableIncidentCauseUnknown>"}]
[null,null,"<answer>",{"$f":"'Op Perf'!E18","v":"No"},"</answer>",{"$f":"CONCATENATE(C451,D451,E451)","v":"<answer>No</answer>"}]
[null,null,"<score>",{"$f":"'Op Perf'!H18","v":0},"</score>",{"$f":"CONCATENATE(C452,D452,E452)","v":"<score>0</score>"}]
[null,null,"<post>",{"$f":"'Op Perf'!J18","v":"N/A"},"</post>",{"$f":"CONCATENATE(C453,D453,E453)","v":"<post>N/A</post>"}]
[null,null,"<docRef>",null,"</docRef>",{"$f":"CONCATENATE(C454,D454,E454)","v":"<docRef></docRef>"}]
[null,null,"</notifiableIncidentCauseUnknown>",null,null,{"$f":"CONCATENATE(C455,D455,E455)","v":"</notifiableIncidentCauseUnknown>"}]
[null,null,"</operationsAndMaintenanceSection>",null,null,{"$f":"C456","v":"</operationsAndMaintenanceSection>"}]
[null,null,"<competanceAndTrainingSection>",null,null,{"$f":"C457","v":"<competanceAndTrainingSection>"}]
[null,"<question1>","<trainingAssessment>",null,null,{"$f":"C458","v":"<trainingAssessment>"}]
[null,null,"<answer>",{"$f":"'Op Perf'!E26","v":"Yes"},"</answer>",{"$f":"CONCATENATE(C459,D459,E459)","v":"<answer>Yes</answer>"}]
[null,null,"<score>",{"$f":"'Op Perf'!G26","v":3},"</score>",{"$f":"CONCATENATE(C460,D460,E460)","v":"<score>3</score>"}]
[null,null,"<post>",{"$f":"'Op Perf'!H26","v":0},"</post>",{"$f":"CONCATENATE(C461,D461,E461)","v":"<post>0</post>"}]
[null,null,"<docRef>",{"$f":"'Op Perf'!J26","v":"Prior to 01/04/2025"},"</docRef>",{"$f":"CONCATENATE(C462,D462,E462)","v":"<docRef>Prior to 01/04/2025</docRef>"}]
[null,null,"</trainingAssessment>",null,null,{"$f":"CONCATENATE(C463,D463,E463)","v":"</trainingAssessment>"}]
[null,"<question2a>","<trainingRegulatoryRequirements>",null,null,{"$f":"C464","v":"<trainingRegulatoryRequirements>"}]
[null,null,"<answer>",{"$f":"'Op Perf'!E29","v":"Yes"},"</answer>",{"$f":"CONCATENATE(C465,D465,E465)","v":"<answer>Yes</answer>"}]
[null,null,"<score>",{"$f":"'Op Perf'!G29","v":2},"</score>",{"$f":"CONCATENATE(C466,D466,E466)","v":"<score>2</score>"}]
[null,null,"<post>",{"$f":"'Op Perf'!H29","v":0},"</post>",{"$f":"CONCATENATE(C467,D467,E467)","v":"<post>0</post>"}]
[null,null,"<docRef>",{"$f":"'Op Perf'!J29","v":"Prior to 01/04/2025"},"</docRef>",{"$f":"CONCATENATE(C468,D468,E468)","v":"<docRef>Prior to 01/04/2025</docRef>"}]
[null,null,"</trainingRegulatoryRequirements>",null,null,{"$f":"CONCATENATE(C469,D469,E469)","v":"</trainingRegulatoryRequirements>"}]
[null,"<question2b>","<trainingEnvImpact>",null,null,{"$f":"C470","v":"<trainingEnvImpact>"}]
[null,null,"<answer>",{"$f":"'Op Perf'!E30","v":"Yes"},"</answer>",{"$f":"CONCATENATE(C471,D471,E471)","v":"<answer>Yes</answer>"}]
[null,null,"<score>",{"$f":"'Op Perf'!G30","v":2},"</score>",{"$f":"CONCATENATE(C472,D472,E472)","v":"<score>2</score>"}]
[null,null,"<post>",{"$f":"'Op Perf'!H30","v":0},"</post>",{"$f":"CONCATENATE(C473,D473,E473)","v":"<post>0</post>"}]
[null,null,"<docRef>",{"$f":"'Op Perf'!J30","v":"Prior to 01/04/2025"},"</docRef>",{"$f":"CONCATENATE(C474,D474,E474)","v":"<docRef>Prior to 01/04/2025</docRef>"}]
[null,null,"</trainingEnvImpact>",null,null,{"$f":"CONCATENATE(C475,D475,E475)","v":"</trainingEnvImpact>"}]
[null,"<question2c>","<trainingReportingProcs>",null,null,{"$f":"C476","v":"<trainingReportingProcs>"}]
[null,null,"<answer>",{"$f":"'Op Perf'!E31","v":"Yes"},"</answer>",{"$f":"CONCATENATE(C477,D477,E477)","v":"<answer>Yes</answer>"}]
[null,null,"<score>",{"$f":"'Op Perf'!G31","v":1},"</score>",{"$f":"CONCATENATE(C478,D478,E478)","v":"<score>1</score>"}]
[null,null,"<post>",{"$f":"'Op Perf'!H31","v":0},"</post>",{"$f":"CONCATENATE(C479,D479,E479)","v":"<post>0</post>"}]
[null,null,"<docRef>",{"$f":"'Op Perf'!J31","v":"Prior to 01/04/2025"},"</docRef>",{"$f":"CONCATENATE(C480,D480,E480)","v":"<docRef>Prior to 01/04/2025</docRef>"}]
[null,null,"</trainingReportingProcs>",null,null,{"$f":"CONCATENATE(C481,D481,E481)","v":"</trainingReportingProcs>"}]
[null,"<question2d>","<trainingReportingDeviations>",null,null,{"$f":"C482","v":"<trainingReportingDeviations>"}]
[null,null,"<answer>",{"$f":"'Op Perf'!E32","v":"Yes"},"</answer>",{"$f":"CONCATENATE(C483,D483,E483)","v":"<answer>Yes</answer>"}]
[null,null,"<score>",{"$f":"'Op Perf'!G32","v":2},"</score>",{"$f":"CONCATENATE(C484,D484,E484)","v":"<score>2</score>"}]
[null,null,"<post>",{"$f":"'Op Perf'!H32","v":0},"</post>",{"$f":"CONCATENATE(C485,D485,E485)","v":"<post>0</post>"}]
[null,null,"<docRef>",{"$f":"'Op Perf'!J32","v":"Prior to 01/04/2025"},"</docRef>",{"$f":"CONCATENATE(C486,D486,E486)","v":"<docRef>Prior to 01/04/2025</docRef>"}]
[null,null,"</trainingReportingDeviations>",null,null,{"$f":"CONCATENATE(C487,D487,E487)","v":"</trainingReportingDeviations>"}]
[null,"<question2e","<trainingAccidentalEmissions>",null,null,{"$f":"C488","v":"<trainingAccidentalEmissions>"}]
[null,null,"<answer>",{"$f":"'Op Perf'!E33","v":"Yes"},"</answer>",{"$f":"CONCATENATE(C489,D489,E489)","v":"<answer>Yes</answer>"}]
[null,null,"<score>",{"$f":"'Op Perf'!G33","v":2},"</score>",{"$f":"CONCATENATE(C490,D490,E490)","v":"<score>2</score>"}]
[null,null,"<post>",{"$f":"'Op Perf'!H33","v":0},"</post>",{"$f":"CONCATENATE(C491,D491,E491)","v":"<post>0</post>"}]
[null,null,"<docRef>",{"$f":"'Op Perf'!J33","v":"Prior to 01/04/2025"},"</docRef>",{"$f":"CONCATENATE(C492,D492,E492)","v":"<docRef>Prior to 01/04/2025</docRef>"}]
[null,null,"</trainingAccidentalEmissions>",null,null,{"$f":"CONCATENATE(C493,D493,E493)","v":"</trainingAccidentalEmissions>"}]
[null,"<question3>","<skillsAndCompetancies>",null,null,{"$f":"C494","v":"<skillsAndCompetancies>"}]
[null,null,"<answer>",{"$f":"'Op Perf'!E34","v":"Yes"},"</answer>",{"$f":"CONCATENATE(C495,D495,E495)","v":"<answer>Yes</answer>"}]
[null,null,"<score>",{"$f":"'Op Perf'!G34","v":1},"</score>",{"$f":"CONCATENATE(C496,D496,E496)","v":"<score>1</score>"}]
[null,null,"<post>",{"$f":"'Op Perf'!H34","v":0},"</post>",{"$f":"CONCATENATE(C497,D497,E497)","v":"<post>0</post>"}]
[null,null,"<docRef>",{"$f":"'Op Perf'!J34","v":"Prior to 01/04/2025"},"</docRef>",{"$f":"CONCATENATE(C498,D498,E498)","v":"<docRef>Prior to 01/04/2025</docRef>"}]
[null,null,"</skillsAndCompetancies>",null,null,{"$f":"CONCATENATE(C499,D499,E499)","v":"</skillsAndCompetancies>"}]
[null,"<question4>","<keyPostsAndContractors>",null,null,{"$f":"C500","v":"<keyPostsAndContractors>"}]
[null,null,"<answer>",{"$f":"'Op Perf'!E35","v":"Yes"},"</answer>",{"$f":"CONCATENATE(C501,D501,E501)","v":"<answer>Yes</answer>"}]
[null,null,"<score>",{"$f":"'Op Perf'!G35","v":1},"</score>",{"$f":"CONCATENATE(C502,D502,E502)","v":"<score>1</score>"}]
[null,null,"<post>",{"$f":"'Op Perf'!H35","v":0},"</post>",{"$f":"CONCATENATE(C503,D503,E503)","v":"<post>0</post>"}]
[null,null,"<docRef>",{"$f":"'Op Perf'!J35","v":"Prior to 01/04/2025"},"</docRef>",{"$f":"CONCATENATE(C504,D504,E504)","v":"<docRef>Prior to 01/04/2025</docRef>"}]
[null,null,"</keyPostsAndContractors>",null,null,{"$f":"CONCATENATE(C505,D505,E505)","v":"</keyPostsAndContractors>"}]
[null,"<question5>","<assessPotentialRisksByContractors>",null,null,{"$f":"C506","v":"<assessPotentialRisksByContractors>"}]
[null,null,"<answer>",{"$f":"'Op Perf'!E36","v":"Yes"},"</answer>",{"$f":"CONCATENATE(C507,D507,E507)","v":"<answer>Yes</answer>"}]
[null,null,"<score>",{"$f":"'Op Perf'!G36","v":1},"</score>",{"$f":"CONCATENATE(C508,D508,E508)","v":"<score>1</score>"}]
[null,null,"<post>",{"$f":"'Op Perf'!H36","v":0},"</post>",{"$f":"CONCATENATE(C509,D509,E509)","v":"<post>0</post>"}]
[null,null,"<docRef>",{"$f":"'Op Perf'!J36","v":"Prior to 01/04/2025"},"</docRef>",{"$f":"CONCATENATE(C510,D510,E510)","v":"<docRef>Prior to 01/04/2025</docRef>"}]
[null,null,"</assessPotentialRisksByContractors>",null,null,{"$f":"CONCATENATE(C511,D511,E511)","v":"</assessPotentialRisksByContractors>"}]
[null,"<question6>","<notifiableIncidentsLackOfTraining>",null,null,{"$f":"C512","v":"<notifiableIncidentsLackOfTraining>"}]
[null,null,"<answer>",{"$f":"'Op Perf'!E37","v":"No"},"</answer>",{"$f":"CONCATENATE(C513,D513,E513)","v":"<answer>No</answer>"}]
[null,null,"<score>",{"$f":"'Op Perf'!G37","v":0},"</score>",{"$f":"CONCATENATE(C514,D514,E514)","v":"<score>0</score>"}]
[null,null,"<post>",{"$f":"'Op Perf'!H37","v":0},"</post>",{"$f":"CONCATENATE(C515,D515,E515)","v":"<post>0</post>"}]
[null,null,"<docRef>",{"$f":"'Op Perf'!J37","v":"N/A"},"</docRef>",{"$f":"CONCATENATE(C516,D516,E516)","v":"<docRef>N/A</docRef>"}]
[null,null,"</notifiableIncidentsLackOfTraining>",null,null,{"$f":"CONCATENATE(C517,D517,E517)","v":"</notifiableIncidentsLackOfTraining>"}]
[null,"<question7>","<industryStandardsForTraining>",null,null,{"$f":"C518","v":"<industryStandardsForTraining>"}]
[null,null,"<answer>",{"$f":"'Op Perf'!E38","v":0},"</answer>",{"$f":"CONCATENATE(C519,D519,E519)","v":"<answer>0</answer>"}]
[null,null,"<score>",{"$f":"'Op Perf'!G38","v":0},"</score>",{"$f":"CONCATENATE(C520,D520,E520)","v":"<score>0</score>"}]
[null,null,"<post>",{"$f":"'Op Perf'!H38","v":0},"</post>",{"$f":"CONCATENATE(C521,D521,E521)","v":"<post>0</post>"}]
[null,null,"<docRef>",{"$f":"'Op Perf'!J38","v":"N/A"},"</docRef>",{"$f":"CONCATENATE(C522,D522,E522)","v":"<docRef>N/A</docRef>"}]
[null,null,"</industryStandardsForTraining>",null,null,{"$f":"CONCATENATE(C523,D523,E523)","v":"</industryStandardsForTraining>"}]
[null,"<question8>","<trainingNeedsReviewed>",null,null,{"$f":"C524","v":"<trainingNeedsReviewed>"}]
[null,null,"<answer>",{"$f":"'Op Perf'!E39","v":"Yes"},"</answer>",{"$f":"CONCATENATE(C525,D525,E525)","v":"<answer>Yes</answer>"}]
[null,null,"<score>",{"$f":"'Op Perf'!G39","v":2},"</score>",{"$f":"CONCATENATE(C526,D526,E526)","v":"<score>2</score>"}]
[null,null,"<post>",{"$f":"'Op Perf'!H39","v":0},"</post>",{"$f":"CONCATENATE(C527,D527,E527)","v":"<post>0</post>"}]
[null,null,"<docRef>",{"$f":"'Op Perf'!J39","v":"Prior to 01/04/2025"},"</docRef>",{"$f":"CONCATENATE(C528,D528,E528)","v":"<docRef>Prior to 01/04/2025</docRef>"}]
[null,null,"</trainingNeedsReviewed>",null,null,{"$f":"CONCATENATE(C529,D529,E529)","v":"</trainingNeedsReviewed>"}]
[null,null,"</competanceAndTrainingSection>",null,null,{"$f":"C530","v":"</competanceAndTrainingSection>"}]
[null,null,"<emergencyPlanningSection>",null,null,{"$f":"C531","v":"<emergencyPlanningSection>"}]
[null,"<question1>","<accidentPlan>",null,null,{"$f":"C532","v":"<accidentPlan>"}]
[null,null,"<answer>",{"$f":"'Op Perf'!E51","v":"Yes"},"</answer>",{"$f":"CONCATENATE(C533,D533,E533)","v":"<answer>Yes</answer>"}]
[null,null,"<score>",{"$f":"'Op Perf'!G51","v":4},"</score>",{"$f":"CONCATENATE(C534,D534,E534)","v":"<score>4</score>"}]
[null,null,"<post>",{"$f":"'Op Perf'!H51","v":0},"</post>",{"$f":"CONCATENATE(C535,D535,E535)","v":"<post>0</post>"}]
[null,null,"<docRef>",{"$f":"'Op Perf'!J51","v":"Prior to 01/04/2025"},"</docRef>",{"$f":"CONCATENATE(C536,D536,E536)","v":"<docRef>Prior to 01/04/2025</docRef>"}]
[null,null,"</accidentPlan>",null,null,{"$f":"CONCATENATE(C537,D537,E537)","v":"</accidentPlan>"}]
[null,"<question2>","<identifiedAreasInAccidentPlan>",null,null,{"$f":"C538","v":"<identifiedAreasInAccidentPlan>"}]
[null,null,"<answer>",{"$f":"'Op Perf'!E52","v":"No"},"</answer>",{"$f":"CONCATENATE(C539,D539,E539)","v":"<answer>No</answer>"}]
[null,null,"<score>",{"$f":"'Op Perf'!G52","v":0},"</score>",{"$f":"CONCATENATE(C540,D540,E540)","v":"<score>0</score>"}]
[null,null,"<post>",{"$f":"'Op Perf'!H52","v":0},"</post>",{"$f":"CONCATENATE(C541,D541,E541)","v":"<post>0</post>"}]
[null,null,"<docRef>",{"$f":"'Op Perf'!J52","v":"N/A"},"</docRef>",{"$f":"CONCATENATE(C542,D542,E542)","v":"<docRef>N/A</docRef>"}]
[null,null,"</identifiedAreasInAccidentPlan>",null,null,{"$f":"CONCATENATE(C543,D543,E543)","v":"</identifiedAreasInAccidentPlan>"}]
[null,"<question3>","<improvementIdentified>",null,null,{"$f":"C544","v":"<improvementIdentified>"}]
[null,null,"<answer>",{"$f":"'Op Perf'!E53","v":0},"</answer>",{"$f":"CONCATENATE(C545,D545,E545)","v":"<answer>0</answer>"}]
[null,null,"<score>",{"$f":"'Op Perf'!G53","v":0},"</score>",{"$f":"CONCATENATE(C546,D546,E546)","v":"<score>0</score>"}]
[null,null,"<post>",{"$f":"'Op Perf'!H53","v":0},"</post>",{"$f":"CONCATENATE(C547,D547,E547)","v":"<post>0</post>"}]
[null,null,"<docRef>",{"$f":"'Op Perf'!J53","v":"N/A"},"</docRef>",{"$f":"CONCATENATE(C548,D548,E548)","v":"<docRef>N/A</docRef>"}]
[null,null,"</improvementIdentified>",null,null,{"$f":"CONCATENATE(C549,D549,E549)","v":"</improvementIdentified>"}]
[null,"<question4>","<nonComplianceProcs>",null,null,{"$f":"C550","v":"<nonComplianceProcs>"}]
[null,null,"<answer>",{"$f":"'Op Perf'!E54","v":"Yes"},"</answer>",{"$f":"CONCATENATE(C551,D551,E551)","v":"<answer>Yes</answer>"}]
[null,null,"<score>",{"$f":"'Op Perf'!G54","v":1},"</score>",{"$f":"CONCATENATE(C552,D552,E552)","v":"<score>1</score>"}]
[null,null,"<post>",{"$f":"'Op Perf'!H54","v":0},"</post>",{"$f":"CONCATENATE(C553,D553,E553)","v":"<post>0</post>"}]
[null,null,"<docRef>",{"$f":"'Op Perf'!J54","v":"Prior to 01/04/2025"},"</docRef>",{"$f":"CONCATENATE(C554,D554,E554)","v":"<docRef>Prior to 01/04/2025</docRef>"}]
[null,null,"</nonComplianceProcs>",null,null,{"$f":"CONCATENATE(C555,D555,E555)","v":"</nonComplianceProcs>"}]
[null,"<question5>","<environmentalComplaintsProcs>",null,null,{"$f":"C556","v":"<environmentalComplaintsProcs>"}]
[null,null,"<answer>",{"$f":"'Op Perf'!E55","v":"Yes"},"</answer>",{"$f":"CONCATENATE(C557,D557,E557)","v":"<answer>Yes</answer>"}]
[null,null,"<score>",{"$f":"'Op Perf'!G55","v":1},"</score>",{"$f":"CONCATENATE(C558,D558,E558)","v":"<score>1</score>"}]
[null,null,"<post>",{"$f":"'Op Perf'!H55","v":0},"</post>",{"$f":"CONCATENATE(C559,D559,E559)","v":"<post>0</post>"}]
[null,null,"<docRef>",{"$f":"'Op Perf'!J55","v":"Prior to 01/04/2025"},"</docRef>",{"$f":"CONCATENATE(C560,D560,E560)","v":"<docRef>Prior to 01/04/2025</docRef>"}]
[null,null,"</environmentalComplaintsProcs>",null,null,{"$f":"CONCATENATE(C561,D561,E561)","v":"</environmentalComplaintsProcs>"}]
[null,"<question6>","<investigatingIncidentsProcs>",null,null,{"$f":"C562","v":"<investigatingIncidentsProcs>"}]
[null,null,"<answer>",{"$f":"'Op Perf'!E56","v":"Yes"},"</answer>",{"$f":"CONCATENATE(C563,D563,E563)","v":"<answer>Yes</answer>"}]
[null,null,"<score>",{"$f":"'Op Perf'!G56","v":2},"</score>",{"$f":"CONCATENATE(C564,D564,E564)","v":"<score>2</score>"}]
[null,null,"<post>",{"$f":"'Op Perf'!H56","v":0},"</post>",{"$f":"CONCATENATE(C565,D565,E565)","v":"<post>0</post>"}]
[null,null,"<docRef>",{"$f":"'Op Perf'!J56","v":"Prior to 01/04/2025"},"</docRef>",{"$f":"CONCATENATE(C566,D566,E566)","v":"<docRef>Prior to 01/04/2025</docRef>"}]
[null,null,"</investigatingIncidentsProcs>",null,null,{"$f":"CONCATENATE(C567,D567,E567)","v":"</investigatingIncidentsProcs>"}]
[null,"<question7>","<notifiableIncidentsOrReleases>",null,null,{"$f":"C568","v":"<notifiableIncidentsOrReleases>"}]
[null,null,"<answer>",{"$f":"'Op Perf'!E57","v":"No"},"</answer>",{"$f":"CONCATENATE(C569,D569,E569)","v":"<answer>No</answer>"}]
[null,null,"<score>",{"$f":"'Op Perf'!G57","v":0},"</score>",{"$f":"CONCATENATE(C570,D570,E570)","v":"<score>0</score>"}]
[null,null,"<post>",{"$f":"'Op Perf'!H57","v":0},"</post>",{"$f":"CONCATENATE(C571,D571,E571)","v":"<post>0</post>"}]
[null,null,"<docRef>",{"$f":"'Op Perf'!J57","v":"N/A"},"</docRef>",{"$f":"CONCATENATE(C572,D572,E572)","v":"<docRef>N/A</docRef>"}]
[null,null,"</notifiableIncidentsOrReleases>",null,null,{"$f":"CONCATENATE(C573,D573,E573)","v":"</notifiableIncidentsOrReleases>"}]
[null,"<question8>","<auditRecords>",null,null,{"$f":"C574","v":"<auditRecords>"}]
[null,null,"<answer>",{"$f":"'Op Perf'!E58","v":"Yes"},"</answer>",{"$f":"CONCATENATE(C575,D575,E575)","v":"<answer>Yes</answer>"}]
[null,null,"<score>",{"$f":"'Op Perf'!G58","v":3},"</score>",{"$f":"CONCATENATE(C576,D576,E576)","v":"<score>3</score>"}]
[null,null,"<post>",{"$f":"'Op Perf'!H58","v":0},"</post>",{"$f":"CONCATENATE(C577,D577,E577)","v":"<post>0</post>"}]
[null,null,"<docRef>",{"$f":"'Op Perf'!J58","v":"Prior to 01/04/2025"},"</docRef>",{"$f":"CONCATENATE(C578,D578,E578)","v":"<docRef>Prior to 01/04/2025</docRef>"}]
[null,null,"</auditRecords>",null,null,{"$f":"CONCATENATE(C579,D579,E579)","v":"</auditRecords>"}]
[null,null,"</emergencyPlanningSection>",null,null,{"$f":"C580","v":"</emergencyPlanningSection>"}]
[null,null,"<organisationSection>",null,null,{"$f":"C581","v":"<organisationSection>"}]
[null,"<question1part1>","<registeredEMS>",null,null,{"$f":"C582","v":"<registeredEMS>"}]
[null,null,"<answer>",{"$f":"'Op Perf'!E64","v":"No"},"</answer>",{"$f":"CONCATENATE(C583,D583,E583)","v":"<answer>No</answer>"}]
[null,null,"<score>",{"$f":"'Op Perf'!G64","v":0},"</score>",{"$f":"CONCATENATE(C584,D584,E584)","v":"<score>0</score>"}]
[null,null,"<post>",{"$f":"'Op Perf'!H64","v":0},"</post>",{"$f":"CONCATENATE(C585,D585,E585)","v":"<post>0</post>"}]
[null,null,"<docRef>",{"$f":"'Op Perf'!J64","v":"N/A"},"</docRef>",{"$f":"CONCATENATE(C586,D586,E586)","v":"<docRef>N/A</docRef>"}]
[null,null,"</registeredEMS>",null,null,{"$f":"CONCATENATE(C587,D587,E587)","v":"</registeredEMS>"}]
[null,"<question1part2>","<certifiedToISO14001>",null,null,{"$f":"C588","v":"<certifiedToISO14001>"}]
[null,null,"<answer>",{"$f":"'Op Perf'!E65","v":"Yes"},"</answer>",{"$f":"CONCATENATE(C589,D589,E589)","v":"<answer>Yes</answer>"}]
[null,null,"<score>",{"$f":"'Op Perf'!G65","v":15},"</score>",{"$f":"CONCATENATE(C590,D590,E590)","v":"<score>15</score>"}]
[null,null,"<post>",{"$f":"'Op Perf'!H65","v":0},"</post>",{"$f":"CONCATENATE(C591,D591,E591)","v":"<post>0</post>"}]
[null,null,"<docRef>",{"$f":"'Op Perf'!J65","v":"Doc reg: HG-M-02-MAN-01-02, Horizon Management System (HMS) 4.0"},"</docRef>",{"$f":"CONCATENATE(C592,D592,E592)","v":"<docRef>Doc reg: HG-M-02-MAN-01-02, Horizon Management System (HMS) 4.0</docRef>"}]
[null,null,"</certifiedToISO14001>",null,null,{"$f":"CONCATENATE(C593,D593,E593)","v":"</certifiedToISO14001>"}]
[null,"<question1part3>","<externalAuditOfEMS>",null,null,{"$f":"C594","v":"<externalAuditOfEMS>"}]
[null,null,"<answer>",{"$f":"'Op Perf'!E66","v":0},"</answer>",{"$f":"CONCATENATE(C595,D595,E595)","v":"<answer>0</answer>"}]
[null,null,"<score>",{"$f":"'Op Perf'!G66","v":0},"</score>",{"$f":"CONCATENATE(C596,D596,E596)","v":"<score>0</score>"}]
[null,null,"<post>",{"$f":"'Op Perf'!H66","v":0},"</post>",{"$f":"CONCATENATE(C597,D597,E597)","v":"<post>0</post>"}]
[null,null,"<docRef>",{"$f":"'Op Perf'!J66","v":0},"</docRef>",{"$f":"CONCATENATE(C598,D598,E598)","v":"<docRef>0</docRef>"}]
[null,null,"</externalAuditOfEMS>",null,null,{"$f":"CONCATENATE(C599,D599,E599)","v":"</externalAuditOfEMS>"}]
[null,"<question2part1a>","<policyCommitmentToImprovement>",null,null,{"$f":"C600","v":"<policyCommitmentToImprovement>"}]
[null,null,"<answer>",{"$f":"'Op Perf'!E52","v":"No"},"</answer>",{"$f":"CONCATENATE(C601,D601,E601)","v":"<answer>No</answer>"}]
[null,null,"<score>",{"$f":"'Op Perf'!G52","v":0},"</score>",{"$f":"CONCATENATE(C602,D602,E602)","v":"<score>0</score>"}]
[null,null,"<post>",{"$f":"'Op Perf'!H52","v":0},"</post>",{"$f":"CONCATENATE(C603,D603,E603)","v":"<post>0</post>"}]
[null,null,"<docRef>",{"$f":"'Op Perf'!J52","v":"N/A"},"</docRef>",{"$f":"CONCATENATE(C604,D604,E604)","v":"<docRef>N/A</docRef>"}]
[null,null,"</policyCommitmentToImprovement>",null,null,{"$f":"CONCATENATE(C605,D605,E605)","v":"</policyCommitmentToImprovement>"}]
[null,"<question2part1b>","<policyCommitmentToComply>",null,null,{"$f":"C606","v":"<policyCommitmentToComply>"}]
[null,null,"<answer>",{"$f":"'Op Perf'!E53","v":0},"</answer>",{"$f":"CONCATENATE(C607,D607,E607)","v":"<answer>0</answer>"}]
[null,null,"<score>",{"$f":"'Op Perf'!G53","v":0},"</score>",{"$f":"CONCATENATE(C608,D608,E608)","v":"<score>0</score>"}]
[null,null,"<post>",{"$f":"'Op Perf'!H53","v":0},"</post>",{"$f":"CONCATENATE(C609,D609,E609)","v":"<post>0</post>"}]
[null,null,"<docRef>",{"$f":"'Op Perf'!J53","v":"N/A"},"</docRef>",{"$f":"CONCATENATE(C610,D610,E610)","v":"<docRef>N/A</docRef>"}]
[null,null,"</policyCommitmentToComply>",null,null,{"$f":"CONCATENATE(C611,D611,E611)","v":"</policyCommitmentToComply>"}]
[null,"<question2part1c>","<policyReviewEnvironmentalObjectives>",null,null,{"$f":"C612","v":"<policyReviewEnvironmentalObjectives>"}]
[null,null,"<answer>",{"$f":"'Op Perf'!E54","v":"Yes"},"</answer>",{"$f":"CONCATENATE(C613,D613,E613)","v":"<answer>Yes</answer>"}]
[null,null,"<score>",{"$f":"'Op Perf'!G54","v":1},"</score>",{"$f":"CONCATENATE(C614,D614,E614)","v":"<score>1</score>"}]
[null,null,"<post>",{"$f":"'Op Perf'!H54","v":0},"</post>",{"$f":"CONCATENATE(C615,D615,E615)","v":"<post>0</post>"}]
[null,null,"<docRef>",{"$f":"'Op Perf'!J54","v":"Prior to 01/04/2025"},"</docRef>",{"$f":"CONCATENATE(C616,D616,E616)","v":"<docRef>Prior to 01/04/2025</docRef>"}]
[null,null,"</policyReviewEnvironmentalObjectives>",null,null,{"$f":"CONCATENATE(C617,D617,E617)","v":"</policyReviewEnvironmentalObjectives>"}]
[null,"<question2part2a>","<controlProcessChangeProcs>",null,null,{"$f":"C618","v":"<controlProcessChangeProcs>"}]
[null,null,"<answer>",{"$f":"'Op Perf'!E74","v":0},"</answer>",{"$f":"CONCATENATE(C619,D619,E619)","v":"<answer>0</answer>"}]
[null,null,"<score>",{"$f":"'Op Perf'!G74","v":0},"</score>",{"$f":"CONCATENATE(C620,D620,E620)","v":"<score>0</score>"}]
[null,null,"<post>",{"$f":"'Op Perf'!H74","v":0},"</post>",{"$f":"CONCATENATE(C621,D621,E621)","v":"<post>0</post>"}]
[null,null,"<docRef>",{"$f":"'Op Perf'!J74","v":0},"</docRef>",{"$f":"CONCATENATE(C622,D622,E622)","v":"<docRef>0</docRef>"}]
[null,null,"</controlProcessChangeProcs>",null,null,{"$f":"CONCATENATE(C623,D623,E623)","v":"</controlProcessChangeProcs>"}]
[null,"<question2part2b>","<designAndReviewProcs>",null,null,{"$f":"C624","v":"<designAndReviewProcs>"}]
[null,null,"<answer>",{"$f":"'Op Perf'!E75","v":0},"</answer>",{"$f":"CONCATENATE(C625,D625,E625)","v":"<answer>0</answer>"}]
[null,null,"<score>",{"$f":"'Op Perf'!G75","v":0},"</score>",{"$f":"CONCATENATE(C626,D626,E626)","v":"<score>0</score>"}]
[null,null,"<post>",{"$f":"'Op Perf'!H75","v":0},"</post>",{"$f":"CONCATENATE(C627,D627,E627)","v":"<post>0</post>"}]
[null,null,"<docRef>",{"$f":"'Op Perf'!J75","v":0},"</docRef>",{"$f":"CONCATENATE(C628,D628,E628)","v":"<docRef>0</docRef>"}]
[null,null,"</designAndReviewProcs>",null,null,{"$f":"CONCATENATE(C629,D629,E629)","v":"</designAndReviewProcs>"}]
[null,"<question2part2c>","<capitalApprovalProcs>",null,null,{"$f":"C630","v":"<capitalApprovalProcs>"}]
[null,null,"<answer>",{"$f":"'Op Perf'!E76","v":0},"</answer>",{"$f":"CONCATENATE(C631,D631,E631)","v":"<answer>0</answer>"}]
[null,null,"<score>",{"$f":"'Op Perf'!G76","v":0},"</score>",{"$f":"CONCATENATE(C632,D632,E632)","v":"<score>0</score>"}]
[null,null,"<post>",{"$f":"'Op Perf'!H76","v":0},"</post>",{"$f":"CONCATENATE(C633,D633,E633)","v":"<post>0</post>"}]
[null,null,"<docRef>",{"$f":"'Op Perf'!J76","v":0},"</docRef>",{"$f":"CONCATENATE(C634,D634,E634)","v":"<docRef>0</docRef>"}]
[null,null,"</capitalApprovalProcs>",null,null,{"$f":"CONCATENATE(C635,D635,E635)","v":"</capitalApprovalProcs>"}]
[null,"<question2part2d>","<purchasingPolicyProcs>",null,null,{"$f":"C636","v":"<purchasingPolicyProcs>"}]
[null,null,"<answer>",{"$f":"'Op Perf'!E77","v":0},"</answer>",{"$f":"CONCATENATE(C637,D637,E637)","v":"<answer>0</answer>"}]
[null,null,"<score>",{"$f":"'Op Perf'!G77","v":0},"</score>",{"$f":"CONCATENATE(C638,D638,E638)","v":"<score>0</score>"}]
[null,null,"<post>",{"$f":"'Op Perf'!H77","v":0},"</post>",{"$f":"CONCATENATE(C639,D639,E639)","v":"<post>0</post>"}]
[null,null,"<docRef>",{"$f":"'Op Perf'!J77","v":0},"</docRef>",{"$f":"CONCATENATE(C640,D640,E640)","v":"<docRef>0</docRef>"}]
[null,null,"</purchasingPolicyProcs>",null,null,{"$f":"CONCATENATE(C641,D641,E641)","v":"</purchasingPolicyProcs>"}]
[null,"<question2part3>","<annualAudits>",null,null,{"$f":"C642","v":"<annualAudits>"}]
[null,null,"<answer>",{"$f":"'Op Perf'!E78","v":0},"</answer>",{"$f":"CONCATENATE(C643,D643,E643)","v":"<answer>0</answer>"}]
[null,null,"<score>",{"$f":"'Op Perf'!G78","v":0},"</score>",{"$f":"CONCATENATE(C644,D644,E644)","v":"<score>0</score>"}]
[null,null,"<post>",{"$f":"'Op Perf'!H78","v":0},"</post>",{"$f":"CONCATENATE(C645,D645,E645)","v":"<post>0</post>"}]
[null,null,"<docRef>",{"$f":"'Op Perf'!J78","v":0},"</docRef>",{"$f":"CONCATENATE(C646,D646,E646)","v":"<docRef>0</docRef>"}]
[null,null,"</annualAudits>",null,null,{"$f":"CONCATENATE(C647,D647,E647)","v":"</annualAudits>"}]
[null,"<question2part4>","<independentAudits>",null,null,{"$f":"C648","v":"<independentAudits>"}]
[null,null,"<answer>",{"$f":"'Op Perf'!E79","v":0},"</answer>",{"$f":"CONCATENATE(C649,D649,E649)","v":"<answer>0</answer>"}]
[null,null,"<score>",{"$f":"'Op Perf'!G79","v":0},"</score>",{"$f":"CONCATENATE(C650,D650,E650)","v":"<score>0</score>"}]
[null,null,"<post>",{"$f":"'Op Perf'!H79","v":0},"</post>",{"$f":"CONCATENATE(C651,D651,E651)","v":"<post>0</post>"}]
[null,null,"<docRef>",{"$f":"'Op Perf'!J79","v":0},"</docRef>",{"$f":"CONCATENATE(C652,D652,E652)","v":"<docRef>0</docRef>"}]
[null,null,"</independentAudits>",null,null,{"$f":"CONCATENATE(C653,D653,E653)","v":"</independentAudits>"}]
[null,"<question2part5>","<annualReports>",null,null,{"$f":"C654","v":"<annualReports>"}]
[null,null,"<answer>",{"$f":"'Op Perf'!E80","v":0},"</answer>",{"$f":"CONCATENATE(C655,D655,E655)","v":"<answer>0</answer>"}]
[null,null,"<score>",{"$f":"'Op Perf'!G80","v":0},"</score>",{"$f":"CONCATENATE(C656,D656,E656)","v":"<score>0</score>"}]
[null,null,"<post>",{"$f":"'Op Perf'!H80","v":0},"</post>",{"$f":"CONCATENATE(C657,D657,E657)","v":"<post>0</post>"}]
[null,null,"<docRef>",{"$f":"'Op Perf'!J80","v":0},"</docRef>",{"$f":"CONCATENATE(C658,D658,E658)","v":"<docRef>0</docRef>"}]
[null,null,"</annualReports>",null,null,{"$f":"CONCATENATE(C659,D659,E659)","v":"</annualReports>"}]
[null,"<question3>","<publicEnvironmentalStatment>",null,null,{"$f":"C660","v":"<publicEnvironmentalStatment>"}]
[null,null,"<answer>",{"$f":"'Op Perf'!E81","v":"No"},"</answer>",{"$f":"CONCATENATE(C661,D661,E661)","v":"<answer>No</answer>"}]
[null,null,"<score>",{"$f":"'Op Perf'!G81","v":0},"</score>",{"$f":"CONCATENATE(C662,D662,E662)","v":"<score>0</score>"}]
[null,null,"<post>",{"$f":"'Op Perf'!H81","v":0},"</post>",{"$f":"CONCATENATE(C663,D663,E663)","v":"<post>0</post>"}]
[null,null,"<docRef>",{"$f":"'Op Perf'!J81","v":"N/A"},"</docRef>",{"$f":"CONCATENATE(C664,D664,E664)","v":"<docRef>N/A</docRef>"}]
[null,null,"</publicEnvironmentalStatment>",null,null,{"$f":"CONCATENATE(C665,D665,E665)","v":"</publicEnvironmentalStatment>"}]
[null,"<question4>","<numberOfFailuresInLast5Years>",null,null,{"$f":"C666","v":"<numberOfFailuresInLast5Years>"}]
[null,null,"<answer>",{"$f":"'Op Perf'!E82","v":0},"</answer>",{"$f":"CONCATENATE(C667,D667,E667)","v":"<answer>0</answer>"}]
[null,null,"<score>",{"$f":"'Op Perf'!G82","v":0},"</score>",{"$f":"CONCATENATE(C668,D668,E668)","v":"<score>0</score>"}]
[null,null,"<post>",{"$f":"'Op Perf'!H82","v":0},"</post>",{"$f":"CONCATENATE(C669,D669,E669)","v":"<post>0</post>"}]
[null,null,"<docRef>",{"$f":"'Op Perf'!J82","v":"N/A"},"</docRef>",{"$f":"CONCATENATE(C670,D670,E670)","v":"<docRef>N/A</docRef>"}]
[null,null,"</numberOfFailuresInLast5Years>",null,null,{"$f":"CONCATENATE(C671,D671,E671)","v":"</numberOfFailuresInLast5Years>"}]
[null,null,"</organisationSection>",null,null,{"$f":"C672","v":"</organisationSection>"}]
[null,null,"<complianceSection>",null,null,{"$f":"C673","v":"<complianceSection>"}]
[null,"<question1>","<enforcementNotices>",null,null,{"$f":"C674","v":"<enforcementNotices>"}]
[null,null,"<answer>",{"$f":"'Op Perf'!E87","v":0},"</answer>",{"$f":"CONCATENATE(C675,D675,E675)","v":"<answer>0</answer>"}]
[null,null,"<score>",{"$f":"'Op Perf'!G87","v":0},"</score>",{"$f":"CONCATENATE(C676,D676,E676)","v":"<score>0</score>"}]
[null,null,"<enforcementDetails>",null,null,{"$f":"C677","v":"<enforcementDetails>"}]
[null,null,"<description>",{"$f":"'Op Perf'!H87","v":0},"</description>",{"$f":"CONCATENATE(C678,D678,E678)","v":"<description>0</description>"}]
[null,null,"<dateIssued>",{"$f":"'Op Perf'!I87","v":0},"</dateIssued>",{"$f":"CONCATENATE(C679,D679,E679)","v":"<dateIssued>0</dateIssued>"}]
[null,null,"<dateSpent>",{"$f":"'Op Perf'!J87","v":0},"</dateSpent>",{"$f":"CONCATENATE(C680,D680,E680)","v":"<dateSpent>0</dateSpent>"}]
[null,null,"</enforcementDetails>",null,null,{"$f":"C681","v":"</enforcementDetails>"}]
[null,null,"<enforcementDetails>",{"$f":"'Op Perf'!H88","v":0},null,{"$f":"C682","v":"<enforcementDetails>"}]
[null,null,"<description>",{"$f":"'Op Perf'!H88","v":0},"</description>",{"$f":"CONCATENATE(C683,D683,E683)","v":"<description>0</description>"}]
[null,null,"<dateIssued>",{"$f":"'Op Perf'!I88","v":0},"</dateIssued>",{"$f":"CONCATENATE(C684,D684,E684)","v":"<dateIssued>0</dateIssued>"}]
[null,null,"<dateSpent>",{"$f":"'Op Perf'!J88","v":0},"</dateSpent>",{"$f":"CONCATENATE(C685,D685,E685)","v":"<dateSpent>0</dateSpent>"}]
[null,null,"</enforcementDetails>",null,null,{"$f":"C686","v":"</enforcementDetails>"}]
[null,null,"<enforcementDetails>",null,null,{"$f":"C687","v":"<enforcementDetails>"}]
[null,null,"<description>",{"$f":"'Op Perf'!H89","v":0},"</description>",{"$f":"CONCATENATE(C688,D688,E688)","v":"<description>0</description>"}]
[null,null,"<dateIssued>",{"$f":"'Op Perf'!I97","v":0},"</dateIssued>",{"$f":"CONCATENATE(C689,D689,E689)","v":"<dateIssued>0</dateIssued>"}]
[null,null,"<dateSpent>",{"$f":"'Op Perf'!I89","v":0},"</dateSpent>",{"$f":"CONCATENATE(C690,D690,E690)","v":"<dateSpent>0</dateSpent>"}]
[null,null,"</enforcementDetails>",{"$f":"'Op Perf'!J89","v":0},null,{"$f":"C691","v":"</enforcementDetails>"}]
[null,null,"<enforcementDetails>",null,null,{"$f":"C692","v":"<enforcementDetails>"}]
[null,null,"<description>",{"$f":"'Op Perf'!H90","v":0},"</description>",{"$f":"CONCATENATE(C693,D693,E693)","v":"<description>0</description>"}]
[null,null,"<dateIssued>",{"$f":"'Op Perf'!I90","v":0},"</dateIssued>",{"$f":"CONCATENATE(C694,D694,E694)","v":"<dateIssued>0</dateIssued>"}]
[null,null,"<dateSpent>",{"$f":"'Op Perf'!J90","v":0},"</dateSpent>",{"$f":"CONCATENATE(C695,D695,E695)","v":"<dateSpent>0</dateSpent>"}]
[null,null,"</enforcementDetails>",null,null,{"$f":"C696","v":"</enforcementDetails>"}]
[null,null,"<enforcementDetails>",null,null,{"$f":"C697","v":"<enforcementDetails>"}]
[null,null,"<description>",{"$f":"'Op Perf'!H91","v":0},"</description>",{"$f":"CONCATENATE(C698,D698,E698)","v":"<description>0</description>"}]
[null,null,"<dateIssued>",{"$f":"'Op Perf'!I91","v":0},"</dateIssued>",{"$f":"CONCATENATE(C699,D699,E699)","v":"<dateIssued>0</dateIssued>"}]
[null,null,"<dateSpent>",{"$f":"'Op Perf'!J91","v":0},"</dateSpent>",{"$f":"CONCATENATE(C700,D700,E700)","v":"<dateSpent>0</dateSpent>"}]
[null,null,"</enforcementDetails>",null,null,{"$f":"C701","v":"</enforcementDetails>"}]
[null,null,"<enforcementDetails>",null,null,{"$f":"C702","v":"<enforcementDetails>"}]
[null,null,"<description>",{"$f":"'Op Perf'!H92","v":0},"</description>",{"$f":"CONCATENATE(C703,D703,E703)","v":"<description>0</description>"}]
[null,null,"<dateIssued>",{"$f":"'Op Perf'!I92","v":0},"</dateIssued>",{"$f":"CONCATENATE(C704,D704,E704)","v":"<dateIssued>0</dateIssued>"}]
[null,null,"<dateSpent>",{"$f":"'Op Perf'!J92","v":0},"</dateSpent>",{"$f":"CONCATENATE(C705,D705,E705)","v":"<dateSpent>0</dateSpent>"}]
[null,null,"</enforcementDetails>",null,null,{"$f":"C706","v":"</enforcementDetails>"}]
[null,null,"</enforcementNotices>",null,null,{"$f":"CONCATENATE(C707,D707,E707)","v":"</enforcementNotices>"}]
[null,"<question2>","<formalCautions>",null,null,{"$f":"C708","v":"<formalCautions>"}]
[null,null,"<answer>",{"$f":"'Op Perf'!E93","v":0},"</answer>",{"$f":"CONCATENATE(C709,D709,E709)","v":"<answer>0</answer>"}]
[null,null,"<score>",{"$f":"'Op Perf'!G93","v":0},"</score>",{"$f":"CONCATENATE(C710,D710,E710)","v":"<score>0</score>"}]
[null,null,"<cautionDetails>",null,null,{"$f":"C711","v":"<cautionDetails>"}]
[null,null,"<description>",{"$f":"'Op Perf'!H93","v":0},"</description>",{"$f":"CONCATENATE(C712,D712,E712)","v":"<description>0</description>"}]
[null,null,"<dateIssued>",{"$f":"'Op Perf'!I93","v":0},"</dateIssued>",{"$f":"CONCATENATE(C713,D713,E713)","v":"<dateIssued>0</dateIssued>"}]
[null,null,"<dateSpent>",{"$f":"'Op Perf'!J93","v":0},"</dateSpent>",{"$f":"CONCATENATE(C714,D714,E714)","v":"<dateSpent>0</dateSpent>"}]
[null,null,"</cautionDetails>",null,null,{"$f":"C715","v":"</cautionDetails>"}]
[null,null,"<cautionDetails>",null,null,{"$f":"C716","v":"<cautionDetails>"}]
[null,null,"<description>",{"$f":"'Op Perf'!H94","v":0},"</description>",{"$f":"CONCATENATE(C717,D717,E717)","v":"<description>0</description>"}]
[null,null,"<dateIssued>",{"$f":"'Op Perf'!I94","v":0},"</dateIssued>",{"$f":"CONCATENATE(C718,D718,E718)","v":"<dateIssued>0</dateIssued>"}]
[null,null,"<dateSpent>",{"$f":"'Op Perf'!J94","v":0},"</dateSpent>",{"$f":"CONCATENATE(C719,D719,E719)","v":"<dateSpent>0</dateSpent>"}]
[null,null,"</cautionDetails>",null,null,{"$f":"C720","v":"</cautionDetails>"}]
[null,null,"<cautionDetails>",null,null,{"$f":"C721","v":"<cautionDetails>"}]
[null,null,"<description>",{"$f":"'Op Perf'!H95","v":0},"</description>",{"$f":"CONCATENATE(C722,D722,E722)","v":"<description>0</description>"}]
[null,null,"<dateIssued>",{"$f":"'Op Perf'!I95","v":0},"</dateIssued>",{"$f":"CONCATENATE(C723,D723,E723)","v":"<dateIssued>0</dateIssued>"}]
[null,null,"<dateSpent>",{"$f":"'Op Perf'!J95","v":0},"</dateSpent>",{"$f":"CONCATENATE(C724,D724,E724)","v":"<dateSpent>0</dateSpent>"}]
[null,null,"</cautionDetails>",null,null,{"$f":"C725","v":"</cautionDetails>"}]
[null,null,"<cautionDetails>",null,null,{"$f":"C726","v":"<cautionDetails>"}]
[null,null,"<description>",{"$f":"'Op Perf'!H96","v":0},"</description>",{"$f":"CONCATENATE(C727,D727,E727)","v":"<description>0</description>"}]
[null,null,"<dateIssued>",{"$f":"'Op Perf'!I96","v":0},"</dateIssued>",{"$f":"CONCATENATE(C728,D728,E728)","v":"<dateIssued>0</dateIssued>"}]
[null,null,"<dateSpent>",{"$f":"'Op Perf'!J96","v":0},"</dateSpent>",{"$f":"CONCATENATE(C729,D729,E729)","v":"<dateSpent>0</dateSpent>"}]
[null,null,"</cautionDetails>",null,null,{"$f":"C730","v":"</cautionDetails>"}]
[null,null,"<cautionDetails>",null,null,{"$f":"C731","v":"<cautionDetails>"}]
[null,null,"<description>",{"$f":"'Op Perf'!H97","v":0},"</description>",{"$f":"CONCATENATE(C732,D732,E732)","v":"<description>0</description>"}]
[null,null,"<dateIssued>",{"$f":"'Op Perf'!I97","v":0},"</dateIssued>",{"$f":"CONCATENATE(C733,D733,E733)","v":"<dateIssued>0</dateIssued>"}]
[null,null,"<dateSpent>",{"$f":"'Op Perf'!J97","v":0},"</dateSpent>",{"$f":"CONCATENATE(C734,D734,E734)","v":"<dateSpent>0</dateSpent>"}]
[null,null,"</cautionDetails>",null,null,{"$f":"C735","v":"</cautionDetails>"}]
[null,null,"<cautionDetails>",null,null,{"$f":"C736","v":"<cautionDetails>"}]
[null,null,"<description>",{"$f":"'Op Perf'!H98","v":0},"</description>",{"$f":"CONCATENATE(C737,D737,E737)","v":"<description>0</description>"}]
[null,null,"<dateIssued>",{"$f":"'Op Perf'!I98","v":0},"</dateIssued>",{"$f":"CONCATENATE(C738,D738,E738)","v":"<dateIssued>0</dateIssued>"}]
[null,null,"<dateSpent>",{"$f":"'Op Perf'!J98","v":0},"</dateSpent>",{"$f":"CONCATENATE(C739,D739,E739)","v":"<dateSpent>0</dateSpent>"}]
[null,null,"</cautionDetails>",null,null,{"$f":"C740","v":"</cautionDetails>"}]
[null,null,"</formalCautions>",null,null,{"$f":"CONCATENATE(C741,D741,E741)","v":"</formalCautions>"}]
[null,"<question3>","<prohibitionNoticesByEA>",null,null,{"$f":"C742","v":"<prohibitionNoticesByEA>"}]
[null,null,"<answer>",{"$f":"'Op Perf'!E99","v":0},"</answer>",{"$f":"CONCATENATE(C743,D743,E743)","v":"<answer>0</answer>"}]
[null,null,"<score>",{"$f":"'Op Perf'!G99","v":0},"</score>",{"$f":"CONCATENATE(C744,D744,E744)","v":"<score>0</score>"}]
[null,null,"<prohibitionDetails>",null,null,{"$f":"C745","v":"<prohibitionDetails>"}]
[null,null,"<description>",{"$f":"'Op Perf'!H99","v":0},"</description>",{"$f":"CONCATENATE(C746,D746,E746)","v":"<description>0</description>"}]
[null,null,"<dateIssued>",{"$f":"'Op Perf'!I99","v":0},"</dateIssued>",{"$f":"CONCATENATE(C747,D747,E747)","v":"<dateIssued>0</dateIssued>"}]
[null,null,"<dateSpent>",{"$f":"'Op Perf'!J99","v":0},"</dateSpent>",{"$f":"CONCATENATE(C748,D748,E748)","v":"<dateSpent>0</dateSpent>"}]
[null,null,"</prohibitionDetails>",{"$f":"'Op Perf'!J99","v":0},null,{"$f":"C749","v":"</prohibitionDetails>"}]
[null,null,"<prohibitionDetails>",null,null,{"$f":"C750","v":"<prohibitionDetails>"}]
[null,null,"<description>",{"$f":"'Op Perf'!H100","v":0},"</description>",{"$f":"CONCATENATE(C751,D751,E751)","v":"<description>0</description>"}]
[null,null,"<dateIssued>",{"$f":"'Op Perf'!I100","v":0},"</dateIssued>",{"$f":"CONCATENATE(C752,D752,E752)","v":"<dateIssued>0</dateIssued>"}]
[null,null,"<dateSpent>",{"$f":"'Op Perf'!J100","v":0},"</dateSpent>",{"$f":"CONCATENATE(C753,D753,E753)","v":"<dateSpent>0</dateSpent>"}]
[null,null,"</prohibitionDetails>",null,null,{"$f":"C754","v":"</prohibitionDetails>"}]
[null,null,"<prohibitionDetails>",null,null,{"$f":"C755","v":"<prohibitionDetails>"}]
[null,null,"<description>",{"$f":"'Op Perf'!H101","v":0},"</description>",{"$f":"CONCATENATE(C756,D756,E756)","v":"<description>0</description>"}]
[null,null,"<dateIssued>",{"$f":"'Op Perf'!I101","v":0},"</dateIssued>",{"$f":"CONCATENATE(C757,D757,E757)","v":"<dateIssued>0</dateIssued>"}]
[null,null,"<dateSpent>",{"$f":"'Op Perf'!J101","v":0},"</dateSpent>",{"$f":"CONCATENATE(C758,D758,E758)","v":"<dateSpent>0</dateSpent>"}]
[null,null,"</prohibitionDetails>",null,null,{"$f":"C759","v":"</prohibitionDetails>"}]
[null,null,"<prohibitionDetails>",null,null,{"$f":"C760","v":"<prohibitionDetails>"}]
[null,null,"<description>",{"$f":"'Op Perf'!H102","v":0},"</description>",{"$f":"CONCATENATE(C761,D761,E761)","v":"<description>0</description>"}]
[null,null,"<dateIssued>",{"$f":"'Op Perf'!I102","v":0},"</dateIssued>",{"$f":"CONCATENATE(C762,D762,E762)","v":"<dateIssued>0</dateIssued>"}]
[null,null,"<dateSpent>",{"$f":"'Op Perf'!J102","v":0},"</dateSpent>",{"$f":"CONCATENATE(C763,D763,E763)","v":"<dateSpent>0</dateSpent>"}]
[null,null,"</prohibitionDetails>",null,null,{"$f":"C764","v":"</prohibitionDetails>"}]
[null,null,"<prohibitionDetails>",null,null,{"$f":"C765","v":"<prohibitionDetails>"}]
[null,null,"<description>",{"$f":"'Op Perf'!H103","v":0},"</description>",{"$f":"CONCATENATE(C766,D766,E766)","v":"<description>0</description>"}]
[null,null,"<dateIssued>",{"$f":"'Op Perf'!I103","v":0},"</dateIssued>",{"$f":"CONCATENATE(C767,D767,E767)","v":"<dateIssued>0</dateIssued>"}]
[null,null,"<dateSpent>",{"$f":"'Op Perf'!J103","v":0},"</dateSpent>",{"$f":"CONCATENATE(C768,D768,E768)","v":"<dateSpent>0</dateSpent>"}]
[null,null,"</prohibitionDetails>",null,null,{"$f":"C769","v":"</prohibitionDetails>"}]
[null,null,"<prohibitionDetails>",null,null,{"$f":"C770","v":"<prohibitionDetails>"}]
[null,null,"<description>",{"$f":"'Op Perf'!H104","v":0},"</description>",{"$f":"CONCATENATE(C771,D771,E771)","v":"<description>0</description>"}]
[null,null,"<dateIssued>",{"$f":"'Op Perf'!I104","v":0},"</dateIssued>",{"$f":"CONCATENATE(C772,D772,E772)","v":"<dateIssued>0</dateIssued>"}]
[null,null,"<dateSpent>",{"$f":"'Op Perf'!J104","v":0},"</dateSpent>",{"$f":"CONCATENATE(C773,D773,E773)","v":"<dateSpent>0</dateSpent>"}]
[null,null,"</prohibitionDetails>",null,null,{"$f":"C774","v":"</prohibitionDetails>"}]
[null,null,"</prohibitionNoticesByEA>",null,null,{"$f":"CONCATENATE(C775,D775,E775)","v":"</prohibitionNoticesByEA>"}]
[null,"<question4>","<convictionsOnProsecutions>",null,null,{"$f":"C776","v":"<convictionsOnProsecutions>"}]
[null,null,"<answer>",{"$f":"'Op Perf'!E105","v":0},"</answer>",{"$f":"CONCATENATE(C777,D777,E777)","v":"<answer>0</answer>"}]
[null,null,"<score>",{"$f":"'Op Perf'!G105","v":0},"</score>",{"$f":"CONCATENATE(C778,D778,E778)","v":"<score>0</score>"}]
[null,null,"<convictionsDetails>",null,null,{"$f":"C779","v":"<convictionsDetails>"}]
[null,null,"<description>",{"$f":"'Op Perf'!H105","v":0},"</description>",{"$f":"CONCATENATE(C780,D780,E780)","v":"<description>0</description>"}]
[null,null,"<dateIssued>",{"$f":"'Op Perf'!I105","v":0},"</dateIssued>",{"$f":"CONCATENATE(C781,D781,E781)","v":"<dateIssued>0</dateIssued>"}]
[null,null,"<dateSpent>",{"$f":"'Op Perf'!J105","v":0},"</dateSpent>",{"$f":"CONCATENATE(C782,D782,E782)","v":"<dateSpent>0</dateSpent>"}]
[null,null,"</convictionsDetails>",null,null,{"$f":"C783","v":"</convictionsDetails>"}]
[null,null,"<convictionsDetails>",null,null,{"$f":"C784","v":"<convictionsDetails>"}]
[null,null,"<description>",{"$f":"'Op Perf'!H106","v":0},"</description>",{"$f":"CONCATENATE(C785,D785,E785)","v":"<description>0</description>"}]
[null,null,"<dateIssued>",{"$f":"'Op Perf'!I106","v":0},"</dateIssued>",{"$f":"CONCATENATE(C786,D786,E786)","v":"<dateIssued>0</dateIssued>"}]
[null,null,"<dateSpent>",{"$f":"'Op Perf'!J106","v":0},"</dateSpent>",{"$f":"CONCATENATE(C787,D787,E787)","v":"<dateSpent>0</dateSpent>"}]
[null,null,"</convictionsDetails>",null,null,{"$f":"C788","v":"</convictionsDetails>"}]
[null,null,"<convictionsDetails>",null,null,{"$f":"C789","v":"<convictionsDetails>"}]
[null,null,"<description>",{"$f":"'Op Perf'!H107","v":0},"</description>",{"$f":"CONCATENATE(C790,D790,E790)","v":"<description>0</description>"}]
[null,null,"<dateIssued>",{"$f":"'Op Perf'!I107","v":0},"</dateIssued>",{"$f":"CONCATENATE(C791,D791,E791)","v":"<dateIssued>0</dateIssued>"}]
[null,null,"<dateSpent>",{"$f":"'Op Perf'!J107","v":0},"</dateSpent>",{"$f":"CONCATENATE(C792,D792,E792)","v":"<dateSpent>0</dateSpent>"}]
[null,null,"</convictionsDetails>",null,null,{"$f":"C793","v":"</convictionsDetails>"}]
[null,null,"<convictionsDetails>",null,null,{"$f":"C794","v":"<convictionsDetails>"}]
[null,null,"<description>",{"$f":"'Op Perf'!H108","v":0},"</description>",{"$f":"CONCATENATE(C795,D795,E795)","v":"<description>0</description>"}]
[null,null,"<dateIssued>",{"$f":"'Op Perf'!I108","v":0},"</dateIssued>",{"$f":"CONCATENATE(C796,D796,E796)","v":"<dateIssued>0</dateIssued>"}]
[null,null,"<dateSpent>",{"$f":"'Op Perf'!J108","v":0},"</dateSpent>",{"$f":"CONCATENATE(C797,D797,E797)","v":"<dateSpent>0</dateSpent>"}]
[null,null,"</convictionsDetails>",null,null,{"$f":"C798","v":"</convictionsDetails>"}]
[null,null,"<convictionsDetails>",null,null,{"$f":"C799","v":"<convictionsDetails>"}]
[null,null,"<description>",{"$f":"'Op Perf'!H109","v":0},"</description>",{"$f":"CONCATENATE(C800,D800,E800)","v":"<description>0</description>"}]
[null,null,"<dateIssued>",{"$f":"'Op Perf'!I109","v":0},"</dateIssued>",{"$f":"CONCATENATE(C801,D801,E801)","v":"<dateIssued>0</dateIssued>"}]
[null,null,"<dateSpent>",{"$f":"'Op Perf'!J109","v":0},"</dateSpent>",{"$f":"CONCATENATE(C802,D802,E802)","v":"<dateSpent>0</dateSpent>"}]
[null,null,"</convictionsDetails>",null,null,{"$f":"C803","v":"</convictionsDetails>"}]
[null,null,"<convictionsDetails>",null,null,{"$f":"C804","v":"<convictionsDetails>"}]
[null,null,"<description>",{"$f":"'Op Perf'!H110","v":0},"</description>",{"$f":"CONCATENATE(C805,D805,E805)","v":"<description>0</description>"}]
[null,null,"<dateIssued>",{"$f":"'Op Perf'!I110","v":0},"</dateIssued>",{"$f":"CONCATENATE(C806,D806,E806)","v":"<dateIssued>0</dateIssued>"}]
[null,null,"<dateSpent>",{"$f":"'Op Perf'!J110","v":0},"</dateSpent>",{"$f":"CONCATENATE(C807,D807,E807)","v":"<dateSpent>0</dateSpent>"}]
[null,null,"</convictionsDetails>",null,null,{"$f":"C808","v":"</convictionsDetails>"}]
[null,null,"</convictionsOnProsecutions>",null,null,{"$f":"CONCATENATE(C809,D809,E809)","v":"</convictionsOnProsecutions>"}]
[null,null,"</complianceSection>",null,null,{"$f":"CONCATENATE(C810,D810,E810)","v":"</complianceSection>"}]
[null,null,"</operatorPerformanceDetail>",null,null,{"$f":"C811","v":"</operatorPerformanceDetail>"}]
[null,"Start of Finance Data","<finance>",null,null,{"$f":"C812","v":"<finance>"}]
[null,null,"<OPRAChargingScore>",{"$f":"Total_EP_OPRA_score1","v":175},"</OPRAChargingScore>",{"$f":"CONCATENATE(C813,D813,E813)","v":"<OPRAChargingScore>175</OPRAChargingScore>"}]
[null,null,"<OPRAMultiplier>",{"$f":"Application_Factor","v":182},"</OPRAMultiplier>","<OPRAMultiplier>182</OPRAMultiplier>"]
[null,"Application Fee for Part A1","<OPRAFee>",{"$f":"Calculation!D28","v":36050},"</OPRAFee>","<OPRAFee>36050</OPRAFee>"]
[null,"Subsistance Fee","<OPRAsubsistanceFee>",{"$f":"Calculation!D30","v":17500},"</OPRAsubsistanceFee>","<OPRAsubsistanceFee>17500</OPRAsubsistanceFee>"]
[null,"Number of Part A2 & B activities","<partA2AndBActivities>",{"$f":"'Other Activities'!M66","v":0},"</partA2AndBActivities>","<partA2AndBActivities>0</partA2AndBActivities>"]
[null,"Multiplier (from look up sheet)","<partA2AndBMultiplier>",{"$f":"Lookup!C26","v":1435},"</partA2AndBMultiplier>","<partA2AndBMultiplier>1435</partA2AndBMultiplier>"]
[null,"Application Fee for Part  A2 and B","<partA2AndBApplicationFee>",{"$f":"D817*D818","v":0},"</partA2AndBApplicationFee>","<partA2AndBApplicationFee>0</partA2AndBApplicationFee>"]
[null,null,"</finance>",null,null,{"$f":"C820","v":"</finance>"}]
[null,"End of Finance Data",null,null,null,"</section>"]
[null,"End of Section",null,null,null,"</EPOPRA>"]
[null,"End of File"]

{"sheet":"Amendment record","index":16,"n_rows":37,"n_cols":3,"rows_kept":37,"cut":false,"hidden":true,"merged":[[35,0,35,2],[24,0,24,1],[18,0,18,1],[16,0,16,1],[0,0,0,2],[1,0,1,1],[8,0,8,1],[14,0,14,1],[32,0,32,2]]}
["ep_opra_ppc_m2"]
["version 2.01"]
[1,"12th Mar 2004","Spurious column heading in Op Perf sheet removed"]
[2,"15th Mar 2004","In Air sheet Hydrogen Sulphide to air  - units of measure entered"]
[3,"15th Mar 2004","Missing ASR identified and updated - those with no enumeration index have been given #147 (other activities)"]
[4,"14th Mar 2004","Fix to total of Complexities"]
[5,"15th Mar 2004","National Security removed from Air, Water and Sewer sheets"]
[6,"15th Mar 2004","Input form for Com in Conf amended to make all inputs obligatory if any one is present"]
["version 2.02"]
[7,"24th Mar 2004","The version number is now stored in a single cell, formula still to be added to xml sheet to split into major and minor issue numbers (required for application form)."]
[8,"27th Mar 2004","All combo boxes have 'input match' set to True - to stop people inputting there own (invalid) data"]
[9,"27th Mar 2004","Enumerated list indexes corrected"]
[10,"27th Mar 2004","ASRs (Activities) checked and new added to match regulation, see final spreadsheet from Ian Haskell"]
[11,"29th Mar 2004","Sign off of ASRs (Tel call Ian Haskell)"]
["version 2.03"]
[12,"3rd Apr 2004","Scoring error in location worksheet corrected"]
["version 2.04"]
[13,"15th Apr 2004","missing calculation in releases to air (trichloroethylene)"]
["version 2.05"]
[14,"7th May 2004","<OPRAChargingScore>, <OPRAMultiplier> added to xml sheet,  <OPRAFee>, <OPRAsubsistanceFee> renamed. Xml sheet rows 813 to 816"]
[15,"7th May 2004","Emission attribute summary sheet. An emission index of exactly 1000 (in all of the media)\ngives OPRA Band C, whereas the methodology states that this should be\nband D. Formula in cells D22 - D26 changed to inlude >= to ensure the correct banding.\n"]
[16,"10th May 2004","Extra code added to module three to replace amphersands with hex char code to maintain integrity of xml file"]
[17,"20th May 2004","Calculations for other consented substances inserted into Water and Sewer worksheets"]
[18,"20th May 2004","Version ready for release for use following agreement from Ian Haskell and David Parr"]
["version 2.06"]
[19,"21st May 2004","Version 2.05 was not released"]
[20,"21st May 2004","Formula in cells Sewer G80 to G85 changed to =IF(Ex>0,IF(Fx/Ex<1,0,(Fx/Ex)),) where x is the row number"]
[21,"21st May 2004","Formula in cells Water G78 to G85 changed to =IF(Ex>0,IF(Fx/Ex<1,0,(Fx/Ex)),) where x is the row number"]
[22,"21st May 2004","Formula in cells air G120 to G124 changed to =IF(Ex>0,IF(Fx/Ex<1,0,(Fx/Ex)),) where x is the row number"]
[23,"21st May 2004","Version number changed to 2.06 in Introduction cell D10"]
[24,"21st May 2004","Version 2.06 released"]
[]
["       Version 3.0"]
[21,"2005-02-01","Amended by Neil Gillan"]
[]
["       Version 3.1"]
[22,"2006-02-01","Amended by Neil Gillan"]

{"sheet":"Lookup","index":17,"n_rows":30,"n_cols":8,"rows_kept":30,"cut":false,"hidden":true,"merged":[[3,2,3,6]]}
[]
[null,"Part A(1) Band Score Lookup Table",null,null,null,"(Source:  PPC Charging Consultation Oct 2005)"]
[]
[null,null,"Band Score"]
[null,"Attribute","A","B","C","D","E","F"]
[null,"Complexity",2,15,45,82,110]
[null,"Emissions to Air",3,10,20,35,50]
[null,"Emissions to Water",3,10,20,35,50]
[null,"Emissions to Land",3,10,20,35,50]
[null,"Location",3,10,20,40,60]
[null,"Operator Management",10,25,40,60,75]
[null,"Third party Water",1,2,3,5,10]
[null,"Third party Land",1,2,3,5,10]
[null,"Compliance Rating",0.95,1,1.1000000000000001,1.25,1.5,3]
[]
[]
[null,"Part A(1) Financial Factors",null,null,"(Source:  PPC Charging Consultation Oct 2005)"]
[]
[null,"Application",182]
[null,"Subsistence",88]
[]
[]
[]
[null,"Part A(2) & B Financial Factors"]
[]
[null,"Multiplier",1435,null,"(Source:  PPC Charging Consultation Oct 2005)"]
[]
[]
[]
[null,"Financial Year 2006/2007"]